Body name,Directorate,Service Area Categorisation,Supplier Name,Payment Date,Card Transaction,Net Amount,Purpose of Spend,Procurement Classification: ProClass Label
Solihull MBC,Children's Services & Skills,Children & Education Services,3 Sixty Property Services Ltd,13/08/2020,,2500,Contractors,171011 - Education - School Services
Solihull MBC,Children's Services & Skills,Children & Education Services,3 Sixty Property Services Ltd,13/08/2020,,695,Contractors,171011 - Education - School Services
Solihull MBC,Children's Services & Skills,Children & Education Services,3 Sixty Property Services Ltd,13/08/2020,,4369.5,Contractors,171011 - Education - School Services
Solihull MBC,Children's Services & Skills,Children & Education Services,3 Sixty Property Services Ltd,13/08/2020,,4795,Contractors,171011 - Education - School Services
Solihull MBC,Children's Services & Skills,Children & Education Services,3 Sixty Property Services Ltd,13/08/2020,,1100,Contractors,171011 - Education - School Services
Solihull MBC,Children's Services & Skills,Children & Education Services,3PB Barristers,28/08/2020,,500,Other Fees,Not Yet Classified
Solihull MBC,Children's Services & Skills,Children & Education Services,3PB Barristers,19/08/2020,,500,Other Fees,Not Yet Classified
Solihull MBC,Children's Services & Skills,Children & Education Services,3PB Barristers,07/08/2020,,2100,Other Fees,Not Yet Classified
Solihull MBC,Children's Services & Skills,Children & Education Services,3PB Barristers,07/08/2020,,1560,Other Fees,Not Yet Classified
Solihull MBC,Children's Services & Skills,Children & Education Services,3PB Barristers,05/08/2020,,900,Other Fees,Not Yet Classified
Solihull MBC,Children's Services & Skills,Children & Education Services,A Wilderness Way Ltd,20/08/2020,,20400,Other Contracted Services,Not Yet Classified
Solihull MBC,Children's Services & Skills,Children & Education Services,A1 Support Limited,20/08/2020,,2760,Supported Lodgings,Not Yet Classified
Solihull MBC,Children's Services & Skills,Children & Education Services,A1 Support Limited,20/08/2020,,591.43,Supported Lodgings,Not Yet Classified
Solihull MBC,Children's Services & Skills,Children & Education Services,A1 Support Limited,20/08/2020,,2760,Supported Lodgings,Not Yet Classified
Solihull MBC,Adult Social Care,Adult Social Care,A2B Radio Cars,13/08/2020,,371.15,Clients Transport Costs,360000 - Public Transport
Solihull MBC,Adult Social Care,Adult Social Care,A2B Radio Cars,13/08/2020,,518.76,Clients Transport Costs,360000 - Public Transport
Solihull MBC,Adult Social Care,Adult Social Care,Abbey Healthcare Homes Ltd,13/08/2020,,4234.72,ASC - Nursing Care Permanent,321000 - Social Community Care Supplies & Services - Adult
Solihull MBC,Children's Services & Skills,Children & Education Services,Absolute Interpreting & Translation Ltd,17/08/2020,,210,Professional Fees,261100 - Human Resources - Interpretation & Translation
Solihull MBC,Children's Services & Skills,Children & Education Services,Absolute Interpreting & Translation Ltd,17/08/2020,,234,Professional Fees,261100 - Human Resources - Interpretation & Translation
Solihull MBC,Children's Services & Skills,Children & Education Services,Absolute Interpreting & Translation Ltd,17/08/2020,,222.75,Professional Fees,261100 - Human Resources - Interpretation & Translation
Solihull MBC,Children's Services & Skills,Children & Education Services,Absolute Interpreting & Translation Ltd,17/08/2020,,240,Professional Fees,261100 - Human Resources - Interpretation & Translation
Solihull MBC,Children's Services & Skills,Children & Education Services,Accalia Care Services Ltd,07/08/2020,,30200,Other Contracted Services,Not Yet Classified
Solihull MBC,Children's Services & Skills,Children & Education Services,Accalia Care Services Ltd,28/08/2020,,30200,Other Contracted Services,Not Yet Classified
Solihull MBC,Resources,Central Services to the Public,Access Intelligence Media,21/08/2020,,750,General Office Expenses,270000 - Information Communication Technology
Solihull MBC,Adult Social Care,Adult Social Care,Accomplish Group Lifestyles Ltd,13/08/2020,,9351.16,ASC - Residential Care Permanent,Not Yet Classified
Solihull MBC,Adult Social Care,Adult Social Care,Accomplish Group Lifestyles Ltd,13/08/2020,,7010.64,ASC - Residential Care Permanent,Not Yet Classified
Solihull MBC,Adult Social Care,Adult Social Care,Accomplish Group Lifestyles Ltd,13/08/2020,,5547.64,ASC - Residential Care Permanent,Not Yet Classified
Solihull MBC,Adult Social Care,Adult Social Care,Accora,06/08/2020,,1295,Furniture & Equipment,Not Yet Classified
Solihull MBC,Adult Social Care,Adult Social Care,Accora,10/08/2020,,1222,Furniture & Equipment,Not Yet Classified
Solihull MBC,Adult Social Care,Adult Social Care,Accora,20/08/2020,,950,Furniture & Equipment,Not Yet Classified
Solihull MBC,Adult Social Care,Adult Social Care,Accora,28/08/2020,,1700,Furniture & Equipment,Not Yet Classified
Solihull MBC,Adult Social Care,Adult Social Care,Accord Housing Association,10/08/2020,,325,ASC - Day Care,321000 - Social Community Care Supplies & Services - Adult
Solihull MBC,Adult Social Care,Adult Social Care,Accord Housing Association,10/08/2020,,430.83,Block Contracts,321000 - Social Community Care Supplies & Services - Adult
Solihull MBC,Adult Social Care,Other Housing Services,Accord Housing Association,04/08/2020,,14155.41,Other Contracted Services,321000 - Social Community Care Supplies & Services - Adult
Solihull MBC,Adult Social Care,Adult Social Care,Accord Housing Asssociation,14/08/2020,,2480.52,ASC - Residential Care Permanent,321000 - Social Community Care Supplies & Services - Adult
Solihull MBC,Adult Social Care,Adult Social Care,Accord Housing Asssociation,14/08/2020,,797.31,ASC - Residential Care Permanent,321000 - Social Community Care Supplies & Services - Adult
Solihull MBC,Adult Social Care,Adult Social Care,Accord Housing Asssociation,14/08/2020,,2480.52,ASC - Residential Care Permanent,321000 - Social Community Care Supplies & Services - Adult
Solihull MBC,Adult Social Care,Adult Social Care,Accord Housing Asssociation,14/08/2020,,2480.52,ASC - Residential Care Permanent,321000 - Social Community Care Supplies & Services - Adult
Solihull MBC,Adult Social Care,Adult Social Care,Accord Housing Asssociation,14/08/2020,,2480.52,ASC - Residential Care Respite,321000 - Social Community Care Supplies & Services - Adult
Solihull MBC,Adult Social Care,Adult Social Care,Accord Housing Asssociation,14/08/2020,,2480.52,ASC - Residential Care Permanent,321000 - Social Community Care Supplies & Services - Adult
Solihull MBC,Adult Social Care,Adult Social Care,Accord Housing Asssociation,14/08/2020,,2480.52,ASC - Residential Care Permanent,321000 - Social Community Care Supplies & Services - Adult
Solihull MBC,Adult Social Care,Adult Social Care,Accord Housing Asssociation,14/08/2020,,2480.52,ASC - Residential Care Permanent,321000 - Social Community Care Supplies & Services - Adult
Solihull MBC,Adult Social Care,Adult Social Care,Accord Housing Asssociation,14/08/2020,,2480.52,ASC - Residential Care Permanent,321000 - Social Community Care Supplies & Services - Adult
Solihull MBC,Adult Social Care,Adult Social Care,Accord Housing Asssociation,14/08/2020,,2480.52,ASC - Residential Care Permanent,321000 - Social Community Care Supplies & Services - Adult
Solihull MBC,Adult Social Care,Adult Social Care,Accord Housing Asssociation,14/08/2020,,2037.57,ASC - Residential Care Permanent,321000 - Social Community Care Supplies & Services - Adult
Solihull MBC,Adult Social Care,Adult Social Care,Accord Housing Asssociation,14/08/2020,,2480.52,ASC - Residential Care Permanent,321000 - Social Community Care Supplies & Services - Adult
Solihull MBC,Adult Social Care,Adult Social Care,Accord Housing Asssociation,14/08/2020,,2480.52,ASC - Residential Care Permanent,321000 - Social Community Care Supplies & Services - Adult
Solihull MBC,Adult Social Care,Adult Social Care,Accord Housing Asssociation,14/08/2020,,2480.52,ASC - Residential Care Permanent,321000 - Social Community Care Supplies & Services - Adult
Solihull MBC,Adult Social Care,Adult Social Care,Accord Housing Asssociation,14/08/2020,,2480.52,ASC - Residential Care Respite,321000 - Social Community Care Supplies & Services - Adult
Solihull MBC,Adult Social Care,Adult Social Care,Accord Housing Asssociation,14/08/2020,,2480.52,ASC - Residential Care Permanent,321000 - Social Community Care Supplies & Services - Adult
Solihull MBC,Adult Social Care,Adult Social Care,Accord Housing Asssociation,14/08/2020,,2480.52,ASC - Residential Care Permanent,321000 - Social Community Care Supplies & Services - Adult
Solihull MBC,Adult Social Care,Adult Social Care,Accord Housing Asssociation,14/08/2020,,2480.52,ASC - Residential Care Permanent,321000 - Social Community Care Supplies & Services - Adult
Solihull MBC,Adult Social Care,Adult Social Care,Accord Housing Asssociation,14/08/2020,,2480.52,ASC - Residential Care Permanent,321000 - Social Community Care Supplies & Services - Adult
Solihull MBC,Adult Social Care,Adult Social Care,Accord Housing Asssociation,14/08/2020,,2480.52,ASC - Residential Care Permanent,321000 - Social Community Care Supplies & Services - Adult
Solihull MBC,Adult Social Care,Adult Social Care,Accord Housing Asssociation,14/08/2020,,2480.52,ASC - Residential Care Permanent,321000 - Social Community Care Supplies & Services - Adult
Solihull MBC,Adult Social Care,Adult Social Care,Accord Housing Asssociation,14/08/2020,,2480.52,ASC - Residential Care Respite,321000 - Social Community Care Supplies & Services - Adult
Solihull MBC,Adult Social Care,Adult Social Care,Accord Housing Asssociation,14/08/2020,,2480.52,ASC - Residential Care Permanent,321000 - Social Community Care Supplies & Services - Adult
Solihull MBC,Adult Social Care,Adult Social Care,Accord Housing Asssociation,14/08/2020,,2480.52,ASC - Residential Care Permanent,321000 - Social Community Care Supplies & Services - Adult
Solihull MBC,Adult Social Care,Adult Social Care,Accord Housing Asssociation,14/08/2020,,2480.52,ASC - Residential Care Permanent,321000 - Social Community Care Supplies & Services - Adult
Solihull MBC,Adult Social Care,Adult Social Care,Accord Housing Asssociation,14/08/2020,,2480.52,ASC - Residential Care Permanent,321000 - Social Community Care Supplies & Services - Adult
Solihull MBC,Adult Social Care,Adult Social Care,Accord Housing Asssociation,14/08/2020,,2480.52,ASC - Residential Care Permanent,321000 - Social Community Care Supplies & Services - Adult
Solihull MBC,Adult Social Care,Adult Social Care,Accord Housing Asssociation,14/08/2020,,2480.52,ASC - Residential Care Permanent,321000 - Social Community Care Supplies & Services - Adult
Solihull MBC,Adult Social Care,Adult Social Care,Accord Housing Asssociation,14/08/2020,,2480.52,ASC - Residential Care Permanent,321000 - Social Community Care Supplies & Services - Adult
Solihull MBC,Adult Social Care,Adult Social Care,Accord Housing Asssociation,14/08/2020,,2480.52,ASC - Residential Care Permanent,321000 - Social Community Care Supplies & Services - Adult
Solihull MBC,Adult Social Care,Adult Social Care,Accord Housing Asssociation,14/08/2020,,2480.52,ASC - Residential Care Permanent,321000 - Social Community Care Supplies & Services - Adult
Solihull MBC,Adult Social Care,Adult Social Care,Accord Housing Asssociation,14/08/2020,,-1948.98,ASC - Residential Care Permanent,321000 - Social Community Care Supplies & Services - Adult
Solihull MBC,Adult Social Care,Adult Social Care,Accord Housing Asssociation,14/08/2020,,2480.52,ASC - Residential Care Permanent,321000 - Social Community Care Supplies & Services - Adult
Solihull MBC,Adult Social Care,Adult Social Care,Accord Housing Asssociation,14/08/2020,,2480.52,ASC - Residential Care Permanent,321000 - Social Community Care Supplies & Services - Adult
Solihull MBC,Adult Social Care,Adult Social Care,Accord Housing Asssociation,14/08/2020,,2480.52,ASC - Residential Care Permanent,321000 - Social Community Care Supplies & Services - Adult
Solihull MBC,Adult Social Care,Adult Social Care,Accord Housing Asssociation,14/08/2020,,-1771.8,ASC - Residential Care Respite,321000 - Social Community Care Supplies & Services - Adult
Solihull MBC,Adult Social Care,Adult Social Care,Accord Housing Asssociation,14/08/2020,,1771.8,ASC - Residential Care Permanent,321000 - Social Community Care Supplies & Services - Adult
Solihull MBC,Adult Social Care,Adult Social Care,Accord Housing Asssociation,14/08/2020,,2480.52,ASC - Residential Care Permanent,321000 - Social Community Care Supplies & Services - Adult
Solihull MBC,Adult Social Care,Adult Social Care,Accord Housing Asssociation,14/08/2020,,2480.52,ASC - Residential Care Respite,321000 - Social Community Care Supplies & Services - Adult
Solihull MBC,Adult Social Care,Adult Social Care,Accord Housing Asssociation,14/08/2020,,2480.52,ASC - Residential Care Permanent,321000 - Social Community Care Supplies & Services - Adult
Solihull MBC,Adult Social Care,Adult Social Care,Accord Housing Asssociation,14/08/2020,,2480.52,ASC - Residential Care Respite,321000 - Social Community Care Supplies & Services - Adult
Solihull MBC,Adult Social Care,Adult Social Care,Accord Housing Asssociation,14/08/2020,,2480.52,ASC - Residential Care Permanent,321000 - Social Community Care Supplies & Services - Adult
Solihull MBC,Adult Social Care,Adult Social Care,Accord Housing Asssociation,14/08/2020,,2480.52,ASC - Residential Care Permanent,321000 - Social Community Care Supplies & Services - Adult
Solihull MBC,Adult Social Care,Adult Social Care,Accord Housing Asssociation,14/08/2020,,2480.52,ASC - Residential Care Respite,321000 - Social Community Care Supplies & Services - Adult
Solihull MBC,Children's Services & Skills,Children & Education Services,Active Angels,12/08/2020,,540,Clients Expenses,321100 - Social Community Care Supplies & Services - Children
Solihull MBC,Children's Services & Skills,Children & Education Services,ADT Fire & Security PLC,07/08/2020,,902.26,Other Premise Costs,192200 - Facilities & Management Services - Security
Solihull MBC,Resources,Central Services to the Public,ADT Fire & Security PLC,04/08/2020,,436.88,Other Premise Costs,192200 - Facilities & Management Services - Security
Solihull MBC,Resources,Central Services to the Public,ADT Fire & Security PLC,04/08/2020,,752.43,Other Premise Costs,192200 - Facilities & Management Services - Security
Solihull MBC,Adult Social Care,Adult Social Care,Advanced Caring Ltd,13/08/2020,,6439.72,ASC - Residential Care Permanent,Not Yet Classified
Solihull MBC,Economy and Infrastructure,Highways & Transport Services,AFI Group Of Companies,05/08/2020,,69,Transport-Contract Hire,Not Yet Classified
Solihull MBC,Economy and Infrastructure,Highways & Transport Services,AFI Group Of Companies,05/08/2020,,345,Transport-Contract Hire,Not Yet Classified
Solihull MBC,Economy and Infrastructure,Highways & Transport Services,AFI Group Of Companies,11/08/2020,,69,Transport-Contract Hire,Not Yet Classified
Solihull MBC,Economy and Infrastructure,Highways & Transport Services,AFI Group Of Companies,11/08/2020,,345,Transport-Contract Hire,Not Yet Classified
Solihull MBC,Economy and Infrastructure,Highways & Transport Services,AFI Group Of Companies,18/08/2020,,69,Transport-Contract Hire,Not Yet Classified
Solihull MBC,Economy and Infrastructure,Highways & Transport Services,AFI Group Of Companies,18/08/2020,,345,Transport-Contract Hire,Not Yet Classified
Solihull MBC,Adult Social Care,Adult Social Care,Age UK Solihull,03/08/2020,,37513.26,Other Contracted Services,321000 - Social Community Care Supplies & Services - Adult
Solihull MBC,Adult Social Care,Adult Social Care,Age UK Solihull,03/08/2020,,169850.49,Other Contracted Services,321000 - Social Community Care Supplies & Services - Adult
Solihull MBC,Adult Social Care,Adult Social Care,Age UK Solihull,03/08/2020,,20250,Other Contracted Services,321000 - Social Community Care Supplies & Services - Adult
Solihull MBC,Adult Social Care,Adult Social Care,Aidapt Bathrooms Ltd,17/08/2020,,898.5,Furniture & Equipment,321000 - Social Community Care Supplies & Services - Adult
Solihull MBC,Adult Social Care,Adult Social Care,Aidapt Bathrooms Ltd,17/08/2020,,626,Furniture & Equipment,321000 - Social Community Care Supplies & Services - Adult
Solihull MBC,Adult Social Care,Adult Social Care,Aidapt Bathrooms Ltd,17/08/2020,,294,Furniture & Equipment,321000 - Social Community Care Supplies & Services - Adult
Solihull MBC,Adult Social Care,Adult Social Care,Aidapt Bathrooms Ltd,17/08/2020,,256,Furniture & Equipment,321000 - Social Community Care Supplies & Services - Adult
Solihull MBC,Adult Social Care,Adult Social Care,Aidapt Bathrooms Ltd,27/08/2020,,3780,Furniture & Equipment,321000 - Social Community Care Supplies & Services - Adult
Solihull MBC,Adult Social Care,Adult Social Care,Aidapt Bathrooms Ltd,27/08/2020,,2340,Furniture & Equipment,321000 - Social Community Care Supplies & Services - Adult
Solihull MBC,Adult Social Care,Adult Social Care,Aidapt Bathrooms Ltd,27/08/2020,,3618,Furniture & Equipment,321000 - Social Community Care Supplies & Services - Adult
Solihull MBC,Adult Social Care,Adult Social Care,Aidapt Bathrooms Ltd,27/08/2020,,1437.6,Furniture & Equipment,321000 - Social Community Care Supplies & Services - Adult
Solihull MBC,Adult Social Care,Adult Social Care,Aidapt Bathrooms Ltd,27/08/2020,,1380,Furniture & Equipment,321000 - Social Community Care Supplies & Services - Adult
Solihull MBC,Adult Social Care,Adult Social Care,Aidapt Bathrooms Ltd,27/08/2020,,121.5,Furniture & Equipment,321000 - Social Community Care Supplies & Services - Adult
Solihull MBC,Adult Social Care,Adult Social Care,Akari Care Ltd,13/08/2020,,2522.52,ASC - Residential Care Permanent,Not Yet Classified
Solihull MBC,Adult Social Care,Adult Social Care,Akari Care Ltd,13/08/2020,,2779.28,ASC - Nursing Care Permanent,Not Yet Classified
Solihull MBC,Adult Social Care,Adult Social Care,Akari Care Ltd,13/08/2020,,2779.28,ASC - Nursing Care Permanent,Not Yet Classified
Solihull MBC,Adult Social Care,Adult Social Care,Akari Care Ltd,13/08/2020,,2140.6,ASC - Residential Care Permanent,Not Yet Classified
Solihull MBC,Adult Social Care,Adult Social Care,Akari Care Ltd,13/08/2020,,2181.48,ASC - Residential Care Permanent,Not Yet Classified
Solihull MBC,Adult Social Care,Adult Social Care,Akari Care Ltd,13/08/2020,,2779.28,ASC - Nursing Care Permanent,Not Yet Classified
Solihull MBC,Economy and Infrastructure,Cultural & Related Services,Alarm & Vision,04/08/2020,,400,Repair & Maintn Of Buildings,171100 - Education - Supplies
Solihull MBC,Children's Services - DSG Central.,Children & Education Services,Alderbrook School,24/08/2020,,5544,Other Contracted Services,171011 - Education - School Services
Solihull MBC,Children's Services - DSG Central.,Children & Education Services,Alderbrook School,24/08/2020,,80385,Other Contracted Services,171011 - Education - School Services
Solihull MBC,Children's Services - DSG Central.,Children & Education Services,Alderbrook School,24/08/2020,,35101,Other Contracted Services,171011 - Education - School Services
Solihull MBC,Adult Social Care,Adult Social Care,Alexandra House - SJMT,14/08/2020,,2380,ASC - Residential Care Permanent,Not Yet Classified
Solihull MBC,Adult Social Care,Adult Social Care,Alexandra House - SJMT,14/08/2020,,2380,ASC - Residential Care Permanent,Not Yet Classified
Solihull MBC,Adult Social Care,Adult Social Care,Alexandra House - SJMT,14/08/2020,,1624.01,ASC - Residential Care Respite,Not Yet Classified
Solihull MBC,Adult Social Care,Adult Social Care,Alexandra House - SJMT,14/08/2020,,764.24,ASC - Residential Care Respite,Not Yet Classified
Solihull MBC,Adult Social Care,Adult Social Care,Alexandra House - SJMT,14/08/2020,,2380,ASC - Residential Care Permanent,Not Yet Classified
Solihull MBC,Adult Social Care,Adult Social Care,Alexandra House - SJMT,14/08/2020,,859.77,ASC - Residential Care Respite,Not Yet Classified
Solihull MBC,Adult Social Care,Adult Social Care,Alexandra House - SJMT,14/08/2020,,2380,ASC - Residential Care Permanent,Not Yet Classified
Solihull MBC,Adult Social Care,Adult Social Care,Alexandra House - SJMT,14/08/2020,,2391.2,ASC - Residential Care Permanent,Not Yet Classified
Solihull MBC,Adult Social Care,Adult Social Care,Alexandra House - SJMT,14/08/2020,,2331,ASC - Residential Care Permanent,Not Yet Classified
Solihull MBC,Adult Social Care,Adult Social Care,Alexandra House - SJMT,14/08/2020,,573.18,ASC - Residential Care Respite,Not Yet Classified
Solihull MBC,Adult Social Care,Adult Social Care,Alexandra House - SJMT,14/08/2020,,764.24,ASC - Residential Care Respite,Not Yet Classified
Solihull MBC,Adult Social Care,Adult Social Care,Alexandra House - SJMT,14/08/2020,,1719.54,ASC - Residential Care Respite,Not Yet Classified
Solihull MBC,Adult Social Care,Adult Social Care,Alexandra House - SJMT,14/08/2020,,595,ASC - Residential Care Permanent,Not Yet Classified
Solihull MBC,Adult Social Care,Adult Social Care,Alexandra House - SJMT,14/08/2020,,2374.68,ASC - Residential Care Permanent,Not Yet Classified
Solihull MBC,Adult Social Care,Adult Social Care,Alexandra House - SJMT,14/08/2020,,1146.36,ASC - Residential Care Respite,Not Yet Classified
Solihull MBC,Adult Social Care,Adult Social Care,Alexandra House - SJMT,14/08/2020,,2391.2,ASC - Residential Care Permanent,Not Yet Classified
Solihull MBC,Adult Social Care,Adult Social Care,Alexandra House - SJMT,14/08/2020,,1719.54,ASC - Residential Care Respite,Not Yet Classified
Solihull MBC,Adult Social Care,Adult Social Care,Alexandra House - SJMT,14/08/2020,,764.24,ASC - Residential Care Respite,Not Yet Classified
Solihull MBC,Adult Social Care,Adult Social Care,Alexandra House - SJMT,14/08/2020,,1719.54,ASC - Residential Care Respite,Not Yet Classified
Solihull MBC,Adult Social Care,Adult Social Care,Alexandra House - SJMT,14/08/2020,,764.24,ASC - Residential Care Respite,Not Yet Classified
Solihull MBC,Adult Social Care,Adult Social Care,Alexandra House - SJMT,14/08/2020,,2347.24,ASC - Residential Care Permanent,Not Yet Classified
Solihull MBC,Adult Social Care,Adult Social Care,Alexandra House - SJMT,14/08/2020,,2380,ASC - Residential Care Permanent,Not Yet Classified
Solihull MBC,Adult Social Care,Adult Social Care,Alophonsus Services Ltd,13/08/2020,,11056.08,ASC - Residential Care Permanent,321000 - Social Community Care Supplies & Services - Adult
Solihull MBC,Children's Services & Skills,Children & Education Services,Alpha Biolaboratories Ltd,27/08/2020,,1594,Professional Fees,Not Yet Classified
Solihull MBC,Children's Services & Skills,Children & Education Services,Alpha Biolaboratories Ltd,27/08/2020,,1809,Professional Fees,Not Yet Classified
Solihull MBC,Children's Services & Skills,Children & Education Services,Alpha Biolaboratories Ltd,14/08/2020,,314,Professional Fees,Not Yet Classified
Solihull MBC,Children's Services & Skills,Children & Education Services,Alpha Biolaboratories Ltd,14/08/2020,,1329,Professional Fees,Not Yet Classified
Solihull MBC,Adult Social Care,Adult Social Care,Amberley Court Nursing Home,13/08/2020,,4404.4,ASC - Nursing Care Permanent,321000 - Social Community Care Supplies & Services - Adult
Solihull MBC,Adult Social Care,Adult Social Care,Amberley Court Nursing Home,27/08/2020,,616,ASC - Nursing Care Permanent,321000 - Social Community Care Supplies & Services - Adult
Solihull MBC,Economy and Infrastructure - HRA,Housing Revenue Account,Amznmktplace,21/08/2020,Card Transaction,209.95,General Debtors,161000 - Domestic Goods - Commercial
Solihull MBC,Economy and Infrastructure,Environmental and Regulatory Services,Amznmktplace,10/07/2020,Card Transaction,447.5,Other Contracted Services,161000 - Domestic Goods - Commercial
Solihull MBC,Economy and Infrastructure,Environmental and Regulatory Services,Amznmktplace Amazon.co.uk,28/07/2020,Card Transaction,397.25,Other Contracted Services,161000 - Domestic Goods - Commercial
Solihull MBC,Adult Social Care,Adult Social Care,Anchor Homes - Kerria Court,13/08/2020,,2425.36,ASC - Residential Care Permanent,Not Yet Classified
Solihull MBC,Adult Social Care,Adult Social Care,Anchor Trust,13/08/2020,,2789.24,ASC - Residential Care Permanent,321000 - Social Community Care Supplies & Services - Adult
Solihull MBC,Adult Social Care,Adult Social Care,Anchor Trust,13/08/2020,,3200,ASC - Residential Care Permanent,321000 - Social Community Care Supplies & Services - Adult
Solihull MBC,Adult Social Care,Adult Social Care,Angels Healthcare Ltd,20/08/2020,,524.52,ASC - Domiciliary Care,321000 - Social Community Care Supplies & Services - Adult
Solihull MBC,Adult Social Care,Adult Social Care,Angels Healthcare Ltd,20/08/2020,,1133.64,ASC - Domiciliary Care,321000 - Social Community Care Supplies & Services - Adult
Solihull MBC,Adult Social Care,Adult Social Care,Angels Healthcare Ltd,20/08/2020,,955.98,ASC - Domiciliary Care,321000 - Social Community Care Supplies & Services - Adult
Solihull MBC,Adult Social Care,Adult Social Care,Angels Healthcare Ltd,20/08/2020,,947.52,ASC - Domiciliary Care,321000 - Social Community Care Supplies & Services - Adult
Solihull MBC,Adult Social Care,Adult Social Care,Angels Healthcare Ltd,20/08/2020,,964.44,ASC - Domiciliary Care,321000 - Social Community Care Supplies & Services - Adult
Solihull MBC,Adult Social Care,Adult Social Care,Angels Healthcare Ltd,20/08/2020,,964.44,ASC - Domiciliary Care,321000 - Social Community Care Supplies & Services - Adult
Solihull MBC,Adult Social Care,Adult Social Care,Angels Healthcare Ltd,20/08/2020,,2131.92,ASC - Domiciliary Care,321000 - Social Community Care Supplies & Services - Adult
Solihull MBC,Adult Social Care,Adult Social Care,Angels Healthcare Ltd,20/08/2020,,473.76,ASC - Domiciliary Care,321000 - Social Community Care Supplies & Services - Adult
Solihull MBC,Adult Social Care,Adult Social Care,Angels Healthcare Ltd,20/08/2020,,710.64,ASC - Domiciliary Care,321000 - Social Community Care Supplies & Services - Adult
Solihull MBC,Adult Social Care,Adult Social Care,Angels Healthcare Ltd,20/08/2020,,947.52,ASC - Domiciliary Care,321000 - Social Community Care Supplies & Services - Adult
Solihull MBC,Adult Social Care,Adult Social Care,Angels Healthcare Ltd,20/08/2020,,947.52,ASC - Domiciliary Care,321000 - Social Community Care Supplies & Services - Adult
Solihull MBC,Adult Social Care,Adult Social Care,Angels Healthcare Ltd,20/08/2020,,351.09,ASC - Domiciliary Care,321000 - Social Community Care Supplies & Services - Adult
Solihull MBC,Adult Social Care,Adult Social Care,Angels Healthcare Ltd,20/08/2020,,528.75,ASC - Domiciliary Care,321000 - Social Community Care Supplies & Services - Adult
Solihull MBC,Adult Social Care,Adult Social Care,Angels Healthcare Ltd,20/08/2020,,710.64,ASC - Domiciliary Care,321000 - Social Community Care Supplies & Services - Adult
Solihull MBC,Adult Social Care,Adult Social Care,Angels Healthcare Ltd,20/08/2020,,507.6,ASC - Domiciliary Care,321000 - Social Community Care Supplies & Services - Adult
Solihull MBC,Adult Social Care,Adult Social Care,Angels Healthcare Ltd,20/08/2020,,423,ASC - Domiciliary Care,321000 - Social Community Care Supplies & Services - Adult
Solihull MBC,Adult Social Care,Adult Social Care,Angels Healthcare Ltd,20/08/2020,,829.08,ASC - Domiciliary Care,321000 - Social Community Care Supplies & Services - Adult
Solihull MBC,Adult Social Care,Adult Social Care,Angels Healthcare Ltd,20/08/2020,,829.08,ASC - Domiciliary Care,321000 - Social Community Care Supplies & Services - Adult
Solihull MBC,Adult Social Care,Adult Social Care,Angels Healthcare Ltd,20/08/2020,,1895.04,ASC - Domiciliary Care,321000 - Social Community Care Supplies & Services - Adult
Solihull MBC,Adult Social Care,Adult Social Care,Angels Healthcare Ltd,20/08/2020,,592.2,ASC - Domiciliary Care,321000 - Social Community Care Supplies & Services - Adult
Solihull MBC,Adult Social Care,Adult Social Care,Angels Healthcare Ltd,20/08/2020,,710.64,ASC - Domiciliary Care,321000 - Social Community Care Supplies & Services - Adult
Solihull MBC,Adult Social Care,Adult Social Care,Angels Healthcare Ltd,20/08/2020,,2131.92,ASC - Domiciliary Care,321000 - Social Community Care Supplies & Services - Adult
Solihull MBC,Adult Social Care,Adult Social Care,Angels Healthcare Ltd,20/08/2020,,989.82,ASC - Domiciliary Care,321000 - Social Community Care Supplies & Services - Adult
Solihull MBC,Adult Social Care,Adult Social Care,Angels Healthcare Ltd,20/08/2020,,710.64,ASC - Domiciliary Care,321000 - Social Community Care Supplies & Services - Adult
Solihull MBC,Adult Social Care,Adult Social Care,Angels Healthcare Ltd,20/08/2020,,710.64,ASC - Domiciliary Care,321000 - Social Community Care Supplies & Services - Adult
Solihull MBC,Adult Social Care,Adult Social Care,Angels Healthcare Ltd,07/08/2020,,998.28,ASC - Domiciliary Care,321000 - Social Community Care Supplies & Services - Adult
Solihull MBC,Adult Social Care,Adult Social Care,Angels Healthcare Ltd,20/08/2020,,1015.2,ASC - Domiciliary Care,321000 - Social Community Care Supplies & Services - Adult
Solihull MBC,Adult Social Care,Adult Social Care,Angels Healthcare Ltd,20/08/2020,,355.32,ASC - Domiciliary Care,321000 - Social Community Care Supplies & Services - Adult
Solihull MBC,Adult Social Care,Adult Social Care,Anita Stone Court,13/08/2020,,2996.28,ASC - Nursing Care Permanent,Not Yet Classified
Solihull MBC,Children's Services & Skills,Children & Education Services,Anna Freud Centre,21/08/2020,Card Transaction,2000,Purchase Card Statement Summary,201710 - Financial Services - Grants - Charitable
Solihull MBC,Children's Services & Skills,Children & Education Services,Archways Care Ltd,07/08/2020,,17116,Other Contracted Services,Not Yet Classified
Solihull MBC,Children's Services - DSG Central.,Children & Education Services,Arden Academy Trust,24/08/2020,,30002,Other Contracted Services,Not Yet Classified
Solihull MBC,Adult Social Care,Adult Social Care,Ardenlea Court,13/08/2020,,2736.72,ASC - Nursing Care Respite,321000 - Social Community Care Supplies & Services - Adult
Solihull MBC,Adult Social Care,Adult Social Care,Ardenlea Court,13/08/2020,,2503.2,ASC - Nursing Care Permanent,321000 - Social Community Care Supplies & Services - Adult
Solihull MBC,Adult Social Care,Adult Social Care,Ardenlea Court,13/08/2020,,4326.36,ASC - Residential Care Permanent,321000 - Social Community Care Supplies & Services - Adult
Solihull MBC,Adult Social Care,Adult Social Care,Ardenlea Court,13/08/2020,,3000,ASC - Residential Care Respite,321000 - Social Community Care Supplies & Services - Adult
Solihull MBC,Covid-19,Central Services to the Public,Ardenlea Court,01/08/2020,,50000,ASC - Residential Care Permanent,321000 - Social Community Care Supplies & Services - Adult
Solihull MBC,Adult Social Care,Adult Social Care,Ardenlea Grove Nursing Home,13/08/2020,,-292.68,ASC - Nursing Care Permanent,321000 - Social Community Care Supplies & Services - Adult
Solihull MBC,Adult Social Care,Adult Social Care,Ardenlea Grove Nursing Home,13/08/2020,,-2731.68,ASC - Nursing Care Permanent,321000 - Social Community Care Supplies & Services - Adult
Solihull MBC,Adult Social Care,Adult Social Care,Ardenlea Grove Nursing Home,13/08/2020,,-2731.68,ASC - Nursing Care Permanent,321000 - Social Community Care Supplies & Services - Adult
Solihull MBC,Adult Social Care,Adult Social Care,Ardenlea Grove Nursing Home,13/08/2020,,2737,ASC - Nursing Care Permanent,321000 - Social Community Care Supplies & Services - Adult
Solihull MBC,Adult Social Care,Adult Social Care,Ardenlea Grove Nursing Home,13/08/2020,,3421.6,ASC - Nursing Care Permanent,321000 - Social Community Care Supplies & Services - Adult
Solihull MBC,Adult Social Care,Adult Social Care,Ardenlea Grove Nursing Home,13/08/2020,,3734.08,ASC - Nursing Care Permanent,321000 - Social Community Care Supplies & Services - Adult
Solihull MBC,Adult Social Care,Adult Social Care,Ardenlea Grove Nursing Home,13/08/2020,,3026.24,ASC - Nursing Care Permanent,321000 - Social Community Care Supplies & Services - Adult
Solihull MBC,Adult Social Care,Adult Social Care,Ardenlea Grove Nursing Home,13/08/2020,,2503.2,ASC - Nursing Care Permanent,321000 - Social Community Care Supplies & Services - Adult
Solihull MBC,Children's Services & Skills,Children & Education Services,Argos Ltd,21/08/2020,Card Transaction,232.95,Purchase Card Statement Summary,169999 - Domestic Goods - Not Elsewhere Classified
Solihull MBC,Children's Services & Skills,Children & Education Services,Argos Ltd,21/08/2020,Card Transaction,348.95,Purchase Card Statement Summary,169999 - Domestic Goods - Not Elsewhere Classified
Solihull MBC,Children's Services & Skills,Children & Education Services,Argos Ltd,21/08/2020,Card Transaction,357,Purchase Card Statement Summary,169999 - Domestic Goods - Not Elsewhere Classified
Solihull MBC,Economy and Infrastructure - HRA,Housing Revenue Account,Argos Ltd,21/08/2020,Card Transaction,453.86,General Debtors,169999 - Domestic Goods - Not Elsewhere Classified
Solihull MBC,Children's Services & Skills,Children & Education Services,Argos Ltd,16/07/2020,Card Transaction,305.83,Clients Expenses,169999 - Domestic Goods - Not Elsewhere Classified
Solihull MBC,Adult Social Care,Adult Social Care,Arjo Ltd,07/08/2020,,90,Furniture & Equipment,321000 - Social Community Care Supplies & Services - Adult
Solihull MBC,Adult Social Care,Adult Social Care,Arjo Ltd,07/08/2020,,1550,Furniture & Equipment,321000 - Social Community Care Supplies & Services - Adult
Solihull MBC,Adult Social Care,Adult Social Care,Arjo Ltd,19/08/2020,,5723.8,Furniture & Equipment,321000 - Social Community Care Supplies & Services - Adult
Solihull MBC,Children's Services - DSG Central.,Children & Education Services,Arrow County Supplies,06/08/2020,,273,Cleaning,130000 - Cleaning & Janitorial
Solihull MBC,Children's Services - DSG Central.,Children & Education Services,Arrow County Supplies,06/08/2020,,0.1,Cleaning,130000 - Cleaning & Janitorial
Solihull MBC,Children's Services - DSG Central.,Children & Education Services,Arrow County Supplies,12/08/2020,,188.8,Cleaning,130000 - Cleaning & Janitorial
Solihull MBC,Children's Services - DSG Central.,Children & Education Services,Arrow County Supplies,12/08/2020,,86.52,Cleaning,130000 - Cleaning & Janitorial
Solihull MBC,Children's Services - DSG Central.,Children & Education Services,Arrow County Supplies,07/08/2020,,1060,Cleaning,130000 - Cleaning & Janitorial
Solihull MBC,Children's Services - DSG Central.,Children & Education Services,Arrow County Supplies,07/08/2020,,800.8,Cleaning,130000 - Cleaning & Janitorial
Solihull MBC,Children's Services - DSG Central.,Children & Education Services,Arrow County Supplies,06/08/2020,,-273.1,Cleaning,130000 - Cleaning & Janitorial
Solihull MBC,Children's Services - DSG Central.,Children & Education Services,Arrow County Supplies,06/08/2020,,-34.75,Cleaning,130000 - Cleaning & Janitorial
Solihull MBC,Children's Services - DSG Central.,Children & Education Services,Arrow County Supplies,12/08/2020,,-188.8,Cleaning,130000 - Cleaning & Janitorial
Solihull MBC,Children's Services - DSG Central.,Children & Education Services,Arrow County Supplies,12/08/2020,,-86.52,Cleaning,130000 - Cleaning & Janitorial
Solihull MBC,Adult Social Care,Corporate & Democratic Core,Arthur Brett Catering Ltd,03/08/2020,,337.5,Catering Provisions,110000 - Catering
Solihull MBC,Children's Services & Skills,Children & Education Services,Asda,21/08/2020,Card Transaction,752.79,Purchase Card Statement Summary,111200 - Catering - Food & Beverages
Solihull MBC,Adult Social Care,Adult Social Care,Ashdale Care Homes Ltd,13/08/2020,,2554.72,ASC - Residential Care Permanent,321000 - Social Community Care Supplies & Services - Adult
Solihull MBC,Adult Social Care,Adult Social Care,Ashdale Care Homes Ltd,13/08/2020,,2954.84,ASC - Residential Care Permanent,321000 - Social Community Care Supplies & Services - Adult
Solihull MBC,Resources,Central Services to the Public,Asite Solutions Ltd,06/08/2020,,2409,IT Equipment & Software,Not Yet Classified
Solihull MBC,Public Health & Commissioning,Central Services to the Public,ASJ Business Services Ltd,21/08/2020,,5000,Grant & Subscription (SCITT),Not Yet Classified
Solihull MBC,Adult Social Care,Adult Social Care,Aspects Care Ltd,20/08/2020,,989.52,ASC - Supported Living Care Costs,Not Yet Classified
Solihull MBC,Adult Social Care,Adult Social Care,Aspects Care Ltd,20/08/2020,,2058.84,ASC - Supported Living Care Costs,Not Yet Classified
Solihull MBC,Adult Social Care,Adult Social Care,Aspects Care Ltd,20/08/2020,,280,ASC - Supported Living Care Costs,Not Yet Classified
Solihull MBC,Adult Social Care,Adult Social Care,Aspects Care Ltd,20/08/2020,,2394,ASC - Supported Living Care Costs,Not Yet Classified
Solihull MBC,Adult Social Care,Adult Social Care,Aspects Care Ltd,20/08/2020,,1340.64,ASC - Supported Living Care Costs,Not Yet Classified
Solihull MBC,Adult Social Care,Adult Social Care,Aspects Care Ltd,20/08/2020,,1324.68,ASC - Supported Living Care Costs,Not Yet Classified
Solihull MBC,Adult Social Care,Adult Social Care,Aspects Care Ltd,20/08/2020,,1881.6,ASC - Domiciliary Care,Not Yet Classified
Solihull MBC,Adult Social Care,Adult Social Care,Aspects Care Ltd,20/08/2020,,2298.24,ASC - Supported Living Care Costs,Not Yet Classified
Solihull MBC,Adult Social Care,Adult Social Care,Aspects Care Ltd,20/08/2020,,845.88,ASC - Supported Living Care Costs,Not Yet Classified
Solihull MBC,Adult Social Care,Adult Social Care,Aspects Care Ltd,20/08/2020,,989.52,ASC - Supported Living Care Costs,Not Yet Classified
Solihull MBC,Adult Social Care,Adult Social Care,Aspects Care Ltd,20/08/2020,,1596,ASC - Supported Living Care Costs,Not Yet Classified
Solihull MBC,Adult Social Care,Adult Social Care,Aspects Care Ltd,20/08/2020,,989.52,ASC - Supported Living Care Costs,Not Yet Classified
Solihull MBC,Adult Social Care,Adult Social Care,Aspects Care Ltd,20/08/2020,,3798.48,ASC - Supported Living Care Costs,Not Yet Classified
Solihull MBC,Adult Social Care,Adult Social Care,Aspects Care Ltd,20/08/2020,,280,ASC - Supported Living Care Costs,Not Yet Classified
Solihull MBC,Adult Social Care,Adult Social Care,Aspects Care Ltd,20/08/2020,,1915.2,ASC - Supported Living Care Costs,Not Yet Classified
Solihull MBC,Adult Social Care,Adult Social Care,Aspects Care Ltd,20/08/2020,,500.08,ASC - Supported Living Care Costs,Not Yet Classified
Solihull MBC,Adult Social Care,Adult Social Care,Aspects Care Ltd,20/08/2020,,1883.28,ASC - Supported Living Care Costs,Not Yet Classified
Solihull MBC,Adult Social Care,Adult Social Care,Aspects Care Ltd,20/08/2020,,2170.56,ASC - Supported Living Care Costs,Not Yet Classified
Solihull MBC,Adult Social Care,Adult Social Care,Aspects Care Ltd,20/08/2020,,925.68,ASC - Supported Living Care Costs,Not Yet Classified
Solihull MBC,Adult Social Care,Adult Social Care,Aspects Care Ltd,20/08/2020,,957.6,ASC - Supported Living Care Costs,Not Yet Classified
Solihull MBC,Adult Social Care,Adult Social Care,Aspects Care Ltd,20/08/2020,,1117.2,ASC - Supported Living Care Costs,Not Yet Classified
Solihull MBC,Adult Social Care,Adult Social Care,Aspects Care Ltd,20/08/2020,,1021.44,ASC - Supported Living Care Costs,Not Yet Classified
Solihull MBC,Adult Social Care,Adult Social Care,Aspects Care Ltd,20/08/2020,,829.92,ASC - Supported Living Care Costs,Not Yet Classified
Solihull MBC,Adult Social Care,Adult Social Care,Aspects Care Ltd,20/08/2020,,1691.76,ASC - Supported Living Care Costs,Not Yet Classified
Solihull MBC,Adult Social Care,Adult Social Care,Aspects Care Ltd,20/08/2020,,500.08,ASC - Supported Living Care Costs,Not Yet Classified
Solihull MBC,Adult Social Care,Adult Social Care,Aspects Care Ltd,20/08/2020,,3814.44,ASC - Supported Living Care Costs,Not Yet Classified
Solihull MBC,Adult Social Care,Adult Social Care,Aspects Care Ltd,20/08/2020,,766.08,ASC - Supported Living Care Costs,Not Yet Classified
Solihull MBC,Adult Social Care,Adult Social Care,Aspects Care Ltd,20/08/2020,,500.08,ASC - Supported Living Care Costs,Not Yet Classified
Solihull MBC,Adult Social Care,Adult Social Care,Aspects Care Ltd,20/08/2020,,3016.44,ASC - Supported Living Care Costs,Not Yet Classified
Solihull MBC,Adult Social Care,Adult Social Care,Aspects Care Ltd,20/08/2020,,1340.64,ASC - Supported Living Care Costs,Not Yet Classified
Solihull MBC,Adult Social Care,Adult Social Care,Aspects Care Ltd,20/08/2020,,2298.24,ASC - Supported Living Care Costs,Not Yet Classified
Solihull MBC,Adult Social Care,Adult Social Care,Aspects Care Ltd,20/08/2020,,989.52,ASC - Supported Living Care Costs,Not Yet Classified
Solihull MBC,Adult Social Care,Adult Social Care,Aspects Care Ltd,20/08/2020,,989.52,ASC - Supported Living Care Costs,Not Yet Classified
Solihull MBC,Adult Social Care,Adult Social Care,Aspects Care Ltd,20/08/2020,,845.88,ASC - Supported Living Care Costs,Not Yet Classified
Solihull MBC,Adult Social Care,Adult Social Care,Aspects Care Ltd,20/08/2020,,2042.88,ASC - Supported Living Care Costs,Not Yet Classified
Solihull MBC,Adult Social Care,Adult Social Care,Aspects Care Ltd,20/08/2020,,989.52,ASC - Supported Living Care Costs,Not Yet Classified
Solihull MBC,Adult Social Care,Adult Social Care,Aspects Care Ltd,20/08/2020,,957.6,ASC - Supported Living Care Costs,Not Yet Classified
Solihull MBC,Resources,Corporate & Democratic Core,Association Of Liberal Democrat Councillors And Campaigners,24/08/2020,,340,Training,Not Yet Classified
Solihull MBC,Children's Services & Skills,Children & Education Services,Aston Childrens Care,07/08/2020,,16800,Other Contracted Services,Not Yet Classified
Solihull MBC,Children's Services & Skills,Children & Education Services,Aston Childrens Care,07/08/2020,,16800,Other Contracted Services,Not Yet Classified
Solihull MBC,Children's Services & Skills,Children & Education Services,Aston Childrens Care,07/08/2020,,14400,Other Contracted Services,Not Yet Classified
Solihull MBC,Economy and Infrastructure,Planning & Development Services,Atkins,28/08/2020,,-6095.2,Agency Staff,150000 - Consultancy
Solihull MBC,Economy and Infrastructure,Planning & Development Services,Atkins,28/08/2020,,6095.2,Agency Staff,150000 - Consultancy
Solihull MBC,Economy and Infrastructure,Planning & Development Services,Atkins,11/08/2020,,21539,Professional Fees,150000 - Consultancy
Solihull MBC,Economy and Infrastructure,Highways & Transport Services,Atkins,26/08/2020,,8074.52,Agency Staff,150000 - Consultancy
Solihull MBC,Economy and Infrastructure,Planning & Development Services,Atkins,25/08/2020,,2836.24,Agency Staff,150000 - Consultancy
Solihull MBC,Resources,Central Services to the Public,Atkins,25/08/2020,,2455.4,Contractors,150000 - Consultancy
Solihull MBC,Economy and Infrastructure,Planning & Development Services,Atkins Ltd,05/08/2020,,4750,Professional Fees,150000 - Consultancy
Solihull MBC,Economy and Infrastructure,Planning & Development Services,Atkins Ltd,13/08/2020,,1811.25,Professional Fees,150000 - Consultancy
Solihull MBC,Economy and Infrastructure,Planning & Development Services,Atkins Ltd,13/08/2020,,1811.25,Professional Fees,150000 - Consultancy
Solihull MBC,Economy and Infrastructure,Planning & Development Services,Atkins Ltd,13/08/2020,,2072.25,Professional Fees,150000 - Consultancy
Solihull MBC,Economy and Infrastructure,Planning & Development Services,Atkins Ltd,13/08/2020,,2072.25,Professional Fees,150000 - Consultancy
Solihull MBC,Economy and Infrastructure,Planning & Development Services,Atkins Ltd,13/08/2020,,2072.25,Professional Fees,150000 - Consultancy
Solihull MBC,Economy and Infrastructure,Planning & Development Services,Atkins Ltd,13/08/2020,,2072.25,Professional Fees,150000 - Consultancy
Solihull MBC,Economy and Infrastructure,Planning & Development Services,Atkins Ltd,13/08/2020,,5827.5,Professional Fees,150000 - Consultancy
Solihull MBC,Economy and Infrastructure,Planning & Development Services,Atkins Ltd,13/08/2020,,1771.78,Professional Fees,150000 - Consultancy
Solihull MBC,Economy and Infrastructure,Planning & Development Services,Atkins Ltd,13/08/2020,,1771.78,Professional Fees,150000 - Consultancy
Solihull MBC,Economy and Infrastructure,Planning & Development Services,Atkins Ltd,13/08/2020,,1771.78,Professional Fees,150000 - Consultancy
Solihull MBC,Economy and Infrastructure,Planning & Development Services,Atkins Ltd,13/08/2020,,1771.76,Professional Fees,150000 - Consultancy
Solihull MBC,Economy and Infrastructure,Planning & Development Services,Atkins Ltd,13/08/2020,,731.25,Professional Fees,150000 - Consultancy
Solihull MBC,Economy and Infrastructure,Planning & Development Services,Atkins Ltd,13/08/2020,,731.25,Professional Fees,150000 - Consultancy
Solihull MBC,Economy and Infrastructure,Planning & Development Services,Atkins Ltd,13/08/2020,,731.25,Professional Fees,150000 - Consultancy
Solihull MBC,Economy and Infrastructure,Planning & Development Services,Atkins Ltd,13/08/2020,,731.25,Professional Fees,150000 - Consultancy
Solihull MBC,Economy and Infrastructure,Planning & Development Services,Atkins Ltd,05/08/2020,,10950,Professional Fees,150000 - Consultancy
Solihull MBC,Economy and Infrastructure,Planning & Development Services,Atkins Ltd,24/08/2020,,6046.7,Professional Fees,150000 - Consultancy
Solihull MBC,Adult Social Care,Cultural & Related Services,Audio Emporium,19/08/2020,,345,Furniture & Equipment,290000 - Arts & Leisure Services
Solihull MBC,Adult Social Care,Cultural & Related Services,Audio Emporium,28/08/2020,,273.35,Furniture & Equipment,290000 - Arts & Leisure Services
Solihull MBC,Resources,Other Housing Services,Auriga Services Ltd,05/08/2020,,757.2,Clients Expenses,Not Yet Classified
Solihull MBC,Adult Social Care,Adult Social Care,Autism West Midlands,13/08/2020,,6312.88,ASC - Residential Care Permanent,321000 - Social Community Care Supplies & Services - Adult
Solihull MBC,Adult Social Care,Adult Social Care,Autism West Midlands,19/08/2020,,2482.2,ASC - Supported Living Care Costs,321000 - Social Community Care Supplies & Services - Adult
Solihull MBC,Adult Social Care,Adult Social Care,Autism West Midlands,19/08/2020,,13641.6,ASC - Supported Living Care Costs,321000 - Social Community Care Supplies & Services - Adult
Solihull MBC,Adult Social Care,Adult Social Care,Autism West Midlands,19/08/2020,,2482.2,ASC - Supported Living Care Costs,321000 - Social Community Care Supplies & Services - Adult
Solihull MBC,Adult Social Care,Adult Social Care,Autism West Midlands,19/08/2020,,13641.6,ASC - Supported Living Care Costs,321000 - Social Community Care Supplies & Services - Adult
Solihull MBC,Adult Social Care,Adult Social Care,Autism West Midlands,13/08/2020,,6588.68,ASC - Residential Care Permanent,321000 - Social Community Care Supplies & Services - Adult
Solihull MBC,Adult Social Care,Adult Social Care,Autism West Midlands,19/08/2020,,3316.32,ASC - Domiciliary Care,321000 - Social Community Care Supplies & Services - Adult
Solihull MBC,Adult Social Care,Adult Social Care,Autism West Midlands,19/08/2020,,3316.32,ASC - Domiciliary Care,321000 - Social Community Care Supplies & Services - Adult
Solihull MBC,Adult Social Care,Adult Social Care,Autism West Midlands,13/08/2020,,5123.16,ASC - Residential Care Permanent,321000 - Social Community Care Supplies & Services - Adult
Solihull MBC,Adult Social Care,Adult Social Care,Avery Health Care,13/08/2020,,3674.72,ASC - Residential Care Permanent,Not Yet Classified
Solihull MBC,Adult Social Care,Adult Social Care,Avery Health Care,13/08/2020,,4059.72,ASC - Nursing Care Permanent,Not Yet Classified
Solihull MBC,Adult Social Care,Adult Social Care,Avery Health Care,13/08/2020,,4954.88,ASC - Residential Care Permanent,Not Yet Classified
Solihull MBC,Adult Social Care,Adult Social Care,Avery Health Care,13/08/2020,,2480.52,ASC - Residential Care Permanent,Not Yet Classified
Solihull MBC,Adult Social Care,Adult Social Care,Avery Health Care,13/08/2020,,2480.52,ASC - Residential Care Permanent,Not Yet Classified
Solihull MBC,Adult Social Care,Adult Social Care,Avery Homes (Nelson) Ltd,14/08/2020,,2480.52,ASC - Residential Care Respite,Not Yet Classified
Solihull MBC,Adult Social Care,Adult Social Care,Avery Homes (Nelson) Ltd,14/08/2020,,2500,ASC - Residential Care Respite,Not Yet Classified
Solihull MBC,Adult Social Care,Adult Social Care,Avery Homes (Nelson) Ltd,14/08/2020,,714.29,ASC - Residential Care Respite,Not Yet Classified
Solihull MBC,Adult Social Care,Adult Social Care,Avery Homes (Nelson) Ltd,14/08/2020,,-714.29,ASC - Residential Care Respite,Not Yet Classified
Solihull MBC,Adult Social Care,Adult Social Care,Avery Homes (Nelson) Ltd,14/08/2020,,2500,ASC - Nursing Care Respite,Not Yet Classified
Solihull MBC,Adult Social Care,Adult Social Care,Avery Homes (Nelson) Ltd,14/08/2020,,267.86,ASC - Residential Care Respite,Not Yet Classified
Solihull MBC,Adult Social Care,Adult Social Care,Avery Homes (Nelson) Ltd,14/08/2020,,2500,ASC - Residential Care Respite,Not Yet Classified
Solihull MBC,Adult Social Care,Adult Social Care,Avery Homes (Nelson) Ltd,14/08/2020,,1151.67,ASC - Residential Care Respite,Not Yet Classified
Solihull MBC,Adult Social Care,Adult Social Care,Avery Homes (Nelson) Ltd,14/08/2020,,2883.72,ASC - Nursing Care Permanent,Not Yet Classified
Solihull MBC,Adult Social Care,Adult Social Care,Avery Homes (Nelson) Ltd,14/08/2020,,-1100,ASC - Nursing Care Respite,Not Yet Classified
Solihull MBC,Adult Social Care,Adult Social Care,Avery Homes (Nelson) Ltd,14/08/2020,,1100,ASC - Nursing Care Respite,Not Yet Classified
Solihull MBC,Adult Social Care,Adult Social Care,Avery Homes (Nelson) Ltd,14/08/2020,,2324.4,ASC - Nursing Care Permanent,Not Yet Classified
Solihull MBC,Adult Social Care,Adult Social Care,Avery Homes (Nelson) Ltd,14/08/2020,,2324.4,ASC - Nursing Care Permanent,Not Yet Classified
Solihull MBC,Adult Social Care,Adult Social Care,Avery Homes (Nelson) Ltd,14/08/2020,,2503.2,ASC - Nursing Care Permanent,Not Yet Classified
Solihull MBC,Adult Social Care,Adult Social Care,Avery Homes (Nelson) Ltd,14/08/2020,,2503.2,ASC - Nursing Care Permanent,Not Yet Classified
Solihull MBC,Adult Social Care,Adult Social Care,Avery Homes (Nelson) Ltd,14/08/2020,,2503.2,ASC - Nursing Care Permanent,Not Yet Classified
Solihull MBC,Adult Social Care,Adult Social Care,Avery Homes (Nelson) Ltd,14/08/2020,,2503.2,ASC - Nursing Care Permanent,Not Yet Classified
Solihull MBC,Adult Social Care,Adult Social Care,Avery Homes (Nelson) Ltd,14/08/2020,,1700,ASC - Nursing Care Respite,Not Yet Classified
Solihull MBC,Adult Social Care,Adult Social Care,Avery Homes (Nelson) Ltd,14/08/2020,,1000,ASC - Nursing Care Respite,Not Yet Classified
Solihull MBC,Adult Social Care,Adult Social Care,Avery Homes (Nelson) Ltd,14/08/2020,,3263.96,ASC - Nursing Care Permanent,Not Yet Classified
Solihull MBC,Adult Social Care,Adult Social Care,Avery Homes (Nelson) Ltd,14/08/2020,,1900,ASC - Nursing Care Respite,Not Yet Classified
Solihull MBC,Adult Social Care,Adult Social Care,Avery Homes (Nelson) Ltd,14/08/2020,,500,ASC - Nursing Care Respite,Not Yet Classified
Solihull MBC,Adult Social Care,Adult Social Care,Avery Homes (Nelson) Ltd,14/08/2020,,2480,ASC - Nursing Care Respite,Not Yet Classified
Solihull MBC,Adult Social Care,Adult Social Care,Avery Homes (Nelson) Ltd,14/08/2020,,803.57,ASC - Residential Care Respite,Not Yet Classified
Solihull MBC,Adult Social Care,Adult Social Care,Avery Homes (Nelson) Ltd,14/08/2020,,-803.57,ASC - Residential Care Respite,Not Yet Classified
Solihull MBC,Adult Social Care,Adult Social Care,Avery Homes (Nelson) Ltd,14/08/2020,,3883.6,ASC - Nursing Care Permanent,Not Yet Classified
Solihull MBC,Adult Social Care,Adult Social Care,Avery Homes (Nelson) Ltd,14/08/2020,,2468,ASC - Residential Care Respite,Not Yet Classified
Solihull MBC,Adult Social Care,Adult Social Care,Avery Homes (Nelson) Ltd,14/08/2020,,1250,ASC - Residential Care Respite,Not Yet Classified
Solihull MBC,Adult Social Care,Adult Social Care,Avery Homes (Nelson) Ltd,14/08/2020,,1339.29,ASC - Residential Care Respite,Not Yet Classified
Solihull MBC,Adult Social Care,Adult Social Care,Avery Homes (Nelson) Ltd,14/08/2020,,-400,ASC - Nursing Care Respite,Not Yet Classified
Solihull MBC,Adult Social Care,Adult Social Care,Avery Homes (Nelson) Ltd,14/08/2020,,2736.72,ASC - Nursing Care Respite,Not Yet Classified
Solihull MBC,Adult Social Care,Adult Social Care,Avery Homes (Nelson) Ltd,14/08/2020,,-500,ASC - Nursing Care Respite,Not Yet Classified
Solihull MBC,Adult Social Care,Adult Social Care,Avery Homes (Nelson) Ltd,14/08/2020,,-2000,ASC - Nursing Care Respite,Not Yet Classified
Solihull MBC,Adult Social Care,Adult Social Care,Avery Homes (Nelson) Ltd,14/08/2020,,3888.64,ASC - Nursing Care Permanent,Not Yet Classified
Solihull MBC,Adult Social Care,Adult Social Care,Avery Homes (Nelson) Ltd,14/08/2020,,1500,ASC - Nursing Care Respite,Not Yet Classified
Solihull MBC,Adult Social Care,Adult Social Care,Avery Homes (Nelson) Ltd,14/08/2020,,3283.84,ASC - Nursing Care Permanent,Not Yet Classified
Solihull MBC,Adult Social Care,Adult Social Care,Avery Homes (Nelson) Ltd,14/08/2020,,2480.52,ASC - Residential Care Respite,Not Yet Classified
Solihull MBC,Adult Social Care,Adult Social Care,Avery Homes (Nelson) Ltd,14/08/2020,,446.43,ASC - Residential Care Respite,Not Yet Classified
Solihull MBC,Adult Social Care,Adult Social Care,Avery Homes (Nelson) Ltd,14/08/2020,,625,ASC - Residential Care Respite,Not Yet Classified
Solihull MBC,Adult Social Care,Adult Social Care,Avery Homes (Nelson) Ltd,14/08/2020,,2800,ASC - Residential Care Respite,Not Yet Classified
Solihull MBC,Adult Social Care,Adult Social Care,Avery Homes (Nelson) Ltd,14/08/2020,,-446.43,ASC - Residential Care Respite,Not Yet Classified
Solihull MBC,Adult Social Care,Adult Social Care,Avery Homes (Nelson) Ltd,14/08/2020,,267.86,ASC - Residential Care Respite,Not Yet Classified
Solihull MBC,Adult Social Care,Adult Social Care,Avery Homes (Nelson) Ltd,14/08/2020,,2500,ASC - Residential Care Respite,Not Yet Classified
Solihull MBC,Adult Social Care,Adult Social Care,Avery Homes (Nelson) Ltd,14/08/2020,,2800,ASC - Nursing Care Respite,Not Yet Classified
Solihull MBC,Adult Social Care,Adult Social Care,Avery Homes (Nelson) Ltd,14/08/2020,,-1788,ASC - Nursing Care Permanent,Not Yet Classified
Solihull MBC,Adult Social Care,Adult Social Care,Avery Homes (Nelson) Ltd,14/08/2020,,-2503.2,ASC - Nursing Care Permanent,Not Yet Classified
Solihull MBC,Adult Social Care,Adult Social Care,Avery Homes (Nelson) Ltd,14/08/2020,,-2503.2,ASC - Nursing Care Permanent,Not Yet Classified
Solihull MBC,Adult Social Care,Adult Social Care,Avery Homes (Nelson) Ltd,14/08/2020,,2500,ASC - Residential Care Respite,Not Yet Classified
Solihull MBC,Adult Social Care,Adult Social Care,Avery Homes (Nelson) Ltd,14/08/2020,,-446.43,ASC - Residential Care Respite,Not Yet Classified
Solihull MBC,Adult Social Care,Adult Social Care,Avery Homes (Nelson) Ltd,14/08/2020,,446.43,ASC - Residential Care Respite,Not Yet Classified
Solihull MBC,Adult Social Care,Adult Social Care,Avery Homes (Nelson) Ltd,14/08/2020,,1376.1,ASC - Residential Care Respite,Not Yet Classified
Solihull MBC,Adult Social Care,Adult Social Care,Avery Homes (Nelson) Ltd,14/08/2020,,803.57,ASC - Residential Care Respite,Not Yet Classified
Solihull MBC,Adult Social Care,Adult Social Care,Avery Homes (Nelson) Ltd,14/08/2020,,-700,ASC - Nursing Care Respite,Not Yet Classified
Solihull MBC,Adult Social Care,Adult Social Care,Avery Homes (Nelson) Ltd,14/08/2020,,3283.84,ASC - Nursing Care Respite,Not Yet Classified
Solihull MBC,Adult Social Care,Adult Social Care,Avery Homes (Nelson) Ltd,14/08/2020,,2142.86,ASC - Residential Care Respite,Not Yet Classified
Solihull MBC,Adult Social Care,Adult Social Care,Avery Homes (Nelson) Ltd,14/08/2020,,446.43,ASC - Residential Care Respite,Not Yet Classified
Solihull MBC,Adult Social Care,Adult Social Care,Avery Homes (Nelson) Ltd,14/08/2020,,-446.43,ASC - Residential Care Respite,Not Yet Classified
Solihull MBC,Adult Social Care,Adult Social Care,Avery Homes (Nelson) Ltd,14/08/2020,,267.86,ASC - Residential Care Respite,Not Yet Classified
Solihull MBC,Adult Social Care,Adult Social Care,Avery Homes (Nelson) Ltd,14/08/2020,,2731.68,ASC - Nursing Care Permanent,Not Yet Classified
Solihull MBC,Adult Social Care,Adult Social Care,Avery Homes (Nelson) Ltd,14/08/2020,,983.4,ASC - Nursing Care Respite,Not Yet Classified
Solihull MBC,Adult Social Care,Adult Social Care,Avery Homes (Nelson) Ltd,14/08/2020,,700,ASC - Nursing Care Respite,Not Yet Classified
Solihull MBC,Adult Social Care,Adult Social Care,Avery Homes (Nelson) Ltd,14/08/2020,,797.31,ASC - Residential Care Respite,Not Yet Classified
Solihull MBC,Adult Social Care,Adult Social Care,Avery Homes (Nelson) Ltd,14/08/2020,,1696.43,ASC - Residential Care Respite,Not Yet Classified
Solihull MBC,Adult Social Care,Adult Social Care,Avery Homes (Nelson) Ltd,14/08/2020,,1500,ASC - Nursing Care Respite,Not Yet Classified
Solihull MBC,Adult Social Care,Adult Social Care,Avery Homes (Nelson) Ltd,14/08/2020,,1075.14,ASC - Nursing Care Respite,Not Yet Classified
Solihull MBC,Adult Social Care,Adult Social Care,Avery Homes (Nelson) Ltd,14/08/2020,,1300,ASC - Nursing Care Respite,Not Yet Classified
Solihull MBC,Adult Social Care,Adult Social Care,Avery Homes (Nelson) Ltd,14/08/2020,,2500,ASC - Residential Care Respite,Not Yet Classified
Solihull MBC,Adult Social Care,Adult Social Care,Avery Homes (Nelson) Ltd,14/08/2020,,982.14,ASC - Residential Care Respite,Not Yet Classified
Solihull MBC,Adult Social Care,Adult Social Care,Avery Homes (Nelson) Ltd,14/08/2020,,2413.8,ASC - Nursing Care Respite,Not Yet Classified
Solihull MBC,Adult Social Care,Adult Social Care,Avery Homes (Nelson) Ltd,14/08/2020,,1400,ASC - Nursing Care Respite,Not Yet Classified
Solihull MBC,Adult Social Care,Adult Social Care,Avery Homes (Nelson) Ltd,14/08/2020,,600,ASC - Nursing Care Respite,Not Yet Classified
Solihull MBC,Adult Social Care,Adult Social Care,B&M Investments Ltd (Reference:Tm0318),13/08/2020,,2749.04,ASC - Nursing Care Permanent,Not Yet Classified
Solihull MBC,Economy and Infrastructure,Highways & Transport Services,Balfour Beatty Living Places Ltd,13/08/2020,,100,Other Contracted Services,"391400 - Works - Construction, Repair & Maintenance"
Solihull MBC,Economy and Infrastructure,Highways & Transport Services,Balfour Beatty Living Places Ltd,13/08/2020,,100,Other Contracted Services,"391400 - Works - Construction, Repair & Maintenance"
Solihull MBC,Economy and Infrastructure,Highways & Transport Services,Balfour Beatty Living Places Ltd,13/08/2020,,100,Other Contracted Services,"391400 - Works - Construction, Repair & Maintenance"
Solihull MBC,Economy and Infrastructure,Highways & Transport Services,Balfour Beatty Living Places Ltd,13/08/2020,,1024,Other Contracted Services,"391400 - Works - Construction, Repair & Maintenance"
Solihull MBC,Economy and Infrastructure,Highways & Transport Services,Balfour Beatty Living Places Ltd,13/08/2020,,1993.55,Other Contracted Services,"391400 - Works - Construction, Repair & Maintenance"
Solihull MBC,Economy and Infrastructure,Highways & Transport Services,Balfour Beatty Living Places Ltd,13/08/2020,,38.45,Other Contracted Services,"391400 - Works - Construction, Repair & Maintenance"
Solihull MBC,Economy and Infrastructure,Highways & Transport Services,Balfour Beatty Living Places Ltd,13/08/2020,,38.45,Other Contracted Services,"391400 - Works - Construction, Repair & Maintenance"
Solihull MBC,Economy and Infrastructure,Highways & Transport Services,Balfour Beatty Living Places Ltd,13/08/2020,,1776,Other Contracted Services,"391400 - Works - Construction, Repair & Maintenance"
Solihull MBC,Economy and Infrastructure,Highways & Transport Services,Balfour Beatty Living Places Ltd,13/08/2020,,38.14,Other Contracted Services,"391400 - Works - Construction, Repair & Maintenance"
Solihull MBC,Economy and Infrastructure,Highways & Transport Services,Balfour Beatty Living Places Ltd,13/08/2020,,33.66,Other Contracted Services,"391400 - Works - Construction, Repair & Maintenance"
Solihull MBC,Economy and Infrastructure,Highways & Transport Services,Balfour Beatty Living Places Ltd,13/08/2020,,215.3,Other Contracted Services,"391400 - Works - Construction, Repair & Maintenance"
Solihull MBC,Economy and Infrastructure,Highways & Transport Services,Balfour Beatty Living Places Ltd,13/08/2020,,123.57,Other Contracted Services,"391400 - Works - Construction, Repair & Maintenance"
Solihull MBC,Economy and Infrastructure,Highways & Transport Services,Balfour Beatty Living Places Ltd,13/08/2020,,56.88,Other Contracted Services,"391400 - Works - Construction, Repair & Maintenance"
Solihull MBC,Economy and Infrastructure,Highways & Transport Services,Balfour Beatty Living Places Ltd,13/08/2020,,133.43,Other Contracted Services,"391400 - Works - Construction, Repair & Maintenance"
Solihull MBC,Economy and Infrastructure,Highways & Transport Services,Balfour Beatty Living Places Ltd,13/08/2020,,32.47,Other Contracted Services,"391400 - Works - Construction, Repair & Maintenance"
Solihull MBC,Economy and Infrastructure,Highways & Transport Services,Balfour Beatty Living Places Ltd,13/08/2020,,400,Other Contracted Services,"391400 - Works - Construction, Repair & Maintenance"
Solihull MBC,Economy and Infrastructure,Highways & Transport Services,Balfour Beatty Living Places Ltd,13/08/2020,,38.81,Other Contracted Services,"391400 - Works - Construction, Repair & Maintenance"
Solihull MBC,Economy and Infrastructure,Highways & Transport Services,Balfour Beatty Living Places Ltd,13/08/2020,,24.95,Other Contracted Services,"391400 - Works - Construction, Repair & Maintenance"
Solihull MBC,Economy and Infrastructure,Highways & Transport Services,Balfour Beatty Living Places Ltd,13/08/2020,,44.21,Other Contracted Services,"391400 - Works - Construction, Repair & Maintenance"
Solihull MBC,Economy and Infrastructure,Highways & Transport Services,Balfour Beatty Living Places Ltd,13/08/2020,,168.02,Other Contracted Services,"391400 - Works - Construction, Repair & Maintenance"
Solihull MBC,Economy and Infrastructure,Highways & Transport Services,Balfour Beatty Living Places Ltd,13/08/2020,,144.24,Other Contracted Services,"391400 - Works - Construction, Repair & Maintenance"
Solihull MBC,Economy and Infrastructure,Highways & Transport Services,Balfour Beatty Living Places Ltd,13/08/2020,,132.51,Other Contracted Services,"391400 - Works - Construction, Repair & Maintenance"
Solihull MBC,Economy and Infrastructure,Highways & Transport Services,Balfour Beatty Living Places Ltd,13/08/2020,,9.9,Other Contracted Services,"391400 - Works - Construction, Repair & Maintenance"
Solihull MBC,Economy and Infrastructure,Highways & Transport Services,Balfour Beatty Living Places Ltd,13/08/2020,,71.53,Other Contracted Services,"391400 - Works - Construction, Repair & Maintenance"
Solihull MBC,Economy and Infrastructure,Highways & Transport Services,Balfour Beatty Living Places Ltd,13/08/2020,,65.59,Other Contracted Services,"391400 - Works - Construction, Repair & Maintenance"
Solihull MBC,Economy and Infrastructure,Highways & Transport Services,Balfour Beatty Living Places Ltd,13/08/2020,,54.51,Other Contracted Services,"391400 - Works - Construction, Repair & Maintenance"
Solihull MBC,Economy and Infrastructure,Highways & Transport Services,Balfour Beatty Living Places Ltd,13/08/2020,,147.25,Other Contracted Services,"391400 - Works - Construction, Repair & Maintenance"
Solihull MBC,Economy and Infrastructure,Highways & Transport Services,Balfour Beatty Living Places Ltd,13/08/2020,,177.22,Other Contracted Services,"391400 - Works - Construction, Repair & Maintenance"
Solihull MBC,Economy and Infrastructure,Highways & Transport Services,Balfour Beatty Living Places Ltd,13/08/2020,,30.62,Other Contracted Services,"391400 - Works - Construction, Repair & Maintenance"
Solihull MBC,Economy and Infrastructure,Highways & Transport Services,Balfour Beatty Living Places Ltd,13/08/2020,,34.98,Other Contracted Services,"391400 - Works - Construction, Repair & Maintenance"
Solihull MBC,Economy and Infrastructure,Highways & Transport Services,Balfour Beatty Living Places Ltd,13/08/2020,,19.8,Other Contracted Services,"391400 - Works - Construction, Repair & Maintenance"
Solihull MBC,Economy and Infrastructure,Highways & Transport Services,Balfour Beatty Living Places Ltd,13/08/2020,,24.94,Other Contracted Services,"391400 - Works - Construction, Repair & Maintenance"
Solihull MBC,Economy and Infrastructure,Highways & Transport Services,Balfour Beatty Living Places Ltd,13/08/2020,,23.36,Other Contracted Services,"391400 - Works - Construction, Repair & Maintenance"
Solihull MBC,Economy and Infrastructure,Highways & Transport Services,Balfour Beatty Living Places Ltd,13/08/2020,,50.68,Other Contracted Services,"391400 - Works - Construction, Repair & Maintenance"
Solihull MBC,Economy and Infrastructure,Highways & Transport Services,Balfour Beatty Living Places Ltd,13/08/2020,,51.08,Other Contracted Services,"391400 - Works - Construction, Repair & Maintenance"
Solihull MBC,Economy and Infrastructure,Highways & Transport Services,Balfour Beatty Living Places Ltd,13/08/2020,,31.82,Other Contracted Services,"391400 - Works - Construction, Repair & Maintenance"
Solihull MBC,Economy and Infrastructure,Highways & Transport Services,Balfour Beatty Living Places Ltd,13/08/2020,,33,Other Contracted Services,"391400 - Works - Construction, Repair & Maintenance"
Solihull MBC,Economy and Infrastructure,Highways & Transport Services,Balfour Beatty Living Places Ltd,13/08/2020,,55.03,Other Contracted Services,"391400 - Works - Construction, Repair & Maintenance"
Solihull MBC,Economy and Infrastructure,Highways & Transport Services,Balfour Beatty Living Places Ltd,13/08/2020,,32.21,Other Contracted Services,"391400 - Works - Construction, Repair & Maintenance"
Solihull MBC,Economy and Infrastructure,Highways & Transport Services,Balfour Beatty Living Places Ltd,13/08/2020,,19.66,Other Contracted Services,"391400 - Works - Construction, Repair & Maintenance"
Solihull MBC,Economy and Infrastructure,Highways & Transport Services,Balfour Beatty Living Places Ltd,13/08/2020,,53.45,Other Contracted Services,"391400 - Works - Construction, Repair & Maintenance"
Solihull MBC,Economy and Infrastructure,Highways & Transport Services,Balfour Beatty Living Places Ltd,13/08/2020,,94.09,Other Contracted Services,"391400 - Works - Construction, Repair & Maintenance"
Solihull MBC,Economy and Infrastructure,Highways & Transport Services,Balfour Beatty Living Places Ltd,13/08/2020,,13.2,Other Contracted Services,"391400 - Works - Construction, Repair & Maintenance"
Solihull MBC,Economy and Infrastructure,Highways & Transport Services,Balfour Beatty Living Places Ltd,13/08/2020,,63.35,Other Contracted Services,"391400 - Works - Construction, Repair & Maintenance"
Solihull MBC,Economy and Infrastructure,Highways & Transport Services,Balfour Beatty Living Places Ltd,13/08/2020,,38.41,Other Contracted Services,"391400 - Works - Construction, Repair & Maintenance"
Solihull MBC,Economy and Infrastructure,Highways & Transport Services,Balfour Beatty Living Places Ltd,13/08/2020,,30.5,Other Contracted Services,"391400 - Works - Construction, Repair & Maintenance"
Solihull MBC,Economy and Infrastructure,Highways & Transport Services,Balfour Beatty Living Places Ltd,13/08/2020,,400,Other Contracted Services,"391400 - Works - Construction, Repair & Maintenance"
Solihull MBC,Economy and Infrastructure,Highways & Transport Services,Balfour Beatty Living Places Ltd,13/08/2020,,500,Other Contracted Services,"391400 - Works - Construction, Repair & Maintenance"
Solihull MBC,Economy and Infrastructure,Highways & Transport Services,Balfour Beatty Living Places Ltd,13/08/2020,,1000,Other Contracted Services,"391400 - Works - Construction, Repair & Maintenance"
Solihull MBC,Economy and Infrastructure,Highways & Transport Services,Balfour Beatty Living Places Ltd,13/08/2020,,1.98,Other Contracted Services,"391400 - Works - Construction, Repair & Maintenance"
Solihull MBC,Economy and Infrastructure,Highways & Transport Services,Balfour Beatty Living Places Ltd,13/08/2020,,700,Other Contracted Services,"391400 - Works - Construction, Repair & Maintenance"
Solihull MBC,Economy and Infrastructure,Highways & Transport Services,Balfour Beatty Living Places Ltd,13/08/2020,,1723.77,Other Contracted Services,"391400 - Works - Construction, Repair & Maintenance"
Solihull MBC,Economy and Infrastructure,Highways & Transport Services,Balfour Beatty Living Places Ltd,13/08/2020,,310.62,Other Contracted Services,"391400 - Works - Construction, Repair & Maintenance"
Solihull MBC,Economy and Infrastructure,Highways & Transport Services,Balfour Beatty Living Places Ltd,13/08/2020,,1500,Other Contracted Services,"391400 - Works - Construction, Repair & Maintenance"
Solihull MBC,Economy and Infrastructure,Highways & Transport Services,Balfour Beatty Living Places Ltd,13/08/2020,,2000,Other Contracted Services,"391400 - Works - Construction, Repair & Maintenance"
Solihull MBC,Economy and Infrastructure,Highways & Transport Services,Balfour Beatty Living Places Ltd,13/08/2020,,4.62,Other Contracted Services,"391400 - Works - Construction, Repair & Maintenance"
Solihull MBC,Economy and Infrastructure,Highways & Transport Services,Balfour Beatty Living Places Ltd,13/08/2020,,896.14,Other Contracted Services,"391400 - Works - Construction, Repair & Maintenance"
Solihull MBC,Economy and Infrastructure,Highways & Transport Services,Balfour Beatty Living Places Ltd,13/08/2020,,30.5,Other Contracted Services,"391400 - Works - Construction, Repair & Maintenance"
Solihull MBC,Economy and Infrastructure,Highways & Transport Services,Balfour Beatty Living Places Ltd,13/08/2020,,213.56,Other Contracted Services,"391400 - Works - Construction, Repair & Maintenance"
Solihull MBC,Economy and Infrastructure,Highways & Transport Services,Balfour Beatty Living Places Ltd,13/08/2020,,238.78,Other Contracted Services,"391400 - Works - Construction, Repair & Maintenance"
Solihull MBC,Economy and Infrastructure,Highways & Transport Services,Balfour Beatty Living Places Ltd,13/08/2020,,308.9,Other Contracted Services,"391400 - Works - Construction, Repair & Maintenance"
Solihull MBC,Economy and Infrastructure,Highways & Transport Services,Balfour Beatty Living Places Ltd,13/08/2020,,801.78,Other Contracted Services,"391400 - Works - Construction, Repair & Maintenance"
Solihull MBC,Economy and Infrastructure,Highways & Transport Services,Balfour Beatty Living Places Ltd,13/08/2020,,7.39,Other Contracted Services,"391400 - Works - Construction, Repair & Maintenance"
Solihull MBC,Economy and Infrastructure,Highways & Transport Services,Balfour Beatty Living Places Ltd,13/08/2020,,1657.93,Other Contracted Services,"391400 - Works - Construction, Repair & Maintenance"
Solihull MBC,Economy and Infrastructure,Highways & Transport Services,Balfour Beatty Living Places Ltd,13/08/2020,,3412.45,Other Contracted Services,"391400 - Works - Construction, Repair & Maintenance"
Solihull MBC,Economy and Infrastructure,Highways & Transport Services,Balfour Beatty Living Places Ltd,13/08/2020,,1586.28,Other Contracted Services,"391400 - Works - Construction, Repair & Maintenance"
Solihull MBC,Economy and Infrastructure,Highways & Transport Services,Balfour Beatty Living Places Ltd,13/08/2020,,1914.86,Other Contracted Services,"391400 - Works - Construction, Repair & Maintenance"
Solihull MBC,Economy and Infrastructure,Highways & Transport Services,Balfour Beatty Living Places Ltd,13/08/2020,,1371.92,Other Contracted Services,"391400 - Works - Construction, Repair & Maintenance"
Solihull MBC,Economy and Infrastructure,Highways & Transport Services,Balfour Beatty Living Places Ltd,13/08/2020,,432.72,Other Contracted Services,"391400 - Works - Construction, Repair & Maintenance"
Solihull MBC,Economy and Infrastructure,Highways & Transport Services,Balfour Beatty Living Places Ltd,13/08/2020,,503.53,Other Contracted Services,"391400 - Works - Construction, Repair & Maintenance"
Solihull MBC,Economy and Infrastructure,Highways & Transport Services,Balfour Beatty Living Places Ltd,13/08/2020,,475.64,Other Contracted Services,"391400 - Works - Construction, Repair & Maintenance"
Solihull MBC,Economy and Infrastructure,Highways & Transport Services,Balfour Beatty Living Places Ltd,13/08/2020,,2083.85,Other Contracted Services,"391400 - Works - Construction, Repair & Maintenance"
Solihull MBC,Economy and Infrastructure,Highways & Transport Services,Balfour Beatty Living Places Ltd,13/08/2020,,118.91,Other Contracted Services,"391400 - Works - Construction, Repair & Maintenance"
Solihull MBC,Economy and Infrastructure,Highways & Transport Services,Balfour Beatty Living Places Ltd,13/08/2020,,2055.87,Other Contracted Services,"391400 - Works - Construction, Repair & Maintenance"
Solihull MBC,Economy and Infrastructure,Highways & Transport Services,Balfour Beatty Living Places Ltd,13/08/2020,,118.91,Other Contracted Services,"391400 - Works - Construction, Repair & Maintenance"
Solihull MBC,Economy and Infrastructure,Highways & Transport Services,Balfour Beatty Living Places Ltd,13/08/2020,,118.91,Other Contracted Services,"391400 - Works - Construction, Repair & Maintenance"
Solihull MBC,Economy and Infrastructure,Highways & Transport Services,Balfour Beatty Living Places Ltd,13/08/2020,,118.91,Other Contracted Services,"391400 - Works - Construction, Repair & Maintenance"
Solihull MBC,Economy and Infrastructure,Highways & Transport Services,Balfour Beatty Living Places Ltd,13/08/2020,,118.91,Other Contracted Services,"391400 - Works - Construction, Repair & Maintenance"
Solihull MBC,Economy and Infrastructure,Highways & Transport Services,Balfour Beatty Living Places Ltd,13/08/2020,,118.91,Other Contracted Services,"391400 - Works - Construction, Repair & Maintenance"
Solihull MBC,Economy and Infrastructure,Highways & Transport Services,Balfour Beatty Living Places Ltd,13/08/2020,,118.91,Other Contracted Services,"391400 - Works - Construction, Repair & Maintenance"
Solihull MBC,Economy and Infrastructure,Highways & Transport Services,Balfour Beatty Living Places Ltd,13/08/2020,,118.91,Other Contracted Services,"391400 - Works - Construction, Repair & Maintenance"
Solihull MBC,Economy and Infrastructure,Highways & Transport Services,Balfour Beatty Living Places Ltd,13/08/2020,,118.91,Other Contracted Services,"391400 - Works - Construction, Repair & Maintenance"
Solihull MBC,Economy and Infrastructure,Highways & Transport Services,Balfour Beatty Living Places Ltd,13/08/2020,,118.91,Other Contracted Services,"391400 - Works - Construction, Repair & Maintenance"
Solihull MBC,Economy and Infrastructure,Highways & Transport Services,Balfour Beatty Living Places Ltd,13/08/2020,,32,Other Contracted Services,"391400 - Works - Construction, Repair & Maintenance"
Solihull MBC,Economy and Infrastructure,Highways & Transport Services,Balfour Beatty Living Places Ltd,13/08/2020,,118.91,Other Contracted Services,"391400 - Works - Construction, Repair & Maintenance"
Solihull MBC,Economy and Infrastructure,Highways & Transport Services,Balfour Beatty Living Places Ltd,13/08/2020,,118.91,Other Contracted Services,"391400 - Works - Construction, Repair & Maintenance"
Solihull MBC,Economy and Infrastructure,Highways & Transport Services,Balfour Beatty Living Places Ltd,13/08/2020,,113.59,Other Contracted Services,"391400 - Works - Construction, Repair & Maintenance"
Solihull MBC,Economy and Infrastructure,Highways & Transport Services,Balfour Beatty Living Places Ltd,13/08/2020,,118.91,Other Contracted Services,"391400 - Works - Construction, Repair & Maintenance"
Solihull MBC,Economy and Infrastructure,Highways & Transport Services,Balfour Beatty Living Places Ltd,13/08/2020,,118.91,Other Contracted Services,"391400 - Works - Construction, Repair & Maintenance"
Solihull MBC,Economy and Infrastructure,Highways & Transport Services,Balfour Beatty Living Places Ltd,13/08/2020,,118.91,Other Contracted Services,"391400 - Works - Construction, Repair & Maintenance"
Solihull MBC,Economy and Infrastructure,Highways & Transport Services,Balfour Beatty Living Places Ltd,13/08/2020,,118.91,Other Contracted Services,"391400 - Works - Construction, Repair & Maintenance"
Solihull MBC,Economy and Infrastructure,Highways & Transport Services,Balfour Beatty Living Places Ltd,13/08/2020,,118.91,Other Contracted Services,"391400 - Works - Construction, Repair & Maintenance"
Solihull MBC,Economy and Infrastructure,Highways & Transport Services,Balfour Beatty Living Places Ltd,13/08/2020,,118.91,Other Contracted Services,"391400 - Works - Construction, Repair & Maintenance"
Solihull MBC,Economy and Infrastructure,Highways & Transport Services,Balfour Beatty Living Places Ltd,13/08/2020,,118.91,Other Contracted Services,"391400 - Works - Construction, Repair & Maintenance"
Solihull MBC,Economy and Infrastructure,Highways & Transport Services,Balfour Beatty Living Places Ltd,13/08/2020,,1384.56,Other Contracted Services,"391400 - Works - Construction, Repair & Maintenance"
Solihull MBC,Economy and Infrastructure,Highways & Transport Services,Balfour Beatty Living Places Ltd,13/08/2020,,3262.82,Other Contracted Services,"391400 - Works - Construction, Repair & Maintenance"
Solihull MBC,Economy and Infrastructure,Highways & Transport Services,Balfour Beatty Living Places Ltd,13/08/2020,,2401.09,Other Contracted Services,"391400 - Works - Construction, Repair & Maintenance"
Solihull MBC,Economy and Infrastructure,Highways & Transport Services,Balfour Beatty Living Places Ltd,13/08/2020,,151.54,Other Contracted Services,"391400 - Works - Construction, Repair & Maintenance"
Solihull MBC,Economy and Infrastructure,Highways & Transport Services,Balfour Beatty Living Places Ltd,13/08/2020,,59.54,Other Contracted Services,"391400 - Works - Construction, Repair & Maintenance"
Solihull MBC,Economy and Infrastructure,Highways & Transport Services,Balfour Beatty Living Places Ltd,13/08/2020,,151.54,Other Contracted Services,"391400 - Works - Construction, Repair & Maintenance"
Solihull MBC,Economy and Infrastructure,Highways & Transport Services,Balfour Beatty Living Places Ltd,13/08/2020,,151.54,Other Contracted Services,"391400 - Works - Construction, Repair & Maintenance"
Solihull MBC,Economy and Infrastructure,Highways & Transport Services,Balfour Beatty Living Places Ltd,13/08/2020,,743.66,Other Contracted Services,"391400 - Works - Construction, Repair & Maintenance"
Solihull MBC,Economy and Infrastructure,Highways & Transport Services,Balfour Beatty Living Places Ltd,13/08/2020,,2201.7,Other Contracted Services,"391400 - Works - Construction, Repair & Maintenance"
Solihull MBC,Economy and Infrastructure,Highways & Transport Services,Balfour Beatty Living Places Ltd,13/08/2020,,153.95,Other Contracted Services,"391400 - Works - Construction, Repair & Maintenance"
Solihull MBC,Economy and Infrastructure,Highways & Transport Services,Balfour Beatty Living Places Ltd,13/08/2020,,295.15,Other Contracted Services,"391400 - Works - Construction, Repair & Maintenance"
Solihull MBC,Economy and Infrastructure,Highways & Transport Services,Balfour Beatty Living Places Ltd,13/08/2020,,378.18,Other Contracted Services,"391400 - Works - Construction, Repair & Maintenance"
Solihull MBC,Economy and Infrastructure,Highways & Transport Services,Balfour Beatty Living Places Ltd,13/08/2020,,766.87,Other Contracted Services,"391400 - Works - Construction, Repair & Maintenance"
Solihull MBC,Economy and Infrastructure,Highways & Transport Services,Balfour Beatty Living Places Ltd,13/08/2020,,153.95,Other Contracted Services,"391400 - Works - Construction, Repair & Maintenance"
Solihull MBC,Economy and Infrastructure,Highways & Transport Services,Balfour Beatty Living Places Ltd,13/08/2020,,11.2,Other Contracted Services,"391400 - Works - Construction, Repair & Maintenance"
Solihull MBC,Economy and Infrastructure,Highways & Transport Services,Balfour Beatty Living Places Ltd,13/08/2020,,222.8,Other Contracted Services,"391400 - Works - Construction, Repair & Maintenance"
Solihull MBC,Economy and Infrastructure,Highways & Transport Services,Balfour Beatty Living Places Ltd,13/08/2020,,233.42,Other Contracted Services,"391400 - Works - Construction, Repair & Maintenance"
Solihull MBC,Economy and Infrastructure,Highways & Transport Services,Balfour Beatty Living Places Ltd,13/08/2020,,48.84,Other Contracted Services,"391400 - Works - Construction, Repair & Maintenance"
Solihull MBC,Economy and Infrastructure,Highways & Transport Services,Balfour Beatty Living Places Ltd,13/08/2020,,957.13,Other Contracted Services,"391400 - Works - Construction, Repair & Maintenance"
Solihull MBC,Economy and Infrastructure,Highways & Transport Services,Balfour Beatty Living Places Ltd,13/08/2020,,318.97,Other Contracted Services,"391400 - Works - Construction, Repair & Maintenance"
Solihull MBC,Economy and Infrastructure,Highways & Transport Services,Balfour Beatty Living Places Ltd,13/08/2020,,1496.03,Other Contracted Services,"391400 - Works - Construction, Repair & Maintenance"
Solihull MBC,Economy and Infrastructure,Highways & Transport Services,Balfour Beatty Living Places Ltd,13/08/2020,,38.49,Other Contracted Services,"391400 - Works - Construction, Repair & Maintenance"
Solihull MBC,Economy and Infrastructure,Highways & Transport Services,Balfour Beatty Living Places Ltd,13/08/2020,,21.78,Other Contracted Services,"391400 - Works - Construction, Repair & Maintenance"
Solihull MBC,Economy and Infrastructure,Highways & Transport Services,Balfour Beatty Living Places Ltd,13/08/2020,,271.76,Other Contracted Services,"391400 - Works - Construction, Repair & Maintenance"
Solihull MBC,Economy and Infrastructure,Highways & Transport Services,Balfour Beatty Living Places Ltd,13/08/2020,,219.12,Other Contracted Services,"391400 - Works - Construction, Repair & Maintenance"
Solihull MBC,Economy and Infrastructure,Highways & Transport Services,Balfour Beatty Living Places Ltd,13/08/2020,,38.94,Other Contracted Services,"391400 - Works - Construction, Repair & Maintenance"
Solihull MBC,Economy and Infrastructure,Highways & Transport Services,Balfour Beatty Living Places Ltd,13/08/2020,,97.02,Other Contracted Services,"391400 - Works - Construction, Repair & Maintenance"
Solihull MBC,Economy and Infrastructure,Highways & Transport Services,Balfour Beatty Living Places Ltd,13/08/2020,,22.97,Other Contracted Services,"391400 - Works - Construction, Repair & Maintenance"
Solihull MBC,Economy and Infrastructure,Highways & Transport Services,Balfour Beatty Living Places Ltd,13/08/2020,,203.06,Other Contracted Services,"391400 - Works - Construction, Repair & Maintenance"
Solihull MBC,Economy and Infrastructure,Highways & Transport Services,Balfour Beatty Living Places Ltd,13/08/2020,,164,Other Contracted Services,"391400 - Works - Construction, Repair & Maintenance"
Solihull MBC,Economy and Infrastructure,Highways & Transport Services,Balfour Beatty Living Places Ltd,13/08/2020,,7.26,Other Contracted Services,"391400 - Works - Construction, Repair & Maintenance"
Solihull MBC,Economy and Infrastructure,Highways & Transport Services,Balfour Beatty Living Places Ltd,13/08/2020,,384.14,Other Contracted Services,"391400 - Works - Construction, Repair & Maintenance"
Solihull MBC,Economy and Infrastructure,Highways & Transport Services,Balfour Beatty Living Places Ltd,13/08/2020,,78.72,Other Contracted Services,"391400 - Works - Construction, Repair & Maintenance"
Solihull MBC,Economy and Infrastructure,Highways & Transport Services,Balfour Beatty Living Places Ltd,13/08/2020,,267.22,Other Contracted Services,"391400 - Works - Construction, Repair & Maintenance"
Solihull MBC,Economy and Infrastructure,Highways & Transport Services,Balfour Beatty Living Places Ltd,13/08/2020,,37.35,Other Contracted Services,"391400 - Works - Construction, Repair & Maintenance"
Solihull MBC,Economy and Infrastructure,Highways & Transport Services,Balfour Beatty Living Places Ltd,13/08/2020,,46.33,Other Contracted Services,"391400 - Works - Construction, Repair & Maintenance"
Solihull MBC,Economy and Infrastructure,Highways & Transport Services,Balfour Beatty Living Places Ltd,13/08/2020,,120.25,Other Contracted Services,"391400 - Works - Construction, Repair & Maintenance"
Solihull MBC,Economy and Infrastructure,Highways & Transport Services,Balfour Beatty Living Places Ltd,13/08/2020,,153.95,Other Contracted Services,"391400 - Works - Construction, Repair & Maintenance"
Solihull MBC,Economy and Infrastructure,Highways & Transport Services,Balfour Beatty Living Places Ltd,13/08/2020,,3.96,Other Contracted Services,"391400 - Works - Construction, Repair & Maintenance"
Solihull MBC,Economy and Infrastructure,Highways & Transport Services,Balfour Beatty Living Places Ltd,13/08/2020,,62.83,Other Contracted Services,"391400 - Works - Construction, Repair & Maintenance"
Solihull MBC,Economy and Infrastructure,Highways & Transport Services,Balfour Beatty Living Places Ltd,13/08/2020,,1480.1,Other Contracted Services,"391400 - Works - Construction, Repair & Maintenance"
Solihull MBC,Economy and Infrastructure,Highways & Transport Services,Balfour Beatty Living Places Ltd,13/08/2020,,3.3,Other Contracted Services,"391400 - Works - Construction, Repair & Maintenance"
Solihull MBC,Economy and Infrastructure,Highways & Transport Services,Balfour Beatty Living Places Ltd,13/08/2020,,29.7,Other Contracted Services,"391400 - Works - Construction, Repair & Maintenance"
Solihull MBC,Economy and Infrastructure,Highways & Transport Services,Balfour Beatty Living Places Ltd,13/08/2020,,98.98,Other Contracted Services,"391400 - Works - Construction, Repair & Maintenance"
Solihull MBC,Economy and Infrastructure,Highways & Transport Services,Balfour Beatty Living Places Ltd,13/08/2020,,540.84,Other Contracted Services,"391400 - Works - Construction, Repair & Maintenance"
Solihull MBC,Economy and Infrastructure,Highways & Transport Services,Balfour Beatty Living Places Ltd,13/08/2020,,3.96,Other Contracted Services,"391400 - Works - Construction, Repair & Maintenance"
Solihull MBC,Economy and Infrastructure,Highways & Transport Services,Balfour Beatty Living Places Ltd,13/08/2020,,153.95,Other Contracted Services,"391400 - Works - Construction, Repair & Maintenance"
Solihull MBC,Economy and Infrastructure,Highways & Transport Services,Balfour Beatty Living Places Ltd,13/08/2020,,30.22,Other Contracted Services,"391400 - Works - Construction, Repair & Maintenance"
Solihull MBC,Economy and Infrastructure,Highways & Transport Services,Balfour Beatty Living Places Ltd,13/08/2020,,567.88,Other Contracted Services,"391400 - Works - Construction, Repair & Maintenance"
Solihull MBC,Economy and Infrastructure,Highways & Transport Services,Balfour Beatty Living Places Ltd,13/08/2020,,1312.46,Other Contracted Services,"391400 - Works - Construction, Repair & Maintenance"
Solihull MBC,Economy and Infrastructure,Highways & Transport Services,Balfour Beatty Living Places Ltd,13/08/2020,,232579.23,Other Contracted Services,"391400 - Works - Construction, Repair & Maintenance"
Solihull MBC,Economy and Infrastructure,Highways & Transport Services,Balfour Beatty Living Places Ltd,13/08/2020,,371.83,Other Contracted Services,"391400 - Works - Construction, Repair & Maintenance"
Solihull MBC,Economy and Infrastructure,Highways & Transport Services,Balfour Beatty Living Places Ltd,13/08/2020,,226.9,Other Contracted Services,"391400 - Works - Construction, Repair & Maintenance"
Solihull MBC,Economy and Infrastructure,Highways & Transport Services,Balfour Beatty Living Places Ltd,13/08/2020,,842.37,Other Contracted Services,"391400 - Works - Construction, Repair & Maintenance"
Solihull MBC,Economy and Infrastructure,Highways & Transport Services,Balfour Beatty Living Places Ltd,13/08/2020,,9949.68,Other Contracted Services,"391400 - Works - Construction, Repair & Maintenance"
Solihull MBC,Economy and Infrastructure,Highways & Transport Services,Balfour Beatty Living Places Ltd,13/08/2020,,153.95,Other Contracted Services,"391400 - Works - Construction, Repair & Maintenance"
Solihull MBC,Economy and Infrastructure,Highways & Transport Services,Balfour Beatty Living Places Ltd,13/08/2020,,89.5,Other Contracted Services,"391400 - Works - Construction, Repair & Maintenance"
Solihull MBC,Economy and Infrastructure,Highways & Transport Services,Balfour Beatty Living Places Ltd,13/08/2020,,20.75,Other Contracted Services,"391400 - Works - Construction, Repair & Maintenance"
Solihull MBC,Economy and Infrastructure,Highways & Transport Services,Balfour Beatty Living Places Ltd,13/08/2020,,6523.82,Other Contracted Services,"391400 - Works - Construction, Repair & Maintenance"
Solihull MBC,Economy and Infrastructure,Highways & Transport Services,Balfour Beatty Living Places Ltd,13/08/2020,,80.72,Other Contracted Services,"391400 - Works - Construction, Repair & Maintenance"
Solihull MBC,Economy and Infrastructure,Highways & Transport Services,Balfour Beatty Living Places Ltd,13/08/2020,,104.13,Other Contracted Services,"391400 - Works - Construction, Repair & Maintenance"
Solihull MBC,Economy and Infrastructure,Highways & Transport Services,Balfour Beatty Living Places Ltd,13/08/2020,,864.92,Other Contracted Services,"391400 - Works - Construction, Repair & Maintenance"
Solihull MBC,Economy and Infrastructure,Highways & Transport Services,Balfour Beatty Living Places Ltd,13/08/2020,,329.9,Other Contracted Services,"391400 - Works - Construction, Repair & Maintenance"
Solihull MBC,Economy and Infrastructure,Highways & Transport Services,Balfour Beatty Living Places Ltd,13/08/2020,,98.21,Other Contracted Services,"391400 - Works - Construction, Repair & Maintenance"
Solihull MBC,Economy and Infrastructure,Highways & Transport Services,Balfour Beatty Living Places Ltd,13/08/2020,,57.68,Other Contracted Services,"391400 - Works - Construction, Repair & Maintenance"
Solihull MBC,Economy and Infrastructure,Highways & Transport Services,Balfour Beatty Living Places Ltd,13/08/2020,,226.9,Other Contracted Services,"391400 - Works - Construction, Repair & Maintenance"
Solihull MBC,Economy and Infrastructure,Highways & Transport Services,Balfour Beatty Living Places Ltd,13/08/2020,,7.73,Other Contracted Services,"391400 - Works - Construction, Repair & Maintenance"
Solihull MBC,Economy and Infrastructure,Highways & Transport Services,Balfour Beatty Living Places Ltd,13/08/2020,,113.45,Other Contracted Services,"391400 - Works - Construction, Repair & Maintenance"
Solihull MBC,Economy and Infrastructure,Highways & Transport Services,Balfour Beatty Living Places Ltd,13/08/2020,,113.45,Other Contracted Services,"391400 - Works - Construction, Repair & Maintenance"
Solihull MBC,Economy and Infrastructure,Highways & Transport Services,Balfour Beatty Living Places Ltd,13/08/2020,,461.64,Other Contracted Services,"391400 - Works - Construction, Repair & Maintenance"
Solihull MBC,Economy and Infrastructure,Highways & Transport Services,Balfour Beatty Living Places Ltd,13/08/2020,,67.83,Other Contracted Services,"391400 - Works - Construction, Repair & Maintenance"
Solihull MBC,Economy and Infrastructure,Highways & Transport Services,Balfour Beatty Living Places Ltd,13/08/2020,,422.55,Other Contracted Services,"391400 - Works - Construction, Repair & Maintenance"
Solihull MBC,Economy and Infrastructure,Highways & Transport Services,Balfour Beatty Living Places Ltd,13/08/2020,,35.65,Other Contracted Services,"391400 - Works - Construction, Repair & Maintenance"
Solihull MBC,Economy and Infrastructure,Highways & Transport Services,Balfour Beatty Living Places Ltd,13/08/2020,,33.13,Other Contracted Services,"391400 - Works - Construction, Repair & Maintenance"
Solihull MBC,Economy and Infrastructure,Highways & Transport Services,Balfour Beatty Living Places Ltd,13/08/2020,,4.32,Other Contracted Services,"391400 - Works - Construction, Repair & Maintenance"
Solihull MBC,Economy and Infrastructure,Highways & Transport Services,Balfour Beatty Living Places Ltd,13/08/2020,,113.45,Other Contracted Services,"391400 - Works - Construction, Repair & Maintenance"
Solihull MBC,Economy and Infrastructure,Highways & Transport Services,Balfour Beatty Living Places Ltd,13/08/2020,,67.83,Other Contracted Services,"391400 - Works - Construction, Repair & Maintenance"
Solihull MBC,Economy and Infrastructure,Highways & Transport Services,Balfour Beatty Living Places Ltd,13/08/2020,,4.85,Other Contracted Services,"391400 - Works - Construction, Repair & Maintenance"
Solihull MBC,Economy and Infrastructure,Highways & Transport Services,Balfour Beatty Living Places Ltd,13/08/2020,,18.52,Other Contracted Services,"391400 - Works - Construction, Repair & Maintenance"
Solihull MBC,Economy and Infrastructure,Highways & Transport Services,Balfour Beatty Living Places Ltd,13/08/2020,,195.33,Other Contracted Services,"391400 - Works - Construction, Repair & Maintenance"
Solihull MBC,Economy and Infrastructure,Highways & Transport Services,Balfour Beatty Living Places Ltd,13/08/2020,,87.84,Other Contracted Services,"391400 - Works - Construction, Repair & Maintenance"
Solihull MBC,Economy and Infrastructure,Highways & Transport Services,Balfour Beatty Living Places Ltd,13/08/2020,,30.92,Other Contracted Services,"391400 - Works - Construction, Repair & Maintenance"
Solihull MBC,Economy and Infrastructure,Highways & Transport Services,Balfour Beatty Living Places Ltd,13/08/2020,,5.17,Other Contracted Services,"391400 - Works - Construction, Repair & Maintenance"
Solihull MBC,Economy and Infrastructure,Highways & Transport Services,Balfour Beatty Living Places Ltd,13/08/2020,,143.95,Other Contracted Services,"391400 - Works - Construction, Repair & Maintenance"
Solihull MBC,Economy and Infrastructure,Highways & Transport Services,Balfour Beatty Living Places Ltd,13/08/2020,,154.39,Other Contracted Services,"391400 - Works - Construction, Repair & Maintenance"
Solihull MBC,Economy and Infrastructure,Highways & Transport Services,Balfour Beatty Living Places Ltd,13/08/2020,,143.95,Other Contracted Services,"391400 - Works - Construction, Repair & Maintenance"
Solihull MBC,Economy and Infrastructure,Highways & Transport Services,Balfour Beatty Living Places Ltd,13/08/2020,,143.95,Other Contracted Services,"391400 - Works - Construction, Repair & Maintenance"
Solihull MBC,Economy and Infrastructure,Highways & Transport Services,Balfour Beatty Living Places Ltd,13/08/2020,,143.95,Other Contracted Services,"391400 - Works - Construction, Repair & Maintenance"
Solihull MBC,Economy and Infrastructure,Highways & Transport Services,Balfour Beatty Living Places Ltd,13/08/2020,,143.95,Other Contracted Services,"391400 - Works - Construction, Repair & Maintenance"
Solihull MBC,Economy and Infrastructure,Highways & Transport Services,Balfour Beatty Living Places Ltd,13/08/2020,,859.26,Contractors,"391400 - Works - Construction, Repair & Maintenance"
Solihull MBC,Economy and Infrastructure,Highways & Transport Services,Balfour Beatty Living Places Ltd,13/08/2020,,775.98,Contractors,"391400 - Works - Construction, Repair & Maintenance"
Solihull MBC,Economy and Infrastructure,Highways & Transport Services,Balfour Beatty Living Places Ltd,13/08/2020,,52380.15,Contractors,"391400 - Works - Construction, Repair & Maintenance"
Solihull MBC,Economy and Infrastructure,Highways & Transport Services,Balfour Beatty Living Places Ltd,13/08/2020,,1704.94,Contractors,"391400 - Works - Construction, Repair & Maintenance"
Solihull MBC,Economy and Infrastructure,Highways & Transport Services,Balfour Beatty Living Places Ltd,13/08/2020,,45689.93,Contractors,"391400 - Works - Construction, Repair & Maintenance"
Solihull MBC,Economy and Infrastructure,Highways & Transport Services,Balfour Beatty Living Places Ltd,13/08/2020,,22824.1,Contractors,"391400 - Works - Construction, Repair & Maintenance"
Solihull MBC,Economy and Infrastructure,Highways & Transport Services,Balfour Beatty Living Places Ltd,13/08/2020,,8478.7,Contractors,"391400 - Works - Construction, Repair & Maintenance"
Solihull MBC,Economy and Infrastructure,Highways & Transport Services,Balfour Beatty Living Places Ltd,13/08/2020,,95.6,Contractors,"391400 - Works - Construction, Repair & Maintenance"
Solihull MBC,Economy and Infrastructure,Highways & Transport Services,Balfour Beatty Living Places Ltd,13/08/2020,,1438.24,Contractors,"391400 - Works - Construction, Repair & Maintenance"
Solihull MBC,Economy and Infrastructure,Highways & Transport Services,Balfour Beatty Living Places Ltd,13/08/2020,,353.45,Contractors,"391400 - Works - Construction, Repair & Maintenance"
Solihull MBC,Economy and Infrastructure,Highways & Transport Services,Balfour Beatty Living Places Ltd,13/08/2020,,9315.4,Contractors,"391400 - Works - Construction, Repair & Maintenance"
Solihull MBC,Economy and Infrastructure,Highways & Transport Services,Balfour Beatty Living Places Ltd,13/08/2020,,7991.27,Contractors,"391400 - Works - Construction, Repair & Maintenance"
Solihull MBC,Economy and Infrastructure,Highways & Transport Services,Balfour Beatty Living Places Ltd,13/08/2020,,32010.08,Contractors,"391400 - Works - Construction, Repair & Maintenance"
Solihull MBC,Economy and Infrastructure,Highways & Transport Services,Balfour Beatty Living Places Ltd,13/08/2020,,33859.96,Contractors,"391400 - Works - Construction, Repair & Maintenance"
Solihull MBC,Economy and Infrastructure,Highways & Transport Services,Balfour Beatty Living Places Ltd,13/08/2020,,11970.38,Contractors,"391400 - Works - Construction, Repair & Maintenance"
Solihull MBC,Economy and Infrastructure,Highways & Transport Services,Balfour Beatty Living Places Ltd,13/08/2020,,70280.67,Contractors,"391400 - Works - Construction, Repair & Maintenance"
Solihull MBC,Economy and Infrastructure,Highways & Transport Services,Balfour Beatty Living Places Ltd,13/08/2020,,72025.54,Contractors,"391400 - Works - Construction, Repair & Maintenance"
Solihull MBC,Economy and Infrastructure,Highways & Transport Services,Balfour Beatty Living Places Ltd,13/08/2020,,1142.83,Contractors,"391400 - Works - Construction, Repair & Maintenance"
Solihull MBC,Economy and Infrastructure,Highways & Transport Services,Balfour Beatty Living Places Ltd,13/08/2020,,454.62,Contractors,"391400 - Works - Construction, Repair & Maintenance"
Solihull MBC,Economy and Infrastructure,Highways & Transport Services,Balfour Beatty Living Places Ltd,13/08/2020,,1729.21,Contractors,"391400 - Works - Construction, Repair & Maintenance"
Solihull MBC,Economy and Infrastructure,Cultural & Related Services,Balfour Beatty Living Places Ltd,13/08/2020,,1839.2,Other Contracted Services,"391400 - Works - Construction, Repair & Maintenance"
Solihull MBC,Economy and Infrastructure,Cultural & Related Services,Balfour Beatty Living Places Ltd,13/08/2020,,429,Other Contracted Services,"391400 - Works - Construction, Repair & Maintenance"
Solihull MBC,Economy and Infrastructure,Cultural & Related Services,Balfour Beatty Living Places Ltd,13/08/2020,,2758.8,Other Contracted Services,"391400 - Works - Construction, Repair & Maintenance"
Solihull MBC,Economy and Infrastructure,Highways & Transport Services,Balfour Beatty Living Places Ltd,13/08/2020,,864.79,Strategic Highways Contract,"391400 - Works - Construction, Repair & Maintenance"
Solihull MBC,Economy and Infrastructure,Highways & Transport Services,Balfour Beatty Living Places Ltd,13/08/2020,,846.86,Strategic Highways Contract,"391400 - Works - Construction, Repair & Maintenance"
Solihull MBC,Economy and Infrastructure,Highways & Transport Services,Balfour Beatty Living Places Ltd,13/08/2020,,1701.24,Contractors,"391400 - Works - Construction, Repair & Maintenance"
Solihull MBC,Public Health & Commissioning,Adult Social Care,Balsall Common & Meridan Group P,20/08/2020,,441.56,Other Contracted Services,Not Yet Classified
Solihull MBC,Public Health & Commissioning,Adult Social Care,Balsall Common & Meridan Group P,20/08/2020,,50,Other Contracted Services,Not Yet Classified
Solihull MBC,Children's Services - DSG Central.,Children & Education Services,Balsall Common Primary School,27/08/2020,,24230,Other Contracted Services,Not Yet Classified
Solihull MBC,Children's Services - DSG Central.,Children & Education Services,Baltimore Consulting Group,25/08/2020,,2743.9,Agency Staff,Not Yet Classified
Solihull MBC,Children's Services - DSG Central.,Children & Education Services,Baltimore Consulting Group,25/08/2020,,2743.9,Agency Staff,Not Yet Classified
Solihull MBC,Economy and Infrastructure,Environmental and Regulatory Services,Bannocks Solihull,27/08/2020,,349,Materials,120000 - Cemetery & Crematorium 
Solihull MBC,Children's Services & Skills,Children & Education Services,Banya,17/08/2020,,2059.43,External Fostering,Not Yet Classified
Solihull MBC,Children's Services & Skills,Children & Education Services,Banya,17/08/2020,,605.71,External Fostering,Not Yet Classified
Solihull MBC,Children's Services & Skills,Children & Education Services,Banya,17/08/2020,,726.86,External Fostering,Not Yet Classified
Solihull MBC,Adult Social Care,Adult Social Care,Barchester Healthcare Homes Ltd,13/08/2020,,2347.52,ASC - Residential Care Permanent,321000 - Social Community Care Supplies & Services - Adult
Solihull MBC,Adult Social Care,Adult Social Care,Barchester Healthcare Homes Ltd,13/08/2020,,5194.84,ASC - Residential Care Permanent,321000 - Social Community Care Supplies & Services - Adult
Solihull MBC,Adult Social Care,Adult Social Care,Barchester Healthcare Homes Ltd,13/08/2020,,1072.8,ASC - Nursing Care Permanent,321000 - Social Community Care Supplies & Services - Adult
Solihull MBC,Adult Social Care,Adult Social Care,Barchester Healthcare Homes Ltd,13/08/2020,,2503.2,ASC - Nursing Care Permanent,321000 - Social Community Care Supplies & Services - Adult
Solihull MBC,Adult Social Care,Adult Social Care,Barchester Healthcare Homes Ltd,13/08/2020,,2600,ASC - Residential Care Permanent,321000 - Social Community Care Supplies & Services - Adult
Solihull MBC,Adult Social Care,Adult Social Care,Barchester Healthcare Homes Ltd,13/08/2020,,2503.2,ASC - Nursing Care Permanent,321000 - Social Community Care Supplies & Services - Adult
Solihull MBC,Adult Social Care,Cultural & Related Services,Barclaycard,10/08/2020,,50,Other Fees,Not Yet Classified
Solihull MBC,Adult Social Care,Cultural & Related Services,Barclaycard,10/08/2020,,30,Other Fees,Not Yet Classified
Solihull MBC,Adult Social Care,Cultural & Related Services,Barclaycard,10/08/2020,,-12.55,Other Fees,Not Yet Classified
Solihull MBC,Resources,Central Services to the Public,Barclaycard,10/08/2020,,2576.24,Other Fees,Not Yet Classified
Solihull MBC,Adult Social Care,Cultural & Related Services,Barclaycard,10/08/2020,,25,Other Fees,Not Yet Classified
Solihull MBC,Adult Social Care,Cultural & Related Services,Barclaycard,10/08/2020,,-4.41,Other Fees,Not Yet Classified
Solihull MBC,Economy and Infrastructure,Environmental and Regulatory Services,Barclaycard,10/08/2020,,50,Other Fees,Not Yet Classified
Solihull MBC,Economy and Infrastructure,Environmental and Regulatory Services,Barclaycard,10/08/2020,,148.28,Other Fees,Not Yet Classified
Solihull MBC,Adult Social Care,Cultural & Related Services,Barclaycard,10/08/2020,,6.36,Other Fees,Not Yet Classified
Solihull MBC,Resources,Central Services to the Public,Barclaycard,10/08/2020,,0.02,Debit Card Charges,Not Yet Classified
Solihull MBC,Resources,Central Services to the Public,Barclaycard,10/08/2020,,1620.88,Other Fees,Not Yet Classified
Solihull MBC,Resources,Central Services to the Public,Barclaycard,10/08/2020,,1877.43,Other Fees,Not Yet Classified
Solihull MBC,Resources,Children & Education Services,Barclaycard,10/06/2020,,-25,IT Equipment & Software,Not Yet Classified
Solihull MBC,Resources,Corporate & Democratic Core,Barclaycard,10/08/2020,,4.8,Other Contracted Services,Not Yet Classified
Solihull MBC,Resources,Corporate & Democratic Core,Barclaycard,10/08/2020,,325,Other Contracted Services,Not Yet Classified
Solihull MBC,Children's Services & Skills,Children & Education Services,Barnardos Midlands,07/08/2020,,3356,External Fostering,321100 - Social Community Care Supplies & Services - Children
Solihull MBC,Economy and Infrastructure,Environmental and Regulatory Services,Barnsley Bate Ltd,20/08/2020,,900,Professional Fees,Not Yet Classified
Solihull MBC,Resources,Planning & Development Services,BDP,26/08/2020,,21590.63,Contractors,Not Yet Classified
Solihull MBC,Resources,Central Services to the Public,Bechtle Direct Ltd,10/08/2020,,19.9,Hardware,Not Yet Classified
Solihull MBC,Resources,Central Services to the Public,Bechtle Direct Ltd,10/08/2020,,143685,Hardware,Not Yet Classified
Solihull MBC,Resources,Central Services to the Public,Bechtle Direct Ltd,17/08/2020,,19.9,Hardware,Not Yet Classified
Solihull MBC,Resources,Central Services to the Public,Bechtle Direct Ltd,17/08/2020,,4444.36,Hardware,Not Yet Classified
Solihull MBC,Resources,Central Services to the Public,Bechtle Direct Ltd,17/08/2020,,23947.5,Hardware,Not Yet Classified
Solihull MBC,Resources,Central Services to the Public,Bechtle Direct Ltd,26/08/2020,,484.75,IT Equipment & Software,Not Yet Classified
Solihull MBC,Children's Services - DSG Central.,Children & Education Services,Bentley Heath CE Primary School Fund,27/08/2020,,5261,Other Contracted Services,Not Yet Classified
Solihull MBC,Adult Social Care,Adult Social Care,Berrow Cottage Homes,10/08/2020,,805.83,Other Contracted Services,321000 - Social Community Care Supplies & Services - Adult
Solihull MBC,Adult Social Care,Adult Social Care,Bid Services For Deaf People,12/08/2020,,14984.75,Other Contracted Services,401401 - Social Community Care Supplies & Services - Children - Specialist Needs
Solihull MBC,Public Health & Commissioning,Adult Social Care,Bionical Solutions Limited,12/08/2020,,16464,Other Contracted Services,Not Yet Classified
Solihull MBC,Adult Social Care,Adult Social Care,Birchmere Mews (Wt Opco3 Ltd),13/08/2020,,2057.14,ASC - Residential Care Permanent,Not Yet Classified
Solihull MBC,Adult Social Care,Adult Social Care,Birchmere Mews (Wt Opco3 Ltd),13/08/2020,,3200,ASC - Residential Care Permanent,Not Yet Classified
Solihull MBC,Adult Social Care,Adult Social Care,Birchmere Mews (Wt Opco3 Ltd),13/08/2020,,4674.88,ASC - Residential Care Permanent,Not Yet Classified
Solihull MBC,Adult Social Care,Adult Social Care,Birchmere Mews (Wt Opco3 Ltd),13/08/2020,,4691.4,ASC - Residential Care Permanent,Not Yet Classified
Solihull MBC,Public Health & Commissioning,Adult Social Care,Birmingham And Solihull Mental Health Trust,19/08/2020,,50000,Other Contracted Services,Not Yet Classified
Solihull MBC,Public Health & Commissioning,Adult Social Care,Birmingham And Solihull Mental Health Trust,19/08/2020,,1102187.7,Other Contracted Services,Not Yet Classified
Solihull MBC,Public Health & Commissioning,Adult Social Care,Birmingham And Solihull Mental Health Trust,19/08/2020,,-576093.85,Other Contracted Services,Not Yet Classified
Solihull MBC,Public Health & Commissioning,Adult Social Care,Birmingham And Solihull Mental Health Trust,19/08/2020,,100000,Other Contracted Services,Not Yet Classified
Solihull MBC,Public Health & Commissioning,Adult Social Care,Birmingham And Solihull Mental Health Trust,19/08/2020,,100000,Other Contracted Services,Not Yet Classified
Solihull MBC,Public Health & Commissioning,Adult Social Care,Birmingham And Solihull Mental Health Trust,19/08/2020,,100000,Other Contracted Services,Not Yet Classified
Solihull MBC,Public Health & Commissioning,Adult Social Care,Birmingham And Solihull Mental Health Trust,19/08/2020,,100000,Other Contracted Services,Not Yet Classified
Solihull MBC,Public Health & Commissioning,Adult Social Care,Birmingham And Solihull Mental Health Trust,19/08/2020,,1804375.4,Other Contracted Services,Not Yet Classified
Solihull MBC,Public Health & Commissioning,Adult Social Care,Birmingham And Solihull Mental Health Trust,19/08/2020,,-100000,Other Contracted Services,Not Yet Classified
Solihull MBC,Public Health & Commissioning,Adult Social Care,Birmingham And Solihull Mental Health Trust,19/08/2020,,-100000,Other Contracted Services,Not Yet Classified
Solihull MBC,Public Health & Commissioning,Adult Social Care,Birmingham And Solihull Mental Health Trust,19/08/2020,,-100000,Other Contracted Services,Not Yet Classified
Solihull MBC,Public Health & Commissioning,Adult Social Care,Birmingham And Solihull Mental Health Trust,19/08/2020,,-752187.7,Other Contracted Services,Not Yet Classified
Solihull MBC,Resources,Central Services to the Public,Birmingham City Council,03/08/2020,,1875.3,Postage & Courier Services,Not Yet Classified
Solihull MBC,Resources,Central Services to the Public,Birmingham City Council,03/08/2020,,66739,General Creditors,Not Yet Classified
Solihull MBC,Resources,Planning & Development Services,Birmingham City Council,27/08/2020,,15131.99,General Creditors,Not Yet Classified
Solihull MBC,Children's Services & Skills,Children & Education Services,Birmingham City Council Shared Services,21/08/2020,,3120,Transport-Contract Hire,Not Yet Classified
Solihull MBC,Resources,Central Services to the Public,Birmingham City Council Shared Services,26/08/2020,,3765.49,Postage & Courier Services,Not Yet Classified
Solihull MBC,Economy and Infrastructure,Planning & Development Services,Birmingham Dogs Home,12/08/2020,,300,Other Fees,Not Yet Classified
Solihull MBC,Adult Social Care,Adult Social Care,Birmingham Social Services,13/08/2020,,1200,ASC - Shared Lives,Not Yet Classified
Solihull MBC,Covid-19,Central Services to the Public,Birmingham Social Services,01/08/2020,,710.4,ASC - Residential Care Permanent,Not Yet Classified
Solihull MBC,Adult Social Care,Adult Social Care,BJCC,13/08/2020,,1470.6,ASC - Nursing Care Permanent,Not Yet Classified
Solihull MBC,Adult Social Care,Adult Social Care,BJCC,13/08/2020,,2443.5,ASC - Nursing Care Permanent,Not Yet Classified
Solihull MBC,Adult Social Care,Adult Social Care,BJCC,13/08/2020,,-2443.5,ASC - Nursing Care Respite,Not Yet Classified
Solihull MBC,Adult Social Care,Adult Social Care,BJCC,13/08/2020,,2736.72,ASC - Nursing Care Permanent,Not Yet Classified
Solihull MBC,Adult Social Care,Adult Social Care,BJCC,13/08/2020,,-2736.72,ASC - Nursing Care Respite,Not Yet Classified
Solihull MBC,Adult Social Care,Adult Social Care,BJCC,13/08/2020,,2736.72,ASC - Nursing Care Permanent,Not Yet Classified
Solihull MBC,Children's Services - DSG Central.,Children & Education Services,Blackwater Academy,05/08/2020,,76666.68,Other Contracted Services,Not Yet Classified
Solihull MBC,Economy and Infrastructure,Planning & Development Services,Blue Orchid,04/08/2020,,22083.33,Professional Fees,150000 - Consultancy
Solihull MBC,Adult Social Care,Adult Social Care,Bluebird Care (Solihull),21/08/2020,,1196.16,ASC - Domiciliary Care,Not Yet Classified
Solihull MBC,Adult Social Care,Adult Social Care,Bluebird Care (Solihull),21/08/2020,,828,ASC - Domiciliary Care,Not Yet Classified
Solihull MBC,Adult Social Care,Adult Social Care,Bluebird Care (Solihull),21/08/2020,,-828,ASC - Domiciliary Care,Not Yet Classified
Solihull MBC,Adult Social Care,Adult Social Care,Bluebird Care (Solihull),21/08/2020,,982.56,ASC - Domiciliary Care,Not Yet Classified
Solihull MBC,Adult Social Care,Adult Social Care,Bluebird Care (Solihull),21/08/2020,,828,ASC - Domiciliary Care,Not Yet Classified
Solihull MBC,Adult Social Care,Adult Social Care,Bluebird Care (Solihull),21/08/2020,,982.56,ASC - Domiciliary Care,Not Yet Classified
Solihull MBC,Adult Social Care,Adult Social Care,Bluebird Care (Solihull),21/08/2020,,-828,ASC - Domiciliary Care,Not Yet Classified
Solihull MBC,Adult Social Care,Adult Social Care,Bluebird Care (Solihull),21/08/2020,,982.56,ASC - Domiciliary Care,Not Yet Classified
Solihull MBC,Adult Social Care,Adult Social Care,Bluebird Care (Solihull),21/08/2020,,256.32,ASC - Domiciliary Care,Not Yet Classified
Solihull MBC,Adult Social Care,Adult Social Care,Bluebird Care (Solihull),21/08/2020,,299.04,ASC - Domiciliary Care,Not Yet Classified
Solihull MBC,Public Health & Commissioning,Central Services to the Public,Boodle Designer Clothing Limited,13/08/2020,,5000,Grant & Subscription (SCITT),Not Yet Classified
Solihull MBC,Adult Social Care,Adult Social Care,Bookinglab Ltd,24/08/2020,,13350,Software,Not Yet Classified
Solihull MBC,Economy and Infrastructure,Environmental and Regulatory Services,Bookinglab Ltd,24/08/2020,,13350,IT Equipment & Software,Not Yet Classified
Solihull MBC,Public Health & Commissioning,Adult Social Care,Boots The Chemist,21/08/2020,,385.65,Other Contracted Services,Not Yet Classified
Solihull MBC,Resources,Other Housing Services,Borshch Electric,06/08/2020,,291.66,Clients Expenses,110000 - Catering
Solihull MBC,Resources,Other Housing Services,Borshch Electric,06/08/2020,,608.33,Clients Expenses,110000 - Catering
Solihull MBC,Resources,Other Housing Services,Borshch Electric,06/08/2020,,-316.67,Clients Expenses,110000 - Catering
Solihull MBC,Resources,Other Housing Services,Borshch Electric,06/08/2020,,291.66,Clients Expenses,110000 - Catering
Solihull MBC,Resources,Other Housing Services,Borshch Electric,06/08/2020,,291.66,Clients Expenses,110000 - Catering
Solihull MBC,Resources,Other Housing Services,Borshch Electric,25/08/2020,,291.66,Clients Expenses,110000 - Catering
Solihull MBC,Resources,Other Housing Services,Borshch Electric,25/08/2020,,291.66,Clients Expenses,110000 - Catering
Solihull MBC,Resources,Other Housing Services,Borshch Electric,25/08/2020,,291.66,Clients Expenses,110000 - Catering
Solihull MBC,Resources,Other Housing Services,Borshch Electric,25/08/2020,,462.5,Clients Expenses,110000 - Catering
Solihull MBC,Resources,Other Housing Services,Borshch Electric,25/08/2020,,291.66,Clients Expenses,110000 - Catering
Solihull MBC,Resources,Other Housing Services,Borshch Electric,25/08/2020,,291.66,Clients Expenses,110000 - Catering
Solihull MBC,Resources,Other Housing Services,Borshch Electric,25/08/2020,,291.66,Clients Expenses,110000 - Catering
Solihull MBC,Resources,Other Housing Services,Borshch Electric,25/08/2020,,433.33,Clients Expenses,110000 - Catering
Solihull MBC,Adult Social Care,Adult Social Care,Bowood Care Homes Ltd,13/08/2020,,1454.26,ASC - Residential Care Permanent,Not Yet Classified
Solihull MBC,Adult Social Care,Adult Social Care,Bowood Care Homes Ltd,13/08/2020,,2143.12,ASC - Residential Care Permanent,Not Yet Classified
Solihull MBC,Adult Social Care,Adult Social Care,Bowood Care Homes Ltd,13/08/2020,,1071.56,ASC - Residential Care Permanent,Not Yet Classified
Solihull MBC,Adult Social Care,Adult Social Care,Bracebridge Court (Runwood Homes),13/08/2020,,2266.6,ASC - Residential Care Permanent,Not Yet Classified
Solihull MBC,Public Health & Commissioning,Central Services to the Public,Bradleys Limited,26/08/2020,,10000,Grant & Subscription (SCITT),Not Yet Classified
Solihull MBC,Resources,Children & Education Services,Brake Bros Foodservice Ltd,20/08/2020,,134.62,Catering Provisions,110000 - Catering
Solihull MBC,Resources,Adult Social Care,Brake Bros Foodservice Ltd,20/08/2020,,141.07,Catering Provisions,110000 - Catering
Solihull MBC,Resources,Adult Social Care,Brake Bros Foodservice Ltd,20/08/2020,,15.61,Catering Provisions,110000 - Catering
Solihull MBC,Resources,Children & Education Services,Brake Bros Foodservice Ltd,20/08/2020,,315.38,Catering Provisions,110000 - Catering
Solihull MBC,Resources,Children & Education Services,Brake Bros Foodservice Ltd,20/08/2020,,206.37,Catering Provisions,110000 - Catering
Solihull MBC,Resources,Children & Education Services,Brake Bros Foodservice Ltd,20/08/2020,,90.11,Catering Provisions,110000 - Catering
Solihull MBC,Resources,Children & Education Services,Brake Bros Foodservice Ltd,20/08/2020,,255.26,Catering Provisions,110000 - Catering
Solihull MBC,Resources,Children & Education Services,Brake Bros Foodservice Ltd,26/08/2020,,226.3,Catering Provisions,110000 - Catering
Solihull MBC,Resources,Children & Education Services,Brake Bros Foodservice Ltd,26/08/2020,,52.67,Catering Provisions,110000 - Catering
Solihull MBC,Resources,Adult Social Care,Brake Bros Foodservice Ltd,26/08/2020,,79.54,Catering Provisions,110000 - Catering
Solihull MBC,Resources,Children & Education Services,Brake Bros Foodservice Ltd,26/08/2020,,194.63,Catering Provisions,110000 - Catering
Solihull MBC,Children's Services - DSG Central.,Children & Education Services,Bredon School Limited,05/08/2020,,3556.17,Other Contracted Services,321100 - Social Community Care Supplies & Services - Children
Solihull MBC,Economy and Infrastructure,Highways & Transport Services,Bridgwater Garden Services,11/08/2020,,250,Other Contracted Services,Not Yet Classified
Solihull MBC,Economy and Infrastructure,Highways & Transport Services,Bridgwater Garden Services,18/08/2020,,360,Other Contracted Services,Not Yet Classified
Solihull MBC,Economy and Infrastructure,Planning & Development Services,Brightcorp Ltd,25/08/2020,,2750,Professional Fees,Not Yet Classified
Solihull MBC,Adult Social Care,Adult Social Care,British Gas,13/08/2020,,242.96,Other Contracted Services,370000 - Utilities
Solihull MBC,Adult Social Care,Adult Social Care,British Gas,17/08/2020,,723.15,Electricity,370000 - Utilities
Solihull MBC,Adult Social Care,Adult Social Care,British Gas,17/08/2020,,797.4,Electricity,370000 - Utilities
Solihull MBC,Adult Social Care,Adult Social Care,British Gas,17/08/2020,,718.36,Electricity,370000 - Utilities
Solihull MBC,Adult Social Care,Corporate & Democratic Core,British Youth Council,06/08/2020,,565,Grant & Subscription (SCITT),Not Yet Classified
Solihull MBC,Adult Social Care,Adult Social Care,Broadham Care Ltd,13/08/2020,,7947.8,ASC - Residential Care Permanent,Not Yet Classified
Solihull MBC,Adult Social Care,Adult Social Care,Bromford Housing Association,11/08/2020,,2983.8,Other Contracted Services,Not Yet Classified
Solihull MBC,Adult Social Care,Adult Social Care,Bromford Housing Association Ltd T/A Bromford Housing Group Ltd,10/08/2020,,19690,Block Contracts,321000 - Social Community Care Supplies & Services - Adult
Solihull MBC,Resources - Non Monitored,Central Services to the Public,BT Global Services,07/08/2020,,15167.85,General Creditors,271699 - Information Communication Technology - Telecommunications
Solihull MBC,Adult Social Care,Adult Social Care,Bupa Care Services,13/08/2020,,2298.8,ASC - Residential Care Permanent,Not Yet Classified
Solihull MBC,Adult Social Care,Adult Social Care,Bupa Care Services,13/08/2020,,2736.72,ASC - Nursing Care Permanent,Not Yet Classified
Solihull MBC,Adult Social Care,Adult Social Care,Burgess Care Ltd,13/08/2020,,10695.16,ASC - Residential Care Permanent,Not Yet Classified
Solihull MBC,Children's Services & Skills,Children & Education Services,By The Bridge,20/08/2020,,3129,External Fostering,321100 - Social Community Care Supplies & Services - Children
Solihull MBC,Children's Services & Skills,Children & Education Services,By The Bridge,20/08/2020,,3560,External Fostering,321100 - Social Community Care Supplies & Services - Children
Solihull MBC,Children's Services & Skills,Children & Education Services,By The Bridge,20/08/2020,,259.2,External Fostering,321100 - Social Community Care Supplies & Services - Children
Solihull MBC,Children's Services & Skills,Children & Education Services,By The Bridge,20/08/2020,,3369.6,External Fostering,321100 - Social Community Care Supplies & Services - Children
Solihull MBC,Children's Services & Skills,Children & Education Services,By The Bridge,20/08/2020,,3628.8,External Fostering,321100 - Social Community Care Supplies & Services - Children
Solihull MBC,Children's Services & Skills,Children & Education Services,By The Bridge,20/08/2020,,3628.8,External Fostering,321100 - Social Community Care Supplies & Services - Children
Solihull MBC,Children's Services & Skills,Children & Education Services,By The Bridge,20/08/2020,,259.2,External Fostering,321100 - Social Community Care Supplies & Services - Children
Solihull MBC,Children's Services & Skills,Children & Education Services,By The Bridge,20/08/2020,,3369.6,External Fostering,321100 - Social Community Care Supplies & Services - Children
Solihull MBC,Children's Services & Skills,Children & Education Services,By The Bridge,17/08/2020,,3628.8,External Fostering,321100 - Social Community Care Supplies & Services - Children
Solihull MBC,Children's Services & Skills,Children & Education Services,By The Bridge,20/08/2020,,3628.8,External Fostering,321100 - Social Community Care Supplies & Services - Children
Solihull MBC,Children's Services & Skills,Children & Education Services,By The Bridge,20/08/2020,,3628.8,External Fostering,321100 - Social Community Care Supplies & Services - Children
Solihull MBC,Resources,Central Services to the Public,Bytes Technology Group,06/08/2020,,44175.36,IT Equipment & Software,171011 - Education - School Services
Solihull MBC,Resources,Central Services to the Public,Bytes Technology Group,06/08/2020,,6369.96,IT Equipment & Software,171011 - Education - School Services
Solihull MBC,Resources,Central Services to the Public,Bytes Technology Group,06/08/2020,,1657.75,IT Equipment & Software,171011 - Education - School Services
Solihull MBC,Resources,Central Services to the Public,Bytes Technology Group,06/08/2020,,4464.64,IT Equipment & Software,171011 - Education - School Services
Solihull MBC,Public Health & Commissioning,Central Services to the Public,C W Mobile Accessories,27/08/2020,,7000,Grant & Subscription (SCITT),Not Yet Classified
Solihull MBC,Resources,Central Services to the Public,Cadpoint Ltd,19/08/2020,,1000,IT Equipment & Software,Not Yet Classified
Solihull MBC,Public Health & Commissioning,Central Services to the Public,Caffe Ideas Ltd,12/08/2020,,10000,Grant & Subscription (SCITT),Not Yet Classified
Solihull MBC,Children's Services & Skills,Children & Education Services,Cambian Childcare Ltd,17/08/2020,,3321.43,Other Contracted Services,Not Yet Classified
Solihull MBC,Children's Services & Skills,Children & Education Services,Cambian Childcare Ltd,17/08/2020,,18167.14,Other Contracted Services,Not Yet Classified
Solihull MBC,Children's Services & Skills,Children & Education Services,Cambian Childcare Ltd,17/08/2020,,-6874.21,Other Contracted Services,Not Yet Classified
Solihull MBC,Children's Services & Skills,Children & Education Services,Cambian Childcare Ltd,17/08/2020,,6874.21,Other Contracted Services,Not Yet Classified
Solihull MBC,Children's Services & Skills,Children & Education Services,Cambian Childcare Ltd,17/08/2020,,-2044.21,Other Contracted Services,Not Yet Classified
Solihull MBC,Adult Social Care,Central Services to the Public,Cammax Ltd,04/08/2020,,1390,IT Equipment & Software,Not Yet Classified
Solihull MBC,Adult Social Care,Central Services to the Public,Cammax Ltd,04/08/2020,,2780,IT Equipment & Software,Not Yet Classified
Solihull MBC,Adult Social Care,Adult Social Care,Campania,13/08/2020,,1348.05,ASC - Residential Care Permanent,Not Yet Classified
Solihull MBC,Resources,Other Housing Services,Capita Business Services Ltd.,12/08/2020,,950,IT Equipment & Software,261500 - Human Resources - Training & Conferences
Solihull MBC,Resources,Central Services to the Public,Capita IT Services Ltd,07/08/2020,,66705.8,IT Equipment & Software,Not Yet Classified
Solihull MBC,Resources,Central Services to the Public,Capita IT Services Ltd,07/08/2020,,18295,IT Equipment & Software,Not Yet Classified
Solihull MBC,Resources,Central Services to the Public,Capita IT Services Ltd,07/08/2020,,44520,IT Equipment & Software,Not Yet Classified
Solihull MBC,Resources,Central Services to the Public,Capita IT Services Ltd,07/08/2020,,144977.7,IT Equipment & Software,Not Yet Classified
Solihull MBC,Resources,Central Services to the Public,Capita MITS,04/08/2020,,1962.5,IT Equipment & Software,Not Yet Classified
Solihull MBC,Resources,Central Services to the Public,Capita MITS,06/08/2020,,2355,IT Equipment & Software,Not Yet Classified
Solihull MBC,Resources,Central Services to the Public,Capita MITS,11/08/2020,,-1962.5,IT Equipment & Software,Not Yet Classified
Solihull MBC,Children's Services & Skills,Children & Education Services,Capstone Foster Care Midlands,28/08/2020,,1463.44,External Fostering,Not Yet Classified
Solihull MBC,Children's Services & Skills,Children & Education Services,Capstone Foster Care Midlands,20/08/2020,,3436,External Fostering,Not Yet Classified
Solihull MBC,Children's Services & Skills,Children & Education Services,Capstone Foster Care Midlands,20/08/2020,,-1463.44,External Fostering,Not Yet Classified
Solihull MBC,Adult Social Care,Adult Social Care,Caradoc House,13/08/2020,,2474.92,ASC - Residential Care Permanent,Not Yet Classified
Solihull MBC,Adult Social Care,Adult Social Care,Caraston Hall Support & Living,07/08/2020,,1440.8,ASC - Supported Living Care Costs,Not Yet Classified
Solihull MBC,Children's Services - DSG Central.,Children & Education Services,Care First Management Services Ltd,12/08/2020,,5000,Professional Fees,Not Yet Classified
Solihull MBC,Children's Services - DSG Central.,Children & Education Services,Care First Management Services Ltd,27/08/2020,,5000,Professional Fees,Not Yet Classified
Solihull MBC,Children's Services & Skills,Children & Education Services,Care Perspectives Ltd,10/08/2020,,3450.02,Other Contracted Services,Not Yet Classified
Solihull MBC,Adult Social Care,Adult Social Care,Care Services,27/08/2020,,1584,ASC - Supported Living Care Costs,321000 - Social Community Care Supplies & Services - Adult
Solihull MBC,Adult Social Care,Adult Social Care,Care Services,27/08/2020,,3613.4,ASC - Supported Living Care Costs,321000 - Social Community Care Supplies & Services - Adult
Solihull MBC,Adult Social Care,Adult Social Care,Care Through The Millenium,13/08/2020,,7189.56,ASC - Residential Care Permanent,321000 - Social Community Care Supplies & Services - Adult
Solihull MBC,Adult Social Care,Adult Social Care,Care Through The Millenium,13/08/2020,,6606.04,ASC - Residential Care Permanent,321000 - Social Community Care Supplies & Services - Adult
Solihull MBC,Adult Social Care,Adult Social Care,Care Through The Millenium,13/08/2020,,5540.36,ASC - Residential Care Permanent,321000 - Social Community Care Supplies & Services - Adult
Solihull MBC,Adult Social Care,Adult Social Care,Care Through The Millenium,13/08/2020,,13832.28,ASC - Residential Care Permanent,321000 - Social Community Care Supplies & Services - Adult
Solihull MBC,Adult Social Care,Adult Social Care,Care Through The Millenium,13/08/2020,,9369.92,ASC - Residential Care Permanent,321000 - Social Community Care Supplies & Services - Adult
Solihull MBC,Adult Social Care,Adult Social Care,Care UK Homecare,13/08/2020,,2736.44,ASC - Residential Care Permanent,Not Yet Classified
Solihull MBC,Adult Social Care,Adult Social Care,Care2Home Ltd TA Heritage Healthcare Solihull,06/08/2020,,338.4,ASC - Domiciliary Care,Not Yet Classified
Solihull MBC,Adult Social Care,Adult Social Care,Care2Home Ltd TA Heritage Healthcare Solihull,06/08/2020,,812.16,ASC - Domiciliary Care,Not Yet Classified
Solihull MBC,Adult Social Care,Adult Social Care,Care2Home Ltd TA Heritage Healthcare Solihull,06/08/2020,,812.16,ASC - Domiciliary Care,Not Yet Classified
Solihull MBC,Adult Social Care,Adult Social Care,Care2Home Ltd TA Heritage Healthcare Solihull,06/08/2020,,1099.8,ASC - Out of hospital,Not Yet Classified
Solihull MBC,Adult Social Care,Adult Social Care,Care2Home Ltd TA Heritage Healthcare Solihull,06/08/2020,,1163.25,ASC - Domiciliary Care,Not Yet Classified
Solihull MBC,Adult Social Care,Adult Social Care,Care2Home Ltd TA Heritage Healthcare Solihull,06/08/2020,,439.92,ASC - Domiciliary Care,Not Yet Classified
Solihull MBC,Adult Social Care,Adult Social Care,Care2Home Ltd TA Heritage Healthcare Solihull,06/08/2020,,439.92,ASC - Domiciliary Care,Not Yet Classified
Solihull MBC,Adult Social Care,Adult Social Care,Care2Home Ltd TA Heritage Healthcare Solihull,06/08/2020,,3485.52,ASC - Domiciliary Care,Not Yet Classified
Solihull MBC,Adult Social Care,Adult Social Care,Care2Home Ltd TA Heritage Healthcare Solihull,06/08/2020,,1065.96,ASC - Domiciliary Care,Not Yet Classified
Solihull MBC,Adult Social Care,Adult Social Care,Care2Home Ltd TA Heritage Healthcare Solihull,06/08/2020,,1065.96,ASC - Domiciliary Care,Not Yet Classified
Solihull MBC,Adult Social Care,Adult Social Care,Care2Home Ltd TA Heritage Healthcare Solihull,06/08/2020,,947.52,ASC - Domiciliary Care,Not Yet Classified
Solihull MBC,Adult Social Care,Adult Social Care,Care2Home Ltd TA Heritage Healthcare Solihull,06/08/2020,,1184.4,ASC - Domiciliary Care,Not Yet Classified
Solihull MBC,Adult Social Care,Adult Social Care,Care2Home Ltd TA Heritage Healthcare Solihull,06/08/2020,,1184.4,ASC - Domiciliary Care,Not Yet Classified
Solihull MBC,Adult Social Care,Adult Social Care,Care2Home Ltd TA Heritage Healthcare Solihull,06/08/2020,,829.08,ASC - Domiciliary Care,Not Yet Classified
Solihull MBC,Adult Social Care,Adult Social Care,Care2Home Ltd TA Heritage Healthcare Solihull,06/08/2020,,829.08,ASC - Domiciliary Care,Not Yet Classified
Solihull MBC,Adult Social Care,Adult Social Care,Care2Home Ltd TA Heritage Healthcare Solihull,06/08/2020,,372.24,ASC - Domiciliary Care,Not Yet Classified
Solihull MBC,Adult Social Care,Adult Social Care,Care2Home Ltd TA Heritage Healthcare Solihull,06/08/2020,,1099.8,ASC - Domiciliary Care,Not Yet Classified
Solihull MBC,Adult Social Care,Adult Social Care,Care2Home Ltd TA Heritage Healthcare Solihull,06/08/2020,,1108.26,ASC - Domiciliary Care,Not Yet Classified
Solihull MBC,Adult Social Care,Adult Social Care,Care2Home Ltd TA Heritage Healthcare Solihull,06/08/2020,,778.32,ASC - Domiciliary Care,Not Yet Classified
Solihull MBC,Adult Social Care,Adult Social Care,Care2Home Ltd TA Heritage Healthcare Solihull,06/08/2020,,761.4,ASC - Domiciliary Care,Not Yet Classified
Solihull MBC,Adult Social Care,Adult Social Care,Care2Home Ltd TA Heritage Healthcare Solihull,06/08/2020,,253.8,ASC - Domiciliary Care,Not Yet Classified
Solihull MBC,Adult Social Care,Adult Social Care,Care2Home Ltd TA Heritage Healthcare Solihull,06/08/2020,,253.8,ASC - Domiciliary Care,Not Yet Classified
Solihull MBC,Adult Social Care,Adult Social Care,Care2Home Ltd TA Heritage Healthcare Solihull,06/08/2020,,592.2,ASC - Domiciliary Care,Not Yet Classified
Solihull MBC,Adult Social Care,Adult Social Care,Care2Home Ltd TA Heritage Healthcare Solihull,06/08/2020,,1065.96,ASC - Domiciliary Care,Not Yet Classified
Solihull MBC,Adult Social Care,Adult Social Care,Care2Home Ltd TA Heritage Healthcare Solihull,06/08/2020,,1065.96,ASC - Domiciliary Care,Not Yet Classified
Solihull MBC,Adult Social Care,Adult Social Care,Care2Home Ltd TA Heritage Healthcare Solihull,06/08/2020,,955.98,ASC - Domiciliary Care,Not Yet Classified
Solihull MBC,Adult Social Care,Adult Social Care,Care2Home Ltd TA Heritage Healthcare Solihull,06/08/2020,,955.98,ASC - Domiciliary Care,Not Yet Classified
Solihull MBC,Adult Social Care,Adult Social Care,Care2Home Ltd TA Heritage Healthcare Solihull,06/08/2020,,1488.96,ASC - Domiciliary Care,Not Yet Classified
Solihull MBC,Adult Social Care,Adult Social Care,Care2Home Ltd TA Heritage Healthcare Solihull,06/08/2020,,1065.96,ASC - Domiciliary Care,Not Yet Classified
Solihull MBC,Adult Social Care,Adult Social Care,Care2Home Ltd TA Heritage Healthcare Solihull,06/08/2020,,1065.96,ASC - Domiciliary Care,Not Yet Classified
Solihull MBC,Adult Social Care,Adult Social Care,Care2Home Ltd TA Heritage Healthcare Solihull,06/08/2020,,964.44,ASC - Domiciliary Care,Not Yet Classified
Solihull MBC,Adult Social Care,Adult Social Care,Care2Home Ltd TA Heritage Healthcare Solihull,06/08/2020,,1015.2,ASC - Domiciliary Care,Not Yet Classified
Solihull MBC,Adult Social Care,Adult Social Care,Care2Home Ltd TA Heritage Healthcare Solihull,06/08/2020,,1065.96,ASC - Domiciliary Care,Not Yet Classified
Solihull MBC,Adult Social Care,Adult Social Care,Care2Home Ltd TA Heritage Healthcare Solihull,06/08/2020,,1065.96,ASC - Domiciliary Care,Not Yet Classified
Solihull MBC,Adult Social Care,Adult Social Care,Care2Home Ltd TA Heritage Healthcare Solihull,06/08/2020,,947.52,ASC - Domiciliary Care,Not Yet Classified
Solihull MBC,Adult Social Care,Adult Social Care,Care2Home Ltd TA Heritage Healthcare Solihull,06/08/2020,,1353.6,ASC - Domiciliary Care,Not Yet Classified
Solihull MBC,Adult Social Care,Adult Social Care,Care2Home Ltd TA Heritage Healthcare Solihull,06/08/2020,,1184.4,ASC - Domiciliary Care,Not Yet Classified
Solihull MBC,Adult Social Care,Adult Social Care,Care2Home Ltd TA Heritage Healthcare Solihull,06/08/2020,,693.72,ASC - Domiciliary Care,Not Yet Classified
Solihull MBC,Adult Social Care,Adult Social Care,Care2Home Ltd TA Heritage Healthcare Solihull,06/08/2020,,693.72,ASC - Domiciliary Care,Not Yet Classified
Solihull MBC,Adult Social Care,Adult Social Care,Care2Home Ltd TA Heritage Healthcare Solihull,06/08/2020,,456.84,ASC - Domiciliary Care,Not Yet Classified
Solihull MBC,Adult Social Care,Adult Social Care,Care2Home Ltd TA Heritage Healthcare Solihull,06/08/2020,,270.72,ASC - Domiciliary Care,Not Yet Classified
Solihull MBC,Adult Social Care,Adult Social Care,Care2Home Ltd TA Heritage Healthcare Solihull,06/08/2020,,1184.4,ASC - Domiciliary Care,Not Yet Classified
Solihull MBC,Adult Social Care,Adult Social Care,Care2Home Ltd TA Heritage Healthcare Solihull,06/08/2020,,1184.4,ASC - Domiciliary Care,Not Yet Classified
Solihull MBC,Adult Social Care,Adult Social Care,Care2Home Ltd TA Heritage Healthcare Solihull,06/08/2020,,473.76,ASC - Domiciliary Care,Not Yet Classified
Solihull MBC,Adult Social Care,Adult Social Care,Care2Home Ltd TA Heritage Healthcare Solihull,06/08/2020,,1065.96,ASC - Domiciliary Care,Not Yet Classified
Solihull MBC,Adult Social Care,Adult Social Care,Care2Home Ltd TA Heritage Healthcare Solihull,06/08/2020,,1065.96,ASC - Domiciliary Care,Not Yet Classified
Solihull MBC,Adult Social Care,Adult Social Care,Care2Home Ltd TA Heritage Healthcare Solihull,06/08/2020,,1167.48,ASC - Domiciliary Care,Not Yet Classified
Solihull MBC,Adult Social Care,Adult Social Care,Care2Home Ltd TA Heritage Healthcare Solihull,06/08/2020,,1184.4,ASC - Domiciliary Care,Not Yet Classified
Solihull MBC,Adult Social Care,Adult Social Care,Care2Home Ltd TA Heritage Healthcare Solihull,06/08/2020,,1184.4,ASC - Domiciliary Care,Not Yet Classified
Solihull MBC,Adult Social Care,Adult Social Care,Care2Home Ltd TA Heritage Healthcare Solihull,06/08/2020,,710.64,ASC - Domiciliary Care,Not Yet Classified
Solihull MBC,Adult Social Care,Adult Social Care,Care2Home Ltd TA Heritage Healthcare Solihull,06/08/2020,,710.64,ASC - Domiciliary Care,Not Yet Classified
Solihull MBC,Adult Social Care,Adult Social Care,Care2Home Ltd TA Heritage Healthcare Solihull,06/08/2020,,329.94,ASC - Domiciliary Care,Not Yet Classified
Solihull MBC,Adult Social Care,Adult Social Care,Care2Home Ltd TA Heritage Healthcare Solihull,06/08/2020,,532.98,ASC - Domiciliary Care,Not Yet Classified
Solihull MBC,Adult Social Care,Adult Social Care,Care2Home Ltd TA Heritage Healthcare Solihull,06/08/2020,,532.98,ASC - Domiciliary Care,Not Yet Classified
Solihull MBC,Adult Social Care,Adult Social Care,Care2Home Ltd TA Heritage Healthcare Solihull,06/08/2020,,1065.96,ASC - Domiciliary Care,Not Yet Classified
Solihull MBC,Adult Social Care,Adult Social Care,Care2Home Ltd TA Heritage Healthcare Solihull,06/08/2020,,1201.32,ASC - Domiciliary Care,Not Yet Classified
Solihull MBC,Adult Social Care,Adult Social Care,Care2Home Ltd TA Heritage Healthcare Solihull,06/08/2020,,1201.32,ASC - Domiciliary Care,Not Yet Classified
Solihull MBC,Adult Social Care,Adult Social Care,Care2Home Ltd TA Heritage Healthcare Solihull,06/08/2020,,473.76,ASC - Domiciliary Care,Not Yet Classified
Solihull MBC,Adult Social Care,Adult Social Care,Care2Home Ltd TA Heritage Healthcare Solihull,06/08/2020,,1302.84,ASC - Domiciliary Care,Not Yet Classified
Solihull MBC,Adult Social Care,Adult Social Care,Care2Home Ltd TA Heritage Healthcare Solihull,06/08/2020,,270.72,ASC - Domiciliary Care,Not Yet Classified
Solihull MBC,Adult Social Care,Adult Social Care,Care2Home Ltd TA Heritage Healthcare Solihull,06/08/2020,,744.48,ASC - Domiciliary Care,Not Yet Classified
Solihull MBC,Adult Social Care,Adult Social Care,Care2Home Ltd TA Heritage Healthcare Solihull,06/08/2020,,812.16,ASC - Domiciliary Care,Not Yet Classified
Solihull MBC,Adult Social Care,Adult Social Care,Caretech Community Services,13/08/2020,,7955.36,ASC - Residential Care Permanent,321000 - Social Community Care Supplies & Services - Adult
Solihull MBC,Adult Social Care,Adult Social Care,Caretech Community Services,14/08/2020,,7955.36,ASC - Residential Care Permanent,321000 - Social Community Care Supplies & Services - Adult
Solihull MBC,Adult Social Care,Adult Social Care,Caretech Community Services,13/08/2020,,7955.36,ASC - Residential Care Permanent,321000 - Social Community Care Supplies & Services - Adult
Solihull MBC,Adult Social Care,Adult Social Care,Caretech Community Services,14/08/2020,,7955.36,ASC - Residential Care Permanent,321000 - Social Community Care Supplies & Services - Adult
Solihull MBC,Adult Social Care,Adult Social Care,Caretech Community Services,14/08/2020,,7955.36,ASC - Residential Care Permanent,321000 - Social Community Care Supplies & Services - Adult
Solihull MBC,Adult Social Care,Adult Social Care,Caretech Community Services,14/08/2020,,7955.36,ASC - Residential Care Permanent,321000 - Social Community Care Supplies & Services - Adult
Solihull MBC,Adult Social Care,Adult Social Care,Caretech Community Services,14/08/2020,,7955.36,ASC - Residential Care Permanent,321000 - Social Community Care Supplies & Services - Adult
Solihull MBC,Adult Social Care,Adult Social Care,Caretech Community Services,13/08/2020,,8782.2,ASC - Residential Care Permanent,321000 - Social Community Care Supplies & Services - Adult
Solihull MBC,Adult Social Care,Adult Social Care,Caretech Community Services,13/08/2020,,7955.36,ASC - Residential Care Permanent,321000 - Social Community Care Supplies & Services - Adult
Solihull MBC,Adult Social Care,Adult Social Care,Caretech Community Services,13/08/2020,,7955.36,ASC - Residential Care Permanent,321000 - Social Community Care Supplies & Services - Adult
Solihull MBC,Adult Social Care,Adult Social Care,Caretech Community Services,14/08/2020,,7955.36,ASC - Residential Care Permanent,321000 - Social Community Care Supplies & Services - Adult
Solihull MBC,Adult Social Care,Adult Social Care,Caretech Community Services,13/08/2020,,7955.36,ASC - Residential Care Permanent,321000 - Social Community Care Supplies & Services - Adult
Solihull MBC,Adult Social Care,Adult Social Care,Caretech Community Services,14/08/2020,,7955.36,ASC - Residential Care Permanent,321000 - Social Community Care Supplies & Services - Adult
Solihull MBC,Adult Social Care,Adult Social Care,Caretech Community Services,13/08/2020,,7955.36,ASC - Residential Care Permanent,321000 - Social Community Care Supplies & Services - Adult
Solihull MBC,Adult Social Care,Adult Social Care,Caretech Community Services,13/08/2020,,7955.36,ASC - Residential Care Permanent,321000 - Social Community Care Supplies & Services - Adult
Solihull MBC,Adult Social Care,Adult Social Care,Caretech Community Services,14/08/2020,,7955.36,ASC - Residential Care Permanent,321000 - Social Community Care Supplies & Services - Adult
Solihull MBC,Adult Social Care,Adult Social Care,Carlton Care Homes Ltd T/A Beechcroft Residentail Home,13/08/2020,,1802.36,ASC - Residential Care Permanent,Not Yet Classified
Solihull MBC,Children's Services & Skills,Children & Education Services,Carter Brown Associates,14/08/2020,,2542.4,Clients Expenses,Not Yet Classified
Solihull MBC,Children's Services & Skills,Children & Education Services,Carter Brown Associates,19/08/2020,,540.5,Professional Fees,Not Yet Classified
Solihull MBC,Children's Services & Skills,Children & Education Services,Carter Brown Associates,19/08/2020,,1497.6,Professional Fees,Not Yet Classified
Solihull MBC,Adult Social Care,Adult Social Care,CAS Learning Disabilities Midlands,13/08/2020,,13203.4,ASC - Residential Care Permanent,Not Yet Classified
Solihull MBC,Adult Social Care,Corporate & Democratic Core,Castle Bromwich Hall Gardens,27/08/2020,,35000,Grant & Subscription (SCITT),290000 - Arts & Leisure Services
Solihull MBC,Public Health & Commissioning,Central Services to the Public,Castle Bromwich Parish Council,13/08/2020,,10000,Grant & Subscription (SCITT),Not Yet Classified
Solihull MBC,Adult Social Care,Adult Social Care,Castle Froma,13/08/2020,,6796,ASC - Nursing Care Respite,Not Yet Classified
Solihull MBC,Adult Social Care,Adult Social Care,Castle Froma,13/08/2020,,5363.4,ASC - Residential Care Permanent,Not Yet Classified
Solihull MBC,Children's Services & Skills,Children & Education Services,Castle Homes Care Ltd,28/08/2020,,17679.28,Other Contracted Services,Not Yet Classified
Solihull MBC,Children's Services & Skills,Children & Education Services,Castle Homes Care Ltd,07/08/2020,,17679.28,Other Contracted Services,Not Yet Classified
Solihull MBC,Children's Services & Skills,Children & Education Services,Cathedral Leasing Ltd,27/08/2020,,210.16,Repair & Maintn Of Buildings,171011 - Education - School Services
Solihull MBC,Public Health & Commissioning,Central Services to the Public,CBD World Clinic Ltd,12/08/2020,,10000,Grant & Subscription (SCITT),Not Yet Classified
Solihull MBC,Adult Social Care,Adult Social Care,Cedar Lodge Nursing Home,13/08/2020,,2731.68,ASC - Nursing Care Permanent,Not Yet Classified
Solihull MBC,Adult Social Care,Adult Social Care,Cedar Lodge Nursing Home,13/08/2020,,1563.84,ASC - Nursing Care Respite,Not Yet Classified
Solihull MBC,Adult Social Care,Adult Social Care,Cedar Lodge Nursing Home,13/08/2020,,2731.68,ASC - Nursing Care Permanent,Not Yet Classified
Solihull MBC,Adult Social Care,Adult Social Care,Cedar Lodge Nursing Home,13/08/2020,,2503.2,ASC - Nursing Care Permanent,Not Yet Classified
Solihull MBC,Adult Social Care,Adult Social Care,Cefndy Healthcare,17/08/2020,,673.3,Furniture & Equipment,Not Yet Classified
Solihull MBC,Adult Social Care,Adult Social Care,Cefndy Healthcare,20/08/2020,,673.3,Furniture & Equipment,Not Yet Classified
Solihull MBC,Children's Services & Skills,Children & Education Services,Cellmark Diagnostics,14/08/2020,,555,Professional Fees,Not Yet Classified
Solihull MBC,Children's Services & Skills,Children & Education Services,Cellmark Diagnostics,14/08/2020,,555,Professional Fees,Not Yet Classified
Solihull MBC,Children's Services & Skills,Children & Education Services,Cellmark Diagnostics,14/08/2020,,504,Professional Fees,Not Yet Classified
Solihull MBC,Children's Services & Skills,Children & Education Services,CFAB,10/08/2020,,3125,Professional Fees,Not Yet Classified
Solihull MBC,Public Health & Commissioning,Central Services to the Public,CGJ Building Services,12/08/2020,,10000,Grant & Subscription (SCITT),Not Yet Classified
Solihull MBC,Adult Social Care,Adult Social Care,Charmend Ltd T/A Aldridge Court Nursing Home,13/08/2020,,4031.44,ASC - Nursing Care Permanent,Not Yet Classified
Solihull MBC,Economy and Infrastructure,Planning & Development Services,Chartered Association Of Building Engineers,14/08/2020,,275,Grant & Subscription (SCITT),Not Yet Classified
Solihull MBC,Adult Social Care,Adult Social Care,Chaseview Nursing & Residential Home,13/08/2020,,2298.52,ASC - Residential Care Permanent,Not Yet Classified
Solihull MBC,Economy and Infrastructure,Highways & Transport Services,Chipside Ltd,03/08/2020,,1697.5,IT Equipment & Software,350200 - Street & Traffic Management - Parking
Solihull MBC,Economy and Infrastructure,Highways & Transport Services,Chipside Ltd,03/08/2020,,1621.08,IT Equipment & Software,350200 - Street & Traffic Management - Parking
Solihull MBC,Economy and Infrastructure,Highways & Transport Services,Chipside Ltd,03/08/2020,,467.99,IT Equipment & Software,350200 - Street & Traffic Management - Parking
Solihull MBC,Economy and Infrastructure,Highways & Transport Services,Chipside Ltd,24/08/2020,,1001.72,IT Equipment & Software,350200 - Street & Traffic Management - Parking
Solihull MBC,Economy and Infrastructure,Highways & Transport Services,Chipside Ltd,24/08/2020,,295.59,IT Equipment & Software,350200 - Street & Traffic Management - Parking
Solihull MBC,Economy and Infrastructure,Highways & Transport Services,Chipside Ltd,17/08/2020,,1534.75,IT Equipment & Software,350200 - Street & Traffic Management - Parking
Solihull MBC,Economy and Infrastructure,Highways & Transport Services,Chipside Ltd,25/08/2020,,1201.57,IT Equipment & Software,350200 - Street & Traffic Management - Parking
Solihull MBC,Adult Social Care,Adult Social Care,Chunc Ltd,18/08/2020,,16.5,Furniture & Equipment,Not Yet Classified
Solihull MBC,Adult Social Care,Adult Social Care,Chunc Ltd,18/08/2020,,443.71,Furniture & Equipment,Not Yet Classified
Solihull MBC,Adult Social Care,Adult Social Care,Churchill Service Solutions,13/08/2020,,1069.1,Cleaning,Not Yet Classified
Solihull MBC,Adult Social Care,Adult Social Care,Churchill Service Solutions,13/08/2020,,1750.96,Cleaning,Not Yet Classified
Solihull MBC,Adult Social Care,Adult Social Care,Churchill Service Solutions,13/08/2020,,413.61,Cleaning,Not Yet Classified
Solihull MBC,Adult Social Care,Adult Social Care,Churchill Service Solutions,13/08/2020,,288.52,Cleaning,Not Yet Classified
Solihull MBC,Adult Social Care,Adult Social Care,Churchill Service Solutions,13/08/2020,,1090.75,Cleaning,Not Yet Classified
Solihull MBC,Children's Services & Skills,Children & Education Services,Churchill Service Solutions,07/08/2020,,760.88,Cleaning,Not Yet Classified
Solihull MBC,Economy and Infrastructure,Highways & Transport Services,Churchill Service Solutions,13/08/2020,,189.29,Cleaning,Not Yet Classified
Solihull MBC,Children's Services & Skills,Planning & Development Services,Churchill Service Solutions,13/08/2020,,381.75,Cleaning,Not Yet Classified
Solihull MBC,Economy and Infrastructure,Planning & Development Services,Churchill Service Solutions,13/08/2020,,768.88,Cleaning,Not Yet Classified
Solihull MBC,Economy and Infrastructure,Cultural & Related Services,Churchill Service Solutions,10/08/2020,,3076.5,Cleaning,Not Yet Classified
Solihull MBC,Economy and Infrastructure,Environmental and Regulatory Services,Churchill Service Solutions,11/08/2020,,636.05,Materials,Not Yet Classified
Solihull MBC,Resources,Children & Education Services,Churchill Service Solutions,13/08/2020,,1081.79,Cleaning,Not Yet Classified
Solihull MBC,Resources,Central Services to the Public,Churchill Service Solutions,13/08/2020,,1335.37,Cleaning,Not Yet Classified
Solihull MBC,Resources,Central Services to the Public,Churchill Service Solutions,13/08/2020,,8351.63,Cleaning,Not Yet Classified
Solihull MBC,Resources,Central Services to the Public,Churchill Service Solutions,13/08/2020,,1862.96,Cleaning,Not Yet Classified
Solihull MBC,Resources,Central Services to the Public,Churchill Service Solutions,13/08/2020,,524.35,Cleaning,Not Yet Classified
Solihull MBC,Resources,Central Services to the Public,Churchill Service Solutions,13/08/2020,,459.21,Cleaning,Not Yet Classified
Solihull MBC,Resources,Central Services to the Public,Churchill Service Solutions,13/08/2020,,3840.16,Cleaning,Not Yet Classified
Solihull MBC,Resources,Central Services to the Public,Churchill Service Solutions,13/08/2020,,1772.67,Cleaning,Not Yet Classified
Solihull MBC,Resources,Central Services to the Public,Churchill Service Solutions,13/08/2020,,1309.38,Cleaning,Not Yet Classified
Solihull MBC,Resources,Corporate & Democratic Core,Churchill Service Solutions,13/08/2020,,1749.86,Cleaning,Not Yet Classified
Solihull MBC,Resources,Planning & Development Services,Churchill Service Solutions,13/08/2020,,70.32,Cleaning,Not Yet Classified
Solihull MBC,Resources,Planning & Development Services,Churchill Service Solutions,13/08/2020,,834.15,Cleaning,Not Yet Classified
Solihull MBC,Resources,Cultural & Related Services,Churchill Service Solutions,13/08/2020,,6759.1,Cleaning,Not Yet Classified
Solihull MBC,Resources,Planning & Development Services,CIPFA,19/08/2020,,1125,Grant & Subscription (SCITT),Not Yet Classified
Solihull MBC,Resources,Central Services to the Public,CIPFA Business Ltd,17/08/2020,,245,Training,202100 - Financial Services - Subscriptions
Solihull MBC,Resources,Central Services to the Public,CIPFA Business Ltd,18/08/2020,,715,General Office Expenses,202100 - Financial Services - Subscriptions
Solihull MBC,Economy and Infrastructure,Highways & Transport Services,City Electrical Factors Ltd,28/08/2020,,350,Furniture & Equipment,171011 - Education - School Services
Solihull MBC,Children's Services & Skills,Children & Education Services,City Link Transfers,06/08/2020,,637,Transport-Contract Hire,Not Yet Classified
Solihull MBC,Children's Services & Skills,Children & Education Services,City Link Transfers,06/08/2020,,637,Transport-Contract Hire,Not Yet Classified
Solihull MBC,Children's Services & Skills,Children & Education Services,City Sprint (UK) Ltd,04/08/2020,,220.12,Postage & Courier Services,300000 - Mail Services
Solihull MBC,Resources,Central Services to the Public,Civica Election Services Ltd,04/08/2020,,823.8,General Office Expenses,Not Yet Classified
Solihull MBC,Adult Social Care,Adult Social Care,Clarity 4 Care Ltd,05/08/2020,,400,Other Contracted Services,Not Yet Classified
Solihull MBC,Children's Services & Skills,Children & Education Services,Closer 2 Home Ltd,06/08/2020,,2200,Supported Lodgings,Not Yet Classified
Solihull MBC,Adult Social Care,Adult Social Care,CMG Alderwood,13/08/2020,,4760,ASC - Supported Living Care Costs,Not Yet Classified
Solihull MBC,Adult Social Care,Adult Social Care,CMG Alderwood,13/08/2020,,1035.86,ASC - Supported Living Care Costs,Not Yet Classified
Solihull MBC,Economy and Infrastructure,Highways & Transport Services,Coachwise 1st4Sport,18/08/2020,,360,Materials,171011 - Education - School Services
Solihull MBC,Adult Social Care,Adult Social Care,Coate Water Care Ltd Mockley Manor,13/08/2020,,2480.52,ASC - Residential Care Permanent,Not Yet Classified
Solihull MBC,Economy and Infrastructure,Highways & Transport Services,Colan Ltd,07/08/2020,,773.75,Materials,171100 - Education - Supplies
Solihull MBC,Adult Social Care,Adult Social Care,Cole Valley Nursing Home,13/08/2020,,2503.2,ASC - Nursing Care Permanent,321000 - Social Community Care Supplies & Services - Adult
Solihull MBC,Resources,Central Services to the Public,Comms Express Ltd,21/08/2020,Card Transaction,248.69,Purchase Card Statement Summary,169999 - Domestic Goods - Not Elsewhere Classified
Solihull MBC,Resources,Central Services to the Public,Comms Express Ltd,21/08/2020,Card Transaction,686.76,Purchase Card Statement Summary,169999 - Domestic Goods - Not Elsewhere Classified
Solihull MBC,Adult Social Care,Adult Social Care,Community Living & Support Ltd,20/08/2020,,934.4,ASC - Supported Living Care Costs,321000 - Social Community Care Supplies & Services - Adult
Solihull MBC,Adult Social Care,Adult Social Care,Community Living & Support Ltd,13/08/2020,,4051.04,ASC - Residential Care Permanent,321000 - Social Community Care Supplies & Services - Adult
Solihull MBC,Adult Social Care,Adult Social Care,Community Living & Support Ltd,20/08/2020,,1068.9,ASC - Supported Living Care Costs,321000 - Social Community Care Supplies & Services - Adult
Solihull MBC,Children's Services & Skills,Children & Education Services,Compass Fostering Central Ltd,07/08/2020,,3359.4,External Fostering,Not Yet Classified
Solihull MBC,Children's Services & Skills,Children & Education Services,Compass Fostering Central Ltd,07/08/2020,,2941.28,External Fostering,Not Yet Classified
Solihull MBC,Children's Services & Skills,Children & Education Services,Compass Fostering Central Ltd,07/08/2020,,3539.4,External Fostering,Not Yet Classified
Solihull MBC,Children's Services & Skills,Children & Education Services,Compass Fostering Central Ltd,07/08/2020,,359.94,External Fostering,Not Yet Classified
Solihull MBC,Children's Services & Skills,Children & Education Services,Compass Fostering Central Ltd,07/08/2020,,3359.4,External Fostering,Not Yet Classified
Solihull MBC,Children's Services & Skills,Children & Education Services,Compass Fostering Central Ltd,07/08/2020,,2396.28,External Fostering,Not Yet Classified
Solihull MBC,Children's Services & Skills,Children & Education Services,Compass Fostering Central Ltd,07/08/2020,,2941.28,External Fostering,Not Yet Classified
Solihull MBC,Children's Services & Skills,Children & Education Services,Compass Fostering Central Ltd,07/08/2020,,2884,External Fostering,Not Yet Classified
Solihull MBC,Children's Services & Skills,Children & Education Services,Compass Fostering Central Ltd,07/08/2020,,2422.56,External Fostering,Not Yet Classified
Solihull MBC,Children's Services & Skills,Children & Education Services,Compass Fostering Central Ltd,07/08/2020,,2422.56,External Fostering,Not Yet Classified
Solihull MBC,Children's Services & Skills,Children & Education Services,Compass Fostering Central Ltd,07/08/2020,,2422.56,External Fostering,Not Yet Classified
Solihull MBC,Children's Services & Skills,Children & Education Services,Compass Fostering Central Ltd,07/08/2020,,2595.6,External Fostering,Not Yet Classified
Solihull MBC,Children's Services & Skills,Children & Education Services,Compass Fostering Central Ltd,28/08/2020,,2422.56,External Fostering,Not Yet Classified
Solihull MBC,Children's Services & Skills,Children & Education Services,Compass Fostering Central Ltd,07/08/2020,,2422.56,External Fostering,Not Yet Classified
Solihull MBC,Children's Services & Skills,Children & Education Services,Compass Fostering West Ltd,07/08/2020,,3120,External Fostering,Not Yet Classified
Solihull MBC,Children's Services & Skills,Children & Education Services,Compass Fostering West Ltd,07/08/2020,,1680,External Fostering,Not Yet Classified
Solihull MBC,Children's Services & Skills,Children & Education Services,Compass Fostering West Ltd,07/08/2020,,2694.6,External Fostering,Not Yet Classified
Solihull MBC,Children's Services & Skills,Children & Education Services,Compass Fostering West Ltd,20/08/2020,,2694.6,External Fostering,Not Yet Classified
Solihull MBC,Children's Services & Skills,Children & Education Services,Compass Fostering West Ltd,07/08/2020,,2694.6,External Fostering,Not Yet Classified
Solihull MBC,Children's Services & Skills,Children & Education Services,Compass Fostering West Ltd,20/08/2020,,2694.6,External Fostering,Not Yet Classified
Solihull MBC,Children's Services & Skills,Children & Education Services,Compass Fostering West Ltd,07/08/2020,,2694.6,External Fostering,Not Yet Classified
Solihull MBC,Children's Services & Skills,Children & Education Services,Compass Fostering West Ltd,20/08/2020,,2694.6,External Fostering,Not Yet Classified
Solihull MBC,Children's Services & Skills,Children & Education Services,Compass Fostering West Ltd,07/08/2020,,2880,External Fostering,Not Yet Classified
Solihull MBC,Children's Services & Skills,Children & Education Services,Compass Fostering West Ltd,20/08/2020,,2880,External Fostering,Not Yet Classified
Solihull MBC,Children's Services & Skills,Children & Education Services,Compass Fostering West Ltd,07/08/2020,,3219.4,External Fostering,Not Yet Classified
Solihull MBC,Children's Services & Skills,Children & Education Services,Compass Fostering West Ltd,20/08/2020,,3219.4,External Fostering,Not Yet Classified
Solihull MBC,Children's Services & Skills,Children & Education Services,Compass Fostering West Ltd,07/08/2020,,2707.2,External Fostering,Not Yet Classified
Solihull MBC,Children's Services & Skills,Children & Education Services,Compass Fostering West Ltd,20/08/2020,,2707.2,External Fostering,Not Yet Classified
Solihull MBC,Children's Services & Skills,Children & Education Services,Compass Fostering West Ltd,07/08/2020,,2707.2,External Fostering,Not Yet Classified
Solihull MBC,Children's Services & Skills,Children & Education Services,Compass Fostering West Ltd,20/08/2020,,2707.2,External Fostering,Not Yet Classified
Solihull MBC,Children's Services & Skills,Children & Education Services,Compass Fostering West Ltd,07/08/2020,,344.94,External Fostering,Not Yet Classified
Solihull MBC,Children's Services & Skills,Children & Education Services,Compass Fostering West Ltd,20/08/2020,,3219.4,External Fostering,Not Yet Classified
Solihull MBC,Children's Services & Skills,Children & Education Services,Compass Fostering West Ltd,07/08/2020,,2808,External Fostering,Not Yet Classified
Solihull MBC,Children's Services & Skills,Children & Education Services,Compass Fostering West Ltd,20/08/2020,,2808,External Fostering,Not Yet Classified
Solihull MBC,Children's Services & Skills,Children & Education Services,Compass Fostering West Ltd,07/08/2020,,2692.32,External Fostering,Not Yet Classified
Solihull MBC,Children's Services & Skills,Children & Education Services,Compass Fostering West Ltd,20/08/2020,,2692.32,External Fostering,Not Yet Classified
Solihull MBC,Children's Services - DSG Central.,Children & Education Services,Complete Business Solutions Group Ltd,04/08/2020,,87.2,Cleaning,Not Yet Classified
Solihull MBC,Children's Services - DSG Central.,Children & Education Services,Complete Business Solutions Group Ltd,04/08/2020,,43.25,Cleaning,Not Yet Classified
Solihull MBC,Children's Services - DSG Central.,Children & Education Services,Complete Business Solutions Group Ltd,04/08/2020,,12.48,Cleaning,Not Yet Classified
Solihull MBC,Children's Services - DSG Central.,Children & Education Services,Complete Business Solutions Group Ltd,04/08/2020,,100.8,Cleaning,Not Yet Classified
Solihull MBC,Children's Services - DSG Central.,Children & Education Services,Complete Business Solutions Group Ltd,04/08/2020,,6,Cleaning,Not Yet Classified
Solihull MBC,Children's Services - DSG Central.,Children & Education Services,Complete Care (Warks) Ltd,05/08/2020,,12500,Other Contracted Services,321100 - Social Community Care Supplies & Services - Children
Solihull MBC,Children's Services & Skills,Children & Education Services,Connection Recruitment,20/08/2020,,827.16,Clients Expenses,Not Yet Classified
Solihull MBC,Children's Services & Skills,Children & Education Services,Coram Chambers,06/08/2020,,1020,Other Fees,Not Yet Classified
Solihull MBC,Children's Services & Skills,Children & Education Services,Coram Children's Legal Centre,07/08/2020,,4300,Training,Not Yet Classified
Solihull MBC,Economy and Infrastructure - HRA,Housing Revenue Account,Corptel,14/07/2020,Card Transaction,339.1,Telephones,271699 - Information Communications Technology - Telecommunications
Solihull MBC,Adult Social Care,Adult Social Care,Country Court Care,13/08/2020,,2503.76,ASC - Nursing Care Permanent,Not Yet Classified
Solihull MBC,Adult Social Care,Adult Social Care,Country Court Care,13/08/2020,,2888.76,ASC - Nursing Care Permanent,Not Yet Classified
Solihull MBC,Adult Social Care,Adult Social Care,Country Court Care,13/08/2020,,2874.76,ASC - Residential Care Permanent,Not Yet Classified
Solihull MBC,Adult Social Care,Adult Social Care,Country Court Care,13/08/2020,,2503.76,ASC - Nursing Care Permanent,Not Yet Classified
Solihull MBC,Economy and Infrastructure,Environmental and Regulatory Services,Coventry City Council,04/08/2020,,32305.05,Other Contracted Services,Not Yet Classified
Solihull MBC,Resources,Central Services to the Public,Coventry City Council,03/08/2020,,20682,General Creditors,Not Yet Classified
Solihull MBC,Resources,Planning & Development Services,Coventry City Council,27/08/2020,,4689.14,General Creditors,Not Yet Classified
Solihull MBC,Adult Social Care,Adult Social Care,Coventry City Council (Shared Lives),13/08/2020,,320,ASC - Shared Lives,Not Yet Classified
Solihull MBC,Adult Social Care,Adult Social Care,Coventry City Council (Shared Lives),13/08/2020,,320,ASC - Shared Lives,Not Yet Classified
Solihull MBC,Adult Social Care,Adult Social Care,Cow Lees Nursing Home,13/08/2020,,6729.2,ASC - Nursing Care Permanent,321000 - Social Community Care Supplies & Services - Adult
Solihull MBC,Adult Social Care,Adult Social Care,Cow Lees Nursing Home,13/08/2020,,3378.48,ASC - Nursing Care Permanent,321000 - Social Community Care Supplies & Services - Adult
Solihull MBC,Economy and Infrastructure,Highways & Transport Services,Co-Wheels Car Club,05/08/2020,,225,Transport-Contract Hire,Not Yet Classified
Solihull MBC,Economy and Infrastructure,Highways & Transport Services,Co-Wheels Car Club,18/08/2020,,235,Transport-Contract Hire,Not Yet Classified
Solihull MBC,Adult Social Care,Adult Social Care,Craegmoor - Highfields Road,13/08/2020,,10546.76,ASC - Residential Care Permanent,Not Yet Classified
Solihull MBC,Adult Social Care,Adult Social Care,Craegmoor Charnwood Lodge,13/08/2020,,19470.64,ASC - Residential Care Permanent,Not Yet Classified
Solihull MBC,Adult Social Care,Adult Social Care,Craegmor Healthcare,13/08/2020,,620.13,ASC - Residential Care Respite,321000 - Social Community Care Supplies & Services - Adult
Solihull MBC,Adult Social Care,Adult Social Care,Craegmor Healthcare,13/08/2020,,2736.72,ASC - Nursing Care Permanent,321000 - Social Community Care Supplies & Services - Adult
Solihull MBC,Adult Social Care,Adult Social Care,Craegmor Healthcare,13/08/2020,,2736.72,ASC - Nursing Care Permanent,321000 - Social Community Care Supplies & Services - Adult
Solihull MBC,Adult Social Care,Adult Social Care,Craegmor Healthcare,13/08/2020,,2708.16,ASC - Nursing Care Permanent,321000 - Social Community Care Supplies & Services - Adult
Solihull MBC,Adult Social Care,Adult Social Care,Craegmor Healthcare,13/08/2020,,2503.2,ASC - Nursing Care Respite,321000 - Social Community Care Supplies & Services - Adult
Solihull MBC,Adult Social Care,Adult Social Care,Craegmor Healthcare,13/08/2020,,2627.52,ASC - Residential Care Permanent,321000 - Social Community Care Supplies & Services - Adult
Solihull MBC,Adult Social Care,Adult Social Care,Craegmor Healthcare,13/08/2020,,2736.72,ASC - Nursing Care Permanent,321000 - Social Community Care Supplies & Services - Adult
Solihull MBC,Adult Social Care,Adult Social Care,Craegmor Healthcare,13/08/2020,,2464,ASC - Residential Care Permanent,321000 - Social Community Care Supplies & Services - Adult
Solihull MBC,Adult Social Care,Adult Social Care,Craegmor Healthcare,13/08/2020,,2736.72,ASC - Nursing Care Permanent,321000 - Social Community Care Supplies & Services - Adult
Solihull MBC,Adult Social Care,Adult Social Care,Craegmor Healthcare,13/08/2020,,2736.72,ASC - Nursing Care Permanent,321000 - Social Community Care Supplies & Services - Adult
Solihull MBC,Adult Social Care,Adult Social Care,Craegmor Healthcare,13/08/2020,,2503.2,ASC - Nursing Care Permanent,321000 - Social Community Care Supplies & Services - Adult
Solihull MBC,Adult Social Care,Adult Social Care,Craegmor Healthcare,13/08/2020,,3520,ASC - Residential Care Permanent,321000 - Social Community Care Supplies & Services - Adult
Solihull MBC,Adult Social Care,Adult Social Care,Craegmor Healthcare,13/08/2020,,3520,ASC - Residential Care Respite,321000 - Social Community Care Supplies & Services - Adult
Solihull MBC,Adult Social Care,Adult Social Care,Craegmor Healthcare,13/08/2020,,2524.48,ASC - Residential Care Permanent,321000 - Social Community Care Supplies & Services - Adult
Solihull MBC,Adult Social Care,Adult Social Care,Craegmor Healthcare,13/08/2020,,2464,ASC - Residential Care Permanent,321000 - Social Community Care Supplies & Services - Adult
Solihull MBC,Adult Social Care,Adult Social Care,Craegmor Healthcare,13/08/2020,,2464,ASC - Residential Care Permanent,321000 - Social Community Care Supplies & Services - Adult
Solihull MBC,Adult Social Care,Adult Social Care,Craegmor Healthcare,13/08/2020,,2889.32,ASC - Nursing Care Permanent,321000 - Social Community Care Supplies & Services - Adult
Solihull MBC,Adult Social Care,Adult Social Care,Craegmor Healthcare,13/08/2020,,2480.52,ASC - Residential Care Permanent,321000 - Social Community Care Supplies & Services - Adult
Solihull MBC,Adult Social Care,Adult Social Care,Craegmor Healthcare,13/08/2020,,9773.68,ASC - Residential Care Permanent,321000 - Social Community Care Supplies & Services - Adult
Solihull MBC,Adult Social Care,Adult Social Care,Craegmor Healthcare,13/08/2020,,2736.72,ASC - Nursing Care Permanent,321000 - Social Community Care Supplies & Services - Adult
Solihull MBC,Resources,Central Services to the Public,Creditsafe Business Solutions Ltd,05/08/2020,,500,Professional Fees,Not Yet Classified
Solihull MBC,Resources,Central Services to the Public,Critiqom Ltd,11/08/2020,,491.53,Postage & Courier Services,Not Yet Classified
Solihull MBC,Resources,Central Services to the Public,Critiqom Ltd,05/08/2020,,1383.64,Postage & Courier Services,Not Yet Classified
Solihull MBC,Resources,Central Services to the Public,Critiqom Ltd,05/08/2020,,7309.1,Postage & Courier Services,Not Yet Classified
Solihull MBC,Resources,Central Services to the Public,Crown Records Management Ltd,04/08/2020,,580.51,IT Equipment & Software,270000 - Information Communication Technology
Solihull MBC,Children's Services & Skills,Children & Education Services,Currys Online,21/08/2020,Card Transaction,399,Purchase Card Statement Summary,169999 - Domestic Goods - Not Elsewhere Classified
Solihull MBC,Children's Services & Skills,Children & Education Services,Currys Online,06/07/2020,Card Transaction,574.16,Clients Expenses,169999 - Domestic Goods - Not Elsewhere Classified
Solihull MBC,Economy and Infrastructure,Other Housing Services,Cushman & Wakefield,28/08/2020,,4467.5,Professional Fees,Not Yet Classified
Solihull MBC,Economy and Infrastructure,Other Housing Services,Cushman & Wakefield,28/08/2020,,3287.5,Professional Fees,Not Yet Classified
Solihull MBC,Economy and Infrastructure,Planning & Development Services,Cushman & Wakefield,18/08/2020,,3575,Professional Fees,Not Yet Classified
Solihull MBC,Economy and Infrastructure,Planning & Development Services,Cushman & Wakefield,18/08/2020,,13345,Professional Fees,Not Yet Classified
Solihull MBC,Economy and Infrastructure,Other Housing Services,Cushman & Wakefield,28/08/2020,,2582.5,Professional Fees,Not Yet Classified
Solihull MBC,Resources,Planning & Development Services,Cushman & Wakefield,12/08/2020,,1745,Professional Fees,Not Yet Classified
Solihull MBC,Resources,Planning & Development Services,Cushman & Wakefield,12/08/2020,,1940,Professional Fees,Not Yet Classified
Solihull MBC,Public Health & Commissioning,Central Services to the Public,D & N Xpress Ltd,13/08/2020,,5000,Grant & Subscription (SCITT),Not Yet Classified
Solihull MBC,Children's Services & Skills,Children & Education Services,D A Languages Ltd,25/08/2020,,306.16,Professional Fees,Not Yet Classified
Solihull MBC,Public Health & Commissioning,Central Services to the Public,D.A. Fast Food,04/08/2020,,25000,Grant & Subscription (SCITT),Not Yet Classified
Solihull MBC,Children's Services - DSG Central.,Children & Education Services,Damson Wood Infant School,27/08/2020,,3302,Other Contracted Services,Not Yet Classified
Solihull MBC,Economy and Infrastructure,Highways & Transport Services,Dawson Group Vans,12/08/2020,,486.6,Transport-Contract Hire,Not Yet Classified
Solihull MBC,Economy and Infrastructure,Highways & Transport Services,Dawson Group Vans,12/08/2020,,322.76,Transport-Contract Hire,Not Yet Classified
Solihull MBC,Economy and Infrastructure,Highways & Transport Services,Dawson Group Vans,12/08/2020,,322.76,Transport-Contract Hire,Not Yet Classified
Solihull MBC,Economy and Infrastructure,Highways & Transport Services,Dawson Group Vans,03/08/2020,,502.82,Transport-Contract Hire,Not Yet Classified
Solihull MBC,Economy and Infrastructure,Highways & Transport Services,Dawson Group Vans,05/08/2020,,333.51,Transport-Contract Hire,Not Yet Classified
Solihull MBC,Economy and Infrastructure,Highways & Transport Services,Dawson Group Vans,05/08/2020,,333.51,Transport-Contract Hire,Not Yet Classified
Solihull MBC,Resources,Adult Social Care,Dawson Rentals Bus & Coach Ltd,03/08/2020,,15272.06,Transport-Contract Hire,360000 - Public Transport
Solihull MBC,Economy and Infrastructure,Highways & Transport Services,Days Contract Hire,04/08/2020,,1081.37,Transport-Contract Hire,Not Yet Classified
Solihull MBC,Economy and Infrastructure,Highways & Transport Services,Days Contract Hire,04/08/2020,,1081.37,Transport-Contract Hire,Not Yet Classified
Solihull MBC,Economy and Infrastructure,Highways & Transport Services,Days Contract Hire,04/08/2020,,1081.37,Transport-Contract Hire,Not Yet Classified
Solihull MBC,Economy and Infrastructure,Highways & Transport Services,Days Contract Hire,06/08/2020,,352,Other Transport Costs,Not Yet Classified
Solihull MBC,Resources,Children & Education Services,Dell Computer Corp Ltd,03/08/2020,,3700,IT Equipment & Software,270000 - Information Communication Technology
Solihull MBC,Resources,Children & Education Services,Dell Computer Corp Ltd,12/08/2020,,1036,IT Equipment & Software,270000 - Information Communication Technology
Solihull MBC,Resources,Children & Education Services,Dell Computer Corp Ltd,13/08/2020,,661.2,IT Equipment & Software,270000 - Information Communication Technology
Solihull MBC,Children's Services - DSG Central.,Children & Education Services,Demontford Marketing Ltd,10/08/2020,,728.5,Cleaning,To be classified individually
Solihull MBC,Children's Services - DSG Central.,Children & Education Services,Demontford Marketing Ltd,07/08/2020,,28.32,Cleaning,To be classified individually
Solihull MBC,Children's Services - DSG Central.,Children & Education Services,Demontford Marketing Ltd,07/08/2020,,1726.56,Cleaning,To be classified individually
Solihull MBC,Children's Services - DSG Central.,Children & Education Services,Demontford Marketing Ltd,10/08/2020,,3461.5,Cleaning,To be classified individually
Solihull MBC,Children's Services - DSG Central.,Children & Education Services,Demontford Marketing Ltd,10/08/2020,,924,Cleaning,To be classified individually
Solihull MBC,Children's Services - DSG Central.,Children & Education Services,Demontford Marketing Ltd,07/08/2020,,3920,Cleaning,To be classified individually
Solihull MBC,Children's Services - DSG Central.,Children & Education Services,Demontford Marketing Ltd,07/08/2020,,4250,Cleaning,To be classified individually
Solihull MBC,Children's Services - DSG Central.,Children & Education Services,Demontford Marketing Ltd,10/08/2020,,900,Cleaning,To be classified individually
Solihull MBC,Children's Services - DSG Central.,Children & Education Services,Demontford Marketing Ltd,10/08/2020,,800,Cleaning,To be classified individually
Solihull MBC,Children's Services - DSG Central.,Children & Education Services,Demontford Marketing Ltd,10/08/2020,,800,Cleaning,To be classified individually
Solihull MBC,Children's Services - DSG Central.,Children & Education Services,Demontford Marketing Ltd,10/08/2020,,240,Cleaning,To be classified individually
Solihull MBC,Children's Services - DSG Central.,Children & Education Services,Demontford Marketing Ltd,10/08/2020,,5775,Cleaning,To be classified individually
Solihull MBC,Children's Services - DSG Central.,Children & Education Services,Demontford Marketing Ltd,11/08/2020,,3960,Cleaning,To be classified individually
Solihull MBC,Children's Services - DSG Central.,Children & Education Services,Demontford Marketing Ltd,11/08/2020,,900,Cleaning,To be classified individually
Solihull MBC,Children's Services - DSG Central.,Children & Education Services,Demontford Marketing Ltd,27/08/2020,,27.3,Cleaning,To be classified individually
Solihull MBC,Children's Services - DSG Central.,Children & Education Services,Demontford Marketing Ltd,27/08/2020,,219,Cleaning,To be classified individually
Solihull MBC,Children's Services - DSG Central.,Children & Education Services,Demontford Marketing Ltd,28/08/2020,,48.96,Cleaning,To be classified individually
Solihull MBC,Children's Services - DSG Central.,Children & Education Services,Demontford Marketing Ltd,28/08/2020,,900,Cleaning,To be classified individually
Solihull MBC,Children's Services - DSG Central.,Children & Education Services,Demontford Marketing Ltd,28/08/2020,,33,Cleaning,To be classified individually
Solihull MBC,Children's Services - DSG Central.,Children & Education Services,Demontford Marketing Ltd,28/08/2020,,47.88,Cleaning,To be classified individually
Solihull MBC,Children's Services - DSG Central.,Children & Education Services,Demontford Marketing Ltd,28/08/2020,,23.52,Cleaning,To be classified individually
Solihull MBC,Children's Services - DSG Central.,Children & Education Services,Demontford Marketing Ltd,28/08/2020,,29.68,Cleaning,To be classified individually
Solihull MBC,Children's Services - DSG Central.,Children & Education Services,Demontford Marketing Ltd,28/08/2020,,170,Cleaning,To be classified individually
Solihull MBC,Children's Services - DSG Central.,Children & Education Services,Demontford Marketing Ltd,28/08/2020,,1075,Cleaning,To be classified individually
Solihull MBC,Children's Services - DSG Central.,Children & Education Services,Demontford Marketing Ltd,28/08/2020,,180,Cleaning,To be classified individually
Solihull MBC,Children's Services - DSG Central.,Children & Education Services,Demontford Marketing Ltd,28/08/2020,,1095,Cleaning,To be classified individually
Solihull MBC,Children's Services - DSG Central.,Children & Education Services,Demontford Marketing Ltd,28/08/2020,,1399.6,Cleaning,To be classified individually
Solihull MBC,Children's Services - DSG Central.,Children & Education Services,Demontford Marketing Ltd,28/08/2020,,159.8,Cleaning,To be classified individually
Solihull MBC,Economy and Infrastructure,Highways & Transport Services,Derek Pointon & Co,17/08/2020,,498,Other Contracted Services,"391311 - Works - Construction, Repair & Maintenance - Open Spaces - Repair & Maintenance"
Solihull MBC,Resources,Central Services to the Public,DFS Docu Finish Solutions Ltd,06/08/2020,,295,IT Equipment & Software,Not Yet Classified
Solihull MBC,Adult Social Care,Adult Social Care,Direct Healthcare Group,12/08/2020,,70,Furniture & Equipment,Not Yet Classified
Solihull MBC,Adult Social Care,Adult Social Care,Direct Healthcare Group,12/08/2020,,651,Furniture & Equipment,Not Yet Classified
Solihull MBC,Adult Social Care,Adult Social Care,Direct Healthcare Group,12/08/2020,,9,Furniture & Equipment,Not Yet Classified
Solihull MBC,Adult Social Care,Adult Social Care,Direct Healthcare Group,04/08/2020,,270,Furniture & Equipment,Not Yet Classified
Solihull MBC,Adult Social Care,Adult Social Care,Direct Healthcare Group,19/08/2020,,321.74,Furniture & Equipment,Not Yet Classified
Solihull MBC,Adult Social Care,Adult Social Care,Direct Healthcare Group,19/08/2020,,1975,Furniture & Equipment,Not Yet Classified
Solihull MBC,Adult Social Care,Adult Social Care,Direct Healthcare Group,19/08/2020,,394.2,Furniture & Equipment,Not Yet Classified
Solihull MBC,Adult Social Care,Adult Social Care,Direct Healthcare Group,19/08/2020,,-0.02,Furniture & Equipment,Not Yet Classified
Solihull MBC,Children's Services & Skills,Children & Education Services,DMR Services Ltd,20/08/2020,,3314,External Fostering,321100 - Social Community Care Supplies & Services - Children
Solihull MBC,Children's Services & Skills,Children & Education Services,DNA Legal Ltd,14/08/2020,,378,Professional Fees,Not Yet Classified
Solihull MBC,Resources,Children & Education Services,Dodd Group,01/08/2020,,3554.98,Repair & Maintn Of Buildings,Not Yet Classified
Solihull MBC,Resources,Children & Education Services,Dodd Group,01/08/2020,,1011.8,Repair & Maintn Of Buildings,Not Yet Classified
Solihull MBC,Resources,Children & Education Services,Dodd Group,01/08/2020,,868.75,Repair & Maintn Of Buildings,Not Yet Classified
Solihull MBC,Resources,Children & Education Services,Dodd Group,01/08/2020,,668.75,Repair & Maintn Of Buildings,Not Yet Classified
Solihull MBC,Resources,Planning & Development Services,Dodd Group,01/08/2020,,1765.25,Repair & Maintn Of Buildings,Not Yet Classified
Solihull MBC,Resources,Planning & Development Services,Dodd Group,01/08/2020,,176.53,Internal Building Maintenance,Not Yet Classified
Solihull MBC,Resources,Central Services to the Public,Dodd Group,01/08/2020,,-176.53,Internal Income-Miscellaneous,Not Yet Classified
Solihull MBC,Resources,Central Services to the Public,Dodd Group,01/08/2020,,3801.9,Reactive Works (Landlord),Not Yet Classified
Solihull MBC,Resources,Central Services to the Public,Dodd Group,01/08/2020,,22592.69,Planned Works (Landlord),Not Yet Classified
Solihull MBC,Resources,Central Services to the Public,Dodd Group,01/08/2020,,43772.96,Repair & Maintn Of Buildings,Not Yet Classified
Solihull MBC,Resources,Central Services to the Public,Dodd Group,07/08/2020,,1542.04,Repair & Maintn Of Buildings,Not Yet Classified
Solihull MBC,Resources,Children & Education Services,Dodd Group,07/08/2020,,317.23,Repair & Maintn Of Buildings,Not Yet Classified
Solihull MBC,Resources,Children & Education Services,Dodd Group,07/08/2020,,212.11,Repair & Maintn Of Buildings,Not Yet Classified
Solihull MBC,Resources,Children & Education Services,Dodd Group,07/08/2020,,400.81,Repair & Maintn Of Buildings,Not Yet Classified
Solihull MBC,Resources,Children & Education Services,Dodd Group,07/08/2020,,489.46,Repair & Maintn Of Buildings,Not Yet Classified
Solihull MBC,Resources,Central Services to the Public,Dodd Group,07/08/2020,,341.16,Reactive Works (Landlord),Not Yet Classified
Solihull MBC,Resources,Central Services to the Public,Dodd Group,07/08/2020,,519.4,Reactive Works (Landlord),Not Yet Classified
Solihull MBC,Resources,Children & Education Services,Dodd Group,07/08/2020,,436.1,Repair & Maintn Of Buildings,Not Yet Classified
Solihull MBC,Resources,Central Services to the Public,Dodd Group,07/08/2020,,351.55,Repair & Maintn Of Buildings,Not Yet Classified
Solihull MBC,Resources,Central Services to the Public,Dodd Group,07/08/2020,,35.16,Internal Building Maintenance,Not Yet Classified
Solihull MBC,Resources,Central Services to the Public,Dodd Group,07/08/2020,,-35.16,Internal Income-Miscellaneous,Not Yet Classified
Solihull MBC,Resources,Children & Education Services,Dodd Group,07/08/2020,,648.31,Repair & Maintn Of Buildings,Not Yet Classified
Solihull MBC,Resources,Central Services to the Public,Dodd Group,07/08/2020,,540.19,Reactive Works (Landlord),Not Yet Classified
Solihull MBC,Resources,Central Services to the Public,Dodd Group,07/08/2020,,538.88,Reactive Works (External),Not Yet Classified
Solihull MBC,Resources,Children & Education Services,Dodd Group,07/08/2020,,302.59,Reactive Works (Landlord),Not Yet Classified
Solihull MBC,Resources,Children & Education Services,Dodd Group,07/08/2020,,563.08,Repair & Maintn Of Buildings,Not Yet Classified
Solihull MBC,Resources,Central Services to the Public,Dodd Group,07/08/2020,,240.18,Repair & Maintn Of Buildings,Not Yet Classified
Solihull MBC,Resources,Children & Education Services,Dodd Group,07/08/2020,,262.8,Reactive Works (Landlord),Not Yet Classified
Solihull MBC,Resources,Central Services to the Public,Dodd Group,07/08/2020,,370.35,Servicing,Not Yet Classified
Solihull MBC,Resources,Children & Education Services,Dodd Group,07/08/2020,,270.43,Repair & Maintn Of Buildings,Not Yet Classified
Solihull MBC,Resources,Children & Education Services,Dodd Group,07/08/2020,,339.01,Reactive Works (Landlord),Not Yet Classified
Solihull MBC,Resources,Children & Education Services,Dodd Group,07/08/2020,,231.66,Repair & Maintn Of Buildings,Not Yet Classified
Solihull MBC,Resources,Planning & Development Services,Dodd Group,07/08/2020,,267.28,Repair & Maintn Of Buildings,Not Yet Classified
Solihull MBC,Resources,Planning & Development Services,Dodd Group,07/08/2020,,26.73,Internal Building Maintenance,Not Yet Classified
Solihull MBC,Resources,Central Services to the Public,Dodd Group,07/08/2020,,-26.73,Internal Income-Miscellaneous,Not Yet Classified
Solihull MBC,Resources,Central Services to the Public,Dodd Group,07/08/2020,,318.75,Servicing,Not Yet Classified
Solihull MBC,Resources,Children & Education Services,Dodd Group,07/08/2020,,368.75,Repair & Maintn Of Buildings,Not Yet Classified
Solihull MBC,Resources,Central Services to the Public,Dodd Group,10/08/2020,,3667.01,Repair & Maintn Of Buildings,Not Yet Classified
Solihull MBC,Resources,Central Services to the Public,Dodd Group,10/08/2020,,37910.96,Repair & Maintn Of Buildings,Not Yet Classified
Solihull MBC,Resources,Central Services to the Public,Dodd Group,10/08/2020,,783.75,Contractors,Not Yet Classified
Solihull MBC,Resources,Central Services to the Public,Dodd Group,10/08/2020,,535.35,Repair & Maintn Of Buildings,Not Yet Classified
Solihull MBC,Resources,Central Services to the Public,Dodd Group,10/08/2020,,1614.19,Reactive Works (Landlord),Not Yet Classified
Solihull MBC,Resources,Children & Education Services,Dodd Group,10/08/2020,,768.75,Repair & Maintn Of Buildings,Not Yet Classified
Solihull MBC,Resources,Children & Education Services,Dodd Group,10/08/2020,,718.75,Repair & Maintn Of Buildings,Not Yet Classified
Solihull MBC,Resources,Children & Education Services,Dodd Group,10/08/2020,,3456.56,Repair & Maintn Of Buildings,Not Yet Classified
Solihull MBC,Resources,Children & Education Services,Dodd Group,10/08/2020,,464.35,Repair & Maintn Of Buildings,Not Yet Classified
Solihull MBC,Resources,Central Services to the Public,Dodd Group,10/08/2020,,1189.71,Repair & Maintn Of Buildings,Not Yet Classified
Solihull MBC,Resources,Central Services to the Public,Dodd Group,11/08/2020,,1769.81,Repair & Maintn Of Buildings,Not Yet Classified
Solihull MBC,Resources,Central Services to the Public,Dodd Group,11/08/2020,,225.94,Repair & Maintn Of Buildings,Not Yet Classified
Solihull MBC,Resources,Children & Education Services,Dodd Group,12/08/2020,,268.75,Repair & Maintn Of Buildings,Not Yet Classified
Solihull MBC,Resources,Children & Education Services,Dodd Group,12/08/2020,,431.25,Repair & Maintn Of Buildings,Not Yet Classified
Solihull MBC,Resources,Central Services to the Public,Dodd Group,12/08/2020,,-33.08,Internal Income-Miscellaneous,Not Yet Classified
Solihull MBC,Resources,Central Services to the Public,Dodd Group,12/08/2020,,622.26,Reactive Works (Landlord),Not Yet Classified
Solihull MBC,Resources,Children & Education Services,Dodd Group,12/08/2020,,279.1,Repair & Maintn Of Buildings,Not Yet Classified
Solihull MBC,Resources,Children & Education Services,Dodd Group,12/08/2020,,214.36,Repair & Maintn Of Buildings,Not Yet Classified
Solihull MBC,Resources,Children & Education Services,Dodd Group,12/08/2020,,277.95,Repair & Maintn Of Buildings,Not Yet Classified
Solihull MBC,Resources,Central Services to the Public,Dodd Group,12/08/2020,,798.93,Reactive Works (External),Not Yet Classified
Solihull MBC,Resources,Children & Education Services,Dodd Group,12/08/2020,,255.45,Reactive Works (Landlord),Not Yet Classified
Solihull MBC,Resources,Central Services to the Public,Dodd Group,12/08/2020,,355.25,Repair & Maintn Of Buildings,Not Yet Classified
Solihull MBC,Resources,Central Services to the Public,Dodd Group,12/08/2020,,392.7,Servicing,Not Yet Classified
Solihull MBC,Resources,Central Services to the Public,Dodd Group,12/08/2020,,696.86,Reactive Works (Landlord),Not Yet Classified
Solihull MBC,Resources,Children & Education Services,Dodd Group,12/08/2020,,255.45,Reactive Works (Landlord),Not Yet Classified
Solihull MBC,Resources,Central Services to the Public,Dodd Group,12/08/2020,,312.86,Reactive Works (Landlord),Not Yet Classified
Solihull MBC,Resources,Children & Education Services,Dodd Group,12/08/2020,,647.21,Repair & Maintn Of Buildings,Not Yet Classified
Solihull MBC,Resources,Children & Education Services,Dodd Group,12/08/2020,,218.75,Reactive Works (Landlord),Not Yet Classified
Solihull MBC,Resources,Central Services to the Public,Dodd Group,12/08/2020,,241.05,Servicing,Not Yet Classified
Solihull MBC,Resources,Planning & Development Services,Dodd Group,12/08/2020,,237.84,Repair & Maintn Of Buildings,Not Yet Classified
Solihull MBC,Resources,Planning & Development Services,Dodd Group,12/08/2020,,23.78,Internal Building Maintenance,Not Yet Classified
Solihull MBC,Resources,Central Services to the Public,Dodd Group,12/08/2020,,-23.78,Internal Income-Miscellaneous,Not Yet Classified
Solihull MBC,Resources,Planning & Development Services,Dodd Group,12/08/2020,,216.63,Repair & Maintn Of Buildings,Not Yet Classified
Solihull MBC,Resources,Planning & Development Services,Dodd Group,12/08/2020,,21.66,Internal Building Maintenance,Not Yet Classified
Solihull MBC,Resources,Central Services to the Public,Dodd Group,12/08/2020,,-21.66,Internal Income-Miscellaneous,Not Yet Classified
Solihull MBC,Resources,Children & Education Services,Dodd Group,12/08/2020,,283.13,Repair & Maintn Of Buildings,Not Yet Classified
Solihull MBC,Resources,Children & Education Services,Dodd Group,12/08/2020,,283.13,Repair & Maintn Of Buildings,Not Yet Classified
Solihull MBC,Resources,Children & Education Services,Dodd Group,12/08/2020,,241.25,Repair & Maintn Of Buildings,Not Yet Classified
Solihull MBC,Resources,Central Services to the Public,Dodd Group,12/08/2020,,241.25,Servicing,Not Yet Classified
Solihull MBC,Resources,Children & Education Services,Dodd Group,12/08/2020,,241.25,Repair & Maintn Of Buildings,Not Yet Classified
Solihull MBC,Resources,Central Services to the Public,Dodd Group,12/08/2020,,431.25,Reactive Works (External),Not Yet Classified
Solihull MBC,Resources,Children & Education Services,Dodd Group,12/08/2020,,241.25,Repair & Maintn Of Buildings,Not Yet Classified
Solihull MBC,Resources,Children & Education Services,Dodd Group,12/08/2020,,241.25,Repair & Maintn Of Buildings,Not Yet Classified
Solihull MBC,Resources,Central Services to the Public,Dodd Group,14/08/2020,,847.73,Repair & Maintn Of Buildings,Not Yet Classified
Solihull MBC,Resources,Central Services to the Public,Dodd Group,01/08/2020,,6317.92,Reactive Works (Landlord),Not Yet Classified
Solihull MBC,Resources,Central Services to the Public,Dodd Group,17/08/2020,,14614.92,Planned Works (Landlord),Not Yet Classified
Solihull MBC,Resources,Central Services to the Public,Dodd Group,20/08/2020,,303.48,Reactive Works (Landlord),Not Yet Classified
Solihull MBC,Resources,Central Services to the Public,Dodd Group,20/08/2020,,352.83,Repair & Maintn Of Buildings,Not Yet Classified
Solihull MBC,Resources,Central Services to the Public,Dodd Group,20/08/2020,,303.48,Reactive Works (Landlord),Not Yet Classified
Solihull MBC,Resources,Central Services to the Public,Dodd Group,20/08/2020,,342,Repair & Maintn Of Buildings,Not Yet Classified
Solihull MBC,Resources,Central Services to the Public,Dodd Group,20/08/2020,,507.5,Reactive Works (Landlord),Not Yet Classified
Solihull MBC,Resources,Central Services to the Public,Dodd Group,20/08/2020,,302.94,Repair & Maintn Of Buildings,Not Yet Classified
Solihull MBC,Resources,Central Services to the Public,Dodd Group,20/08/2020,,391.25,Repair & Maintn Of Buildings,Not Yet Classified
Solihull MBC,Resources,Corporate & Democratic Core,Dodd Group,20/08/2020,,325.78,Repair & Maintn Of Buildings,Not Yet Classified
Solihull MBC,Resources,Corporate & Democratic Core,Dodd Group,20/08/2020,,32.58,Internal Building Maintenance,Not Yet Classified
Solihull MBC,Resources,Central Services to the Public,Dodd Group,20/08/2020,,-32.58,Internal Income-Miscellaneous,Not Yet Classified
Solihull MBC,Resources,Central Services to the Public,Dodd Group,20/08/2020,,423.93,Reactive Works (Landlord),Not Yet Classified
Solihull MBC,Resources,Central Services to the Public,Dodd Group,20/08/2020,,425.05,Reactive Works (Landlord),Not Yet Classified
Solihull MBC,Resources,Children & Education Services,Dodd Group,20/08/2020,,228.71,Reactive Works (Landlord),Not Yet Classified
Solihull MBC,Resources,Central Services to the Public,Dodd Group,20/08/2020,,541.76,Servicing,Not Yet Classified
Solihull MBC,Resources,Central Services to the Public,Dodd Group,20/08/2020,,372.15,Reactive Works (Landlord),Not Yet Classified
Solihull MBC,Resources,Children & Education Services,Dodd Group,20/08/2020,,413.55,Building Maint Day To Day,Not Yet Classified
Solihull MBC,Resources,Central Services to the Public,Dodd Group,20/08/2020,,219.89,Servicing,Not Yet Classified
Solihull MBC,Resources,Children & Education Services,Dodd Group,20/08/2020,,282.58,Reactive Works (Landlord),Not Yet Classified
Solihull MBC,Resources,Children & Education Services,Dodd Group,20/08/2020,,307.2,Reactive Works (Landlord),Not Yet Classified
Solihull MBC,Resources,Children & Education Services,Dodd Group,20/08/2020,,278.36,Repair & Maintn Of Buildings,Not Yet Classified
Solihull MBC,Resources,Children & Education Services,Dodd Group,20/08/2020,,324.16,Reactive Works (Landlord),Not Yet Classified
Solihull MBC,Resources,Planning & Development Services,Dodd Group,20/08/2020,,417.4,Repair & Maintn Of Buildings,Not Yet Classified
Solihull MBC,Resources,Planning & Development Services,Dodd Group,20/08/2020,,41.74,Internal Building Maintenance,Not Yet Classified
Solihull MBC,Resources,Central Services to the Public,Dodd Group,20/08/2020,,-41.74,Internal Income-Miscellaneous,Not Yet Classified
Solihull MBC,Resources,Central Services to the Public,Dodd Group,20/08/2020,,539.83,Reactive Works (External),Not Yet Classified
Solihull MBC,Resources,Children & Education Services,Dodd Group,20/08/2020,,324.19,Reactive Works (Landlord),Not Yet Classified
Solihull MBC,Resources,Children & Education Services,Dodd Group,20/08/2020,,300.36,Repair & Maintn Of Buildings,Not Yet Classified
Solihull MBC,Resources,Children & Education Services,Dodd Group,20/08/2020,,237.36,Reactive Works (Landlord),Not Yet Classified
Solihull MBC,Resources,Central Services to the Public,Dodd Group,20/08/2020,,393.63,Servicing,Not Yet Classified
Solihull MBC,Resources,Children & Education Services,Dodd Group,20/08/2020,,439.33,Reactive Works (Landlord),Not Yet Classified
Solihull MBC,Resources,Children & Education Services,Dodd Group,20/08/2020,,237.59,Reactive Works (Landlord),Not Yet Classified
Solihull MBC,Resources,Children & Education Services,Dodd Group,20/08/2020,,431.25,Repair & Maintn Of Buildings,Not Yet Classified
Solihull MBC,Resources,Children & Education Services,Dodd Group,20/08/2020,,245.2,Reactive Works (Landlord),Not Yet Classified
Solihull MBC,Resources,Children & Education Services,Dodd Group,20/08/2020,,715,Reactive Works (Landlord),Not Yet Classified
Solihull MBC,Resources,Children & Education Services,Dodd Group,20/08/2020,,277.58,Repair & Maintn Of Buildings,Not Yet Classified
Solihull MBC,Resources,Children & Education Services,Dodd Group,20/08/2020,,431.25,Reactive Works (Landlord),Not Yet Classified
Solihull MBC,Resources,Children & Education Services,Dodd Group,20/08/2020,,431.25,Reactive Works (Landlord),Not Yet Classified
Solihull MBC,Resources,Children & Education Services,Dodd Group,20/08/2020,,231.25,Reactive Works (Landlord),Not Yet Classified
Solihull MBC,Resources,Children & Education Services,Dodd Group,20/08/2020,,292.8,Repair & Maintn Of Buildings,Not Yet Classified
Solihull MBC,Resources,Children & Education Services,Dodd Group,20/08/2020,,241.25,Repair & Maintn Of Buildings,Not Yet Classified
Solihull MBC,Resources,Children & Education Services,Dodd Group,20/08/2020,,391.25,Repair & Maintn Of Buildings,Not Yet Classified
Solihull MBC,Resources,Children & Education Services,Dodd Group,20/08/2020,,431.25,Repair & Maintn Of Buildings,Not Yet Classified
Solihull MBC,Resources,Central Services to the Public,Dodd Group,20/08/2020,,318.75,Reactive Works (Landlord),Not Yet Classified
Solihull MBC,Resources,Central Services to the Public,Dodd Group,20/08/2020,,237.5,Servicing,Not Yet Classified
Solihull MBC,Resources,Children & Education Services,Dodd Group,20/08/2020,,318.75,Repair & Maintn Of Buildings,Not Yet Classified
Solihull MBC,Resources,Central Services to the Public,Dodd Group,24/08/2020,,563.99,Repair & Maintn Of Buildings,Not Yet Classified
Solihull MBC,Resources,Central Services to the Public,Dodd Group,24/08/2020,,216.34,Repair & Maintn Of Buildings,Not Yet Classified
Solihull MBC,Resources,Central Services to the Public,Dodd Group,25/08/2020,,92298.61,Repair & Maintn Of Buildings,Not Yet Classified
Solihull MBC,Resources,Central Services to the Public,Dodd Group,25/08/2020,,35741.18,Planned Works (Landlord),Not Yet Classified
Solihull MBC,Resources,Central Services to the Public,Dodd Group,25/08/2020,,26254.59,Repair & Maintn Of Buildings,Not Yet Classified
Solihull MBC,Economy and Infrastructure,Other Housing Services,Dodd Group (Midlands) Ltd,19/08/2020,,28000,Contractors,"391111 - Works - Construction, Repair & Maintenance - Buildings - Repair & Maintenance"
Solihull MBC,Economy and Infrastructure,Other Housing Services,Dodd Group (Midlands) Ltd,19/08/2020,,720,Contractors,"391111 - Works - Construction, Repair & Maintenance - Buildings - Repair & Maintenance"
Solihull MBC,Economy and Infrastructure,Other Housing Services,Dodd Group (Midlands) Ltd,19/08/2020,,7350,Building Maint Planned,"391111 - Works - Construction, Repair & Maintenance - Buildings - Repair & Maintenance"
Solihull MBC,Economy and Infrastructure,Other Housing Services,Dodd Group (Midlands) Ltd,19/08/2020,,432,Building Maint Planned,"391111 - Works - Construction, Repair & Maintenance - Buildings - Repair & Maintenance"
Solihull MBC,Adult Social Care,Adult Social Care,Dove Home Care Limited,19/08/2020,,541.52,ASC - Domiciliary Care,Not Yet Classified
Solihull MBC,Adult Social Care,Adult Social Care,Dove Home Care Limited,19/08/2020,,541.52,ASC - Domiciliary Care,Not Yet Classified
Solihull MBC,Adult Social Care,Adult Social Care,Dove Home Care Limited,19/08/2020,,483.5,ASC - Domiciliary Care,Not Yet Classified
Solihull MBC,Adult Social Care,Adult Social Care,Dove Home Care Limited,19/08/2020,,1450.5,ASC - Domiciliary Care,Not Yet Classified
Solihull MBC,Adult Social Care,Adult Social Care,Dove Home Care Limited,19/08/2020,,1218.42,ASC - Domiciliary Care,Not Yet Classified
Solihull MBC,Adult Social Care,Adult Social Care,Dove Home Care Limited,19/08/2020,,599.54,ASC - Domiciliary Care,Not Yet Classified
Solihull MBC,Adult Social Care,Adult Social Care,Dove Home Care Limited,19/08/2020,,676.9,ASC - Domiciliary Care,Not Yet Classified
Solihull MBC,Adult Social Care,Adult Social Care,Dove Home Care Limited,19/08/2020,,410.98,ASC - Domiciliary Care,Not Yet Classified
Solihull MBC,Adult Social Care,Adult Social Care,Dove Home Care Limited,19/08/2020,,343.29,ASC - Domiciliary Care,Not Yet Classified
Solihull MBC,Adult Social Care,Adult Social Care,Dove Home Care Limited,19/08/2020,,309.44,ASC - Domiciliary Care,Not Yet Classified
Solihull MBC,Adult Social Care,Adult Social Care,Dove Home Care Limited,19/08/2020,,1063.7,ASC - Domiciliary Care,Not Yet Classified
Solihull MBC,Adult Social Care,Adult Social Care,Dove Home Care Limited,19/08/2020,,812.28,ASC - Domiciliary Care,Not Yet Classified
Solihull MBC,Adult Social Care,Adult Social Care,Dove Home Care Limited,19/08/2020,,812.28,ASC - Domiciliary Care,Not Yet Classified
Solihull MBC,Adult Social Care,Adult Social Care,Dove Home Care Limited,19/08/2020,,812.28,ASC - Domiciliary Care,Not Yet Classified
Solihull MBC,Adult Social Care,Adult Social Care,Dove Home Care Limited,19/08/2020,,4008.48,ASC - Home Care Support Services,Not Yet Classified
Solihull MBC,Adult Social Care,Adult Social Care,Dove Home Care Limited,19/08/2020,,270.76,ASC - Domiciliary Care,Not Yet Classified
Solihull MBC,Adult Social Care,Adult Social Care,Dove Home Care Limited,19/08/2020,,1083.04,ASC - Domiciliary Care,Not Yet Classified
Solihull MBC,Adult Social Care,Adult Social Care,Dove Home Care Limited,19/08/2020,,251.42,ASC - Domiciliary Care,Not Yet Classified
Solihull MBC,Adult Social Care,Adult Social Care,Dove Home Care Limited,19/08/2020,,2436.84,ASC - Domiciliary Care,Not Yet Classified
Solihull MBC,Adult Social Care,Adult Social Care,Dove Home Care Limited,19/08/2020,,812.28,ASC - Domiciliary Care,Not Yet Classified
Solihull MBC,Adult Social Care,Adult Social Care,Dove Home Care Limited,19/08/2020,,720.42,ASC - Domiciliary Care,Not Yet Classified
Solihull MBC,Adult Social Care,Adult Social Care,Dove Home Care Limited,19/08/2020,,565.7,ASC - Domiciliary Care,Not Yet Classified
Solihull MBC,Adult Social Care,Adult Social Care,Dove Home Care Limited,19/08/2020,,1160.4,ASC - Domiciliary Care,Not Yet Classified
Solihull MBC,Adult Social Care,Adult Social Care,Dove Home Care Limited,19/08/2020,,1160.4,ASC - Domiciliary Care,Not Yet Classified
Solihull MBC,Adult Social Care,Adult Social Care,Dove Home Care Limited,19/08/2020,,696.24,ASC - Domiciliary Care,Not Yet Classified
Solihull MBC,Adult Social Care,Adult Social Care,Dove Home Care Limited,19/08/2020,,551.19,ASC - Domiciliary Care,Not Yet Classified
Solihull MBC,Adult Social Care,Adult Social Care,Dove Home Care Limited,19/08/2020,,425.48,ASC - Domiciliary Care,Not Yet Classified
Solihull MBC,Adult Social Care,Adult Social Care,Dove Home Care Limited,19/08/2020,,1620,ASC - Domiciliary Care,Not Yet Classified
Solihull MBC,Adult Social Care,Adult Social Care,Dove Home Care Limited,19/08/2020,,338.45,ASC - Domiciliary Care,Not Yet Classified
Solihull MBC,Adult Social Care,Adult Social Care,Dove Home Care Limited,19/08/2020,,338.45,ASC - Domiciliary Care,Not Yet Classified
Solihull MBC,Adult Social Care,Adult Social Care,Dove Home Care Limited,19/08/2020,,580.2,ASC - Domiciliary Care,Not Yet Classified
Solihull MBC,Adult Social Care,Adult Social Care,Dove Home Care Limited,19/08/2020,,773.6,ASC - Domiciliary Care,Not Yet Classified
Solihull MBC,Adult Social Care,Adult Social Care,Dove Home Care Limited,19/08/2020,,507.68,ASC - Domiciliary Care,Not Yet Classified
Solihull MBC,Adult Social Care,Adult Social Care,Dove Home Care Limited,19/08/2020,,309.44,ASC - Domiciliary Care,Not Yet Classified
